Organisation Name,Organisation Code,Effective Date,Directorate,Service Category,Service Category URI,Supplier Name,Payment Date,Transaction Number,Net Amount,Irrecoverable VAT,Purpose_of_the_expenditure,Merchant Category
Wyre Council,http://opendatacommunities.org/doc/district-council/wyre,30/03/2024,People and Places,Cultural and Related Services,132A,Preston City Council,22/03/2024,PE157945,105.55,0.00,Notice Boards and bus stops - Big Country,Advertising - General
Wyre Council,http://opendatacommunities.org/doc/district-council/wyre,30/03/2024,Resources,Planning and Development Servs,132C,Daisy Communications LTD,07/03/2024,RS157252,50.70,0.00,Service Charges 01/03/24 to 31/03/24,Advertising - General
Wyre Council,http://opendatacommunities.org/doc/district-council/wyre,30/03/2024,People and Places,Cultural and Related Services,132A,Focus Magazines Moulton Printing,20/03/2024,PE157874,350.00,0.00,Full page advert to promote GWF,Advertising - General
Wyre Council,http://opendatacommunities.org/doc/district-council/wyre,30/03/2024,People and Places,Cultural and Related Services,132A,Amazon Business,20/03/2024,PE157485,62.50,0.00,Picture Frames for Heritage Exhibition at Marine Hall and other venues. 5 pictures frames at 12.50 per frame. 80cm x 60cm,Advertising - General
Wyre Council,http://opendatacommunities.org/doc/district-council/wyre,30/03/2024,People and Places,Cultural and Related Services,132A,Amazon Business,07/03/2024,PE157403,28.42,0.00,80cm x 60cm wall mounted picture frames for heritage exhibition. 2 frames,Advertising - General
Wyre Council,http://opendatacommunities.org/doc/district-council/wyre,30/03/2024,Resources,Support Services,135B,The Association Of Electoral Administrators,19/03/2024,RS157778,833.69,0.00,Temp Election Manager advert on AEA.,Advertising - Recruitment
Wyre Council,http://opendatacommunities.org/doc/district-council/wyre,30/03/2024,Resources,Support Services,135B,HB EDITORIAL SERVICES LTD,20/03/2024,RS157853,595.00,0.00,Advertising Legal Services Manager in Local Government Lawyer,Advertising - Recruitment
Wyre Council,http://opendatacommunities.org/doc/district-council/wyre,30/03/2024,People and Places,Support Services,135B,Starfish Search Limited,25/03/2024,PE157746,10750.00,0.00,Advertising Assistant Director of Finance post. Recruitment Fee & 50% of MJ print Advertising.,Advertising - Recruitment
Wyre Council,http://opendatacommunities.org/doc/district-council/wyre,30/03/2024,People and Places,Support Services,135B,Starfish Search Limited,22/03/2024,PE157745,8250.00,0.00,Advertising Assistant Director of Finance post. First stage fee & 50% of MJ print Advertising.,Advertising - Recruitment
Wyre Council,http://opendatacommunities.org/doc/district-council/wyre,30/03/2024,Resources,Central Services to the Public,131C,National World Publishing Ltd,25/03/2024,RS158002,1155.75,0.00,Advert Ref No: NMC6297877Local Government Finance Act 1992 -  Council Tax 2024/25,Advertising - Statutory Notices
Wyre Council,http://opendatacommunities.org/doc/district-council/wyre,30/03/2024,People and Places,Planning and Development Servs,132C,National World Publishing Ltd,22/03/2024,PE157954,600.99,0.00,Garstang and Blackpool 20.03.24,Advertising - Statutory Notices
Wyre Council,http://opendatacommunities.org/doc/district-council/wyre,30/03/2024,People and Places,Environmental Services,132B,National World Publishing Ltd,01/03/2024,PE157211,277.38,0.00,"Advert reference number NMC6295005. This is a public notice to advertise proposed 2024/2025 Hackney Carriage Vehicle, Private Hire Vehicle and Private Hire Operator Fees.",Advertising - Statutory Notices
Wyre Council,http://opendatacommunities.org/doc/district-council/wyre,30/03/2024,Resources,Housing General Fund,134A,Huck Properties LTD,11/03/2024,RS157496,295.00,0.00,Invoice - Affordable warmth,Affordable Warmth 2017/18
Wyre Council,http://opendatacommunities.org/doc/district-council/wyre,30/03/2024,Resources,Housing General Fund,134A,Huck Properties LTD,20/03/2024,RS157894,3180.00,0.00,Invoice - Affordable warmth,Affordable Warmth 2017/18
Wyre Council,http://opendatacommunities.org/doc/district-council/wyre,30/03/2024,Resources,Housing General Fund,134A,Huck Properties LTD,20/03/2024,RS157891,480.00,0.00,Invoice - Affordable warmth,Affordable Warmth 2017/18
Wyre Council,http://opendatacommunities.org/doc/district-council/wyre,30/03/2024,Resources,Housing General Fund,134A,Huck Properties LTD,04/03/2024,RS157232,40.00,0.00,Invoice - Affordable warmth,Affordable Warmth 2017/18
Wyre Council,http://opendatacommunities.org/doc/district-council/wyre,30/03/2024,Resources,Housing General Fund,134A,Huck Properties LTD,04/03/2024,RS157233,75.00,0.00,Invoice - Affordable warmth,Affordable Warmth 2017/18
Wyre Council,http://opendatacommunities.org/doc/district-council/wyre,30/03/2024,Resources,Housing General Fund,134A,RHEA PROJECTS LTD,04/03/2024,PE157236,3175.00,0.00,Invoice - Affordable warmth,Affordable Warmth 2017/18
Wyre Council,http://opendatacommunities.org/doc/district-council/wyre,30/03/2024,Resources,Housing General Fund,134A,RHEA PROJECTS LTD,20/03/2024,RS157851,1995.00,0.00,Invoice - Affordable warmth,Affordable Warmth 2017/18
Wyre Council,http://opendatacommunities.org/doc/district-council/wyre,30/03/2024,Resources,Housing General Fund,134A,RHEA PROJECTS LTD,20/03/2024,RS157850,2100.00,0.00,Invoice - Affordable warmth,Affordable Warmth 2017/18
Wyre Council,http://opendatacommunities.org/doc/district-council/wyre,30/03/2024,Resources,Housing General Fund,134A,RHEA PROJECTS LTD,20/03/2024,RS157849,2150.00,0.00,Invoice - Affordable warmth,Affordable Warmth 2017/18
Wyre Council,http://opendatacommunities.org/doc/district-council/wyre,30/03/2024,Resources,Housing General Fund,134A,RHEA PROJECTS LTD,04/03/2024,PE157235,2100.00,0.00,Invoice - Affordable warmth,Affordable Warmth 2017/18
Wyre Council,http://opendatacommunities.org/doc/district-council/wyre,30/03/2024,Resources,Housing General Fund,134A,RHEA PROJECTS LTD,26/03/2024,RS158069,2220.00,0.00,Invoice - Affordable warmth,Affordable Warmth 2017/18
Wyre Council,http://opendatacommunities.org/doc/district-council/wyre,30/03/2024,People and Places,Support Services,135B,M J Wilkinson,21/03/2024,PE157908,488.40,0.00,Labour Time sheet 1117619/2/24 - 23/2/24,Agency Staff
Wyre Council,http://opendatacommunities.org/doc/district-council/wyre,30/03/2024,People and Places,Support Services,135B,M J Wilkinson,21/03/2024,PE157909,488.40,0.00,Labour Time sheet 1117726/2/24 - 1/3/24,Agency Staff
Wyre Council,http://opendatacommunities.org/doc/district-council/wyre,30/03/2024,People and Places,Support Services,135B,M J Wilkinson,08/03/2024,PE157417,422.40,0.00,Labour 8/1/24 - 11/1/24Time sheet 11168,Agency Staff
Wyre Council,http://opendatacommunities.org/doc/district-council/wyre,30/03/2024,People and Places,Support Services,135B,M J Wilkinson,08/03/2024,PE157418,316.80,0.00,Labour 3/1/24 - 5/1/24Time sheet 11167,Agency Staff
Wyre Council,http://opendatacommunities.org/doc/district-council/wyre,30/03/2024,People and Places,Support Services,135B,M J Wilkinson,08/03/2024,PE157418,132.01,0.00,Delivery charge,Agency Staff
Wyre Council,http://opendatacommunities.org/doc/district-council/wyre,30/03/2024,People and Places,Support Services,135B,M J Wilkinson,08/03/2024,PE157418,79.20,0.00,Delivery charge,Agency Staff
Wyre Council,http://opendatacommunities.org/doc/district-council/wyre,30/03/2024,People and Places,Support Services,135B,M J Wilkinson,08/03/2024,PE157419,66.00,0.00,Labour 26/1/24Time sheet 11171,Agency Staff
Wyre Council,http://opendatacommunities.org/doc/district-council/wyre,30/03/2024,People and Places,Support Services,135B,M J Wilkinson,08/03/2024,PE157419,26.41,0.00,Delivery charge,Agency Staff
Wyre Council,http://opendatacommunities.org/doc/district-council/wyre,30/03/2024,People and Places,Support Services,135B,M J Wilkinson,08/03/2024,PE157419,26.41,0.00,Collection charge,Agency Staff
Wyre Council,http://opendatacommunities.org/doc/district-council/wyre,30/03/2024,People and Places,Support Services,135B,M J Wilkinson,08/03/2024,PE157419,488.40,0.00,Labour 22/1/24 = 26/1/24Time sheet 11110,Agency Staff
Wyre Council,http://opendatacommunities.org/doc/district-council/wyre,30/03/2024,People and Places,Cultural and Related Services,132A,Catering Elite Ltd,12/03/2024,PE157573,147.15,0.00,Agency staff 18/2/24,Agency Staff
Wyre Council,http://opendatacommunities.org/doc/district-council/wyre,30/03/2024,People and Places,Cultural and Related Services,132A,Catering Elite Ltd,12/03/2024,PE157575,343.35,0.00,Agency staff 3/3/24,Agency Staff
Wyre Council,http://opendatacommunities.org/doc/district-council/wyre,30/03/2024,People and Places,Cultural and Related Services,132A,Catering Elite Ltd,20/03/2024,PE157845,130.80,0.00,Agency staff 10/3/24,Agency Staff
Wyre Council,http://opendatacommunities.org/doc/district-council/wyre,30/03/2024,People and Places,Cultural and Related Services,132A,Catering Elite Ltd,06/03/2024,PE157350,282.03,0.00,Agency staff 25/2/24,Agency Staff
Wyre Council,http://opendatacommunities.org/doc/district-council/wyre,30/03/2024,People and Places,Cultural and Related Services,132A,Catering Elite Ltd,26/03/2024,PE158066,196.20,0.00,Agency staff 17/3/24,Agency Staff
Wyre Council,http://opendatacommunities.org/doc/district-council/wyre,30/03/2024,Resources,Central Services to the Public,131C,The Association Of Electoral Administrators,11/03/2024,RS157487,12122.17,0.00,Feb-24,Agency Staff
Wyre Council,http://opendatacommunities.org/doc/district-council/wyre,30/03/2024,People and Places,Planning and Development Servs,132C,Vivid Resourcing Ltd,25/03/2024,PE157172,1999.98,0.00,Fleetwood market,Agency Staff
Wyre Council,http://opendatacommunities.org/doc/district-council/wyre,30/03/2024,People and Places,Planning and Development Servs,132C,Vivid Resourcing Ltd,25/03/2024,PE157172,4000.02,0.00,Fleetwood Market,Agency Staff
Wyre Council,http://opendatacommunities.org/doc/district-council/wyre,30/03/2024,Resources,Support Services,135B,G2V Recruitment Group Ltd T/A G2 Recruitment Solu,20/03/2024,RS157847,1668.90,0.00,Invoice SLIG2R0135392G 10/03/24,Agency Staff
Wyre Council,http://opendatacommunities.org/doc/district-council/wyre,30/03/2024,Resources,Support Services,135B,G2V Recruitment Group Ltd T/A G2 Recruitment Solu,04/03/2024,PE157226,1608.05,0.00,Invoice SLIG2R0134390 - 25/02/24,Agency Staff
Wyre Council,http://opendatacommunities.org/doc/district-council/wyre,30/03/2024,Resources,Support Services,135B,G2V Recruitment Group Ltd T/A G2 Recruitment Solu,04/03/2024,RS157229,1677.00,0.00,Invoice SLIG2R0133411 - 04/02/2024,Agency Staff
Wyre Council,http://opendatacommunities.org/doc/district-council/wyre,30/03/2024,Resources,Support Services,135B,G2V Recruitment Group Ltd T/A G2 Recruitment Solu,04/03/2024,RS157251,1561.60,0.00,Invoice SLIG2R0132948 - 28/01/24,Agency Staff
Wyre Council,http://opendatacommunities.org/doc/district-council/wyre,30/03/2024,Resources,Support Services,135B,G2V Recruitment Group Ltd T/A G2 Recruitment Solu,04/03/2024,PE157228,1659.45,0.00,Invoice SLIG2R0133648 - 11/02/2024,Agency Staff
Wyre Council,http://opendatacommunities.org/doc/district-council/wyre,30/03/2024,Resources,Support Services,135B,G2V Recruitment Group Ltd T/A G2 Recruitment Solu,04/03/2024,PE157227,1657.65,0.00,Invoice SLIG2R0134171 - 18/02/2024,Agency Staff
Wyre Council,http://opendatacommunities.org/doc/district-council/wyre,30/03/2024,Resources,Support Services,135B,G2V Recruitment Group Ltd T/A G2 Recruitment Solu,11/03/2024,RS157494,1678.80,0.00,Invoice SLIG2R0134982 - 03/03/2024,Agency Staff
Wyre Council,http://opendatacommunities.org/doc/district-council/wyre,30/03/2024,People and Places,Support Services,135B,G2V Recruitment Group Ltd T/A G2 Recruitment Solu,26/03/2024,PE158086,913.50,0.00,"To recruit a Contaminated Land Officer on a temporary contract of 3 months from Monday 11th March 2024 42 x 15 hrs x 13 weeks = 8,190",Agency Staff
Wyre Council,http://opendatacommunities.org/doc/district-council/wyre,30/03/2024,People and Places,Cultural and Related Services,132A,Quantum Staffing Solutions Ltd,05/03/2024,PE154931,293.29,0.00,Agency staff - Marine Hall,Agency Staff
Wyre Council,http://opendatacommunities.org/doc/district-council/wyre,30/03/2024,People and Places,Cultural and Related Services,132A,Quantum Staffing Solutions Ltd,19/03/2024,PE157727,126.80,0.00,Agency staff 13/3/24,Agency Staff
Wyre Council,http://opendatacommunities.org/doc/district-council/wyre,30/03/2024,People and Places,Cultural and Related Services,132A,Quantum Staffing Solutions Ltd,26/03/2024,PE158068,179.40,0.00,Agency staff 17/3/24,Agency Staff
Wyre Council,http://opendatacommunities.org/doc/district-council/wyre,30/03/2024,People and Places,Planning and Development Servs,132C,Lancashire County Council,20/03/2024,PE157796,46.82,0.00,18.01.2024 INS356633 Fleetwood Copse Road Depot - Fire Alarm,Alarm Systems and Security - Annual
Wyre Council,http://opendatacommunities.org/doc/district-council/wyre,30/03/2024,People and Places,Planning and Development Servs,132C,Lancashire County Council,20/03/2024,PE157796,26.69,0.00,18.01.2024 INS356634 Fleetwood Copse Road Depot - Disabled  Alarm,Alarm Systems and Security - Annual
Wyre Council,http://opendatacommunities.org/doc/district-council/wyre,30/03/2024,People and Places,Planning and Development Servs,132C,Lancashire County Council,20/03/2024,PE157796,157.30,0.00,18.01.2024 INS357044 Fleetwood Copse Road Depot - Emergency  Lightning,Alarm Systems and Security - Annual
Wyre Council,http://opendatacommunities.org/doc/district-council/wyre,30/03/2024,People and Places,Planning and Development Servs,132C,Lancashire County Council,20/03/2024,PE157796,172.68,0.00,18.01.2024 INS356632 Fleetwood Copse Road Depot - Fire Alarm,Alarm Systems and Security - Annual
Wyre Council,http://opendatacommunities.org/doc/district-council/wyre,30/03/2024,People and Places,Cultural and Related Services,132A,Lancashire County Council,20/03/2024,PE157796,212.86,0.00,19.10.2023 INS348302 Thornton Cleveleys Little Theatre -  Emergency Lightning,Alarm Systems and Security - Annual
Wyre Council,http://opendatacommunities.org/doc/district-council/wyre,30/03/2024,People and Places,Cultural and Related Services,132A,Lancashire County Council,20/03/2024,PE157796,171.86,0.00,19.10.2023 INS347850 Thornton  Cleveleys Little Theatre - Fire Alarm,Alarm Systems and Security - Annual
Wyre Council,http://opendatacommunities.org/doc/district-council/wyre,30/03/2024,People and Places,Cultural and Related Services,132A,Lancashire County Council,20/03/2024,PE157796,26.69,0.00,20.10.2023 INS347912 Thornton Cleveleys Little Theatre -  Disabled Call Alarm,Alarm Systems and Security - Annual
Wyre Council,http://opendatacommunities.org/doc/district-council/wyre,30/03/2024,People and Places,Cultural and Related Services,132A,Lancashire County Council,20/03/2024,PE157796,79.99,0.00,26.01.2024 INS356596 Thornton Cleveleys Marsh Mill - Fire  Alarm,Alarm Systems and Security - Annual
Wyre Council,http://opendatacommunities.org/doc/district-council/wyre,30/03/2024,People and Places,Cultural and Related Services,132A,Lancashire County Council,20/03/2024,PE157796,29.35,0.00,26.01.2024 INS348340 Thornton Cleveleys Marsh Mill - Emergency  Lightning,Alarm Systems and Security - Annual
Wyre Council,http://opendatacommunities.org/doc/district-council/wyre,30/03/2024,People and Places,Cultural and Related Services,132A,Lancashire County Council,20/03/2024,PE157796,100.41,0.00,26.01.2024 INS348155 Thornton Cleveleys Marsh Mill - Intruder  Alarm,Alarm Systems and Security - Annual
Wyre Council,http://opendatacommunities.org/doc/district-council/wyre,30/03/2024,People and Places,Support Services,135B,Lancashire County Council,20/03/2024,PE157796,1659.39,0.00,24.01.2024 INS356537 Poulton le Fylde Civic Centre - Fire  Alarm,Alarm Systems and Security - Annual
Wyre Council,http://opendatacommunities.org/doc/district-council/wyre,30/03/2024,Resources,Support Services,135B,Daisy Communications LTD,07/03/2024,RS157252,13.87,0.00,Service Charges 01/03/24 to 31/03/24,Alarm Systems and Security - Annual
Wyre Council,http://opendatacommunities.org/doc/district-council/wyre,30/03/2024,People and Places,Planning and Development Servs,132C,M D Security,08/03/2024,PE157345,50.00,0.00,Fleetwood Maket Studio: look at fault alarm not setting found door to roof not closed,Alarm Systems and Security - Annual
Wyre Council,http://opendatacommunities.org/doc/district-council/wyre,30/03/2024,People and Places,Support Services,135B,M D Security,08/03/2024,PE157347,50.00,0.00,Civic: cleaned lock and put silicon spray to help the movement,Alarm Systems and Security - Annual
Wyre Council,http://opendatacommunities.org/doc/district-council/wyre,30/03/2024,People and Places,Support Services,135B,M D Security,08/03/2024,PE157342,50.00,0.00,Civic Centre 20/05/23: looked at lock adj 1st floor lift not locking - re-alighned,Alarm Systems and Security - Annual
Wyre Council,http://opendatacommunities.org/doc/district-council/wyre,30/03/2024,People and Places,Support Services,135B,M D Security,08/03/2024,PE157343,50.00,0.00,Civic Centre 09/06/23: removed DT PIT in members lounge,Alarm Systems and Security - Annual
Wyre Council,http://opendatacommunities.org/doc/district-council/wyre,30/03/2024,People and Places,Cultural and Related Services,132A,M D Security,04/03/2024,PE156980,50.00,0.00,Little Thornton Theatre: carried out emergency light test on whole site for 02/24,Alarm Systems and Security - Annual
Wyre Council,http://opendatacommunities.org/doc/district-council/wyre,30/03/2024,People and Places,Support Services,135B,M D Security,04/03/2024,PE157209,145.00,0.00,Civic Centre: Installed sounder/beacon in room 102/101 as requested,Alarm Systems and Security - Annual
Wyre Council,http://opendatacommunities.org/doc/district-council/wyre,30/03/2024,People and Places,Planning and Development Servs,132C,M D Security,05/03/2024,PE156916,85.00,0.00,Replaced Bulk head fitting in changing rooms at Copse Road Depot,Alarm Systems and Security - Annual
Wyre Council,http://opendatacommunities.org/doc/district-council/wyre,30/03/2024,People and Places,Cultural and Related Services,132A,M D Security,01/03/2024,PE156979,50.00,0.00,Thornton Windmill: carried out emergency light test on whole site for 02/24,Alarm Systems and Security - Annual
Wyre Council,http://opendatacommunities.org/doc/district-council/wyre,30/03/2024,People and Places,Cultural and Related Services,132A,M D Security,01/03/2024,PE156981,60.00,0.00,Marine Hall: Carried out emergency light test with infor given from site to location of lights and test points for 02/24,Alarm Systems and Security - Annual
Wyre Council,http://opendatacommunities.org/doc/district-council/wyre,30/03/2024,People and Places,Cultural and Related Services,132A,M D Security,04/03/2024,PE156982,50.00,0.00,Mount Pavilion and Studios: carried out emergency light test to whole sites for 02/24,Alarm Systems and Security - Annual
Wyre Council,http://opendatacommunities.org/doc/district-council/wyre,30/03/2024,People and Places,Cultural and Related Services,132A,M D Security,08/03/2024,PE157341,50.00,0.00,Garstang TIC 10/05/23: Removed panic alarm,Alarm Systems and Security - Responsive
Wyre Council,http://opendatacommunities.org/doc/district-council/wyre,30/03/2024,People and Places,Cultural and Related Services,132A,M D Security,08/03/2024,PE157344,56.00,0.00,Memorial Park 31/10/23 replaced 1 x 7AH battery,Alarm Systems and Security - Responsive
Wyre Council,http://opendatacommunities.org/doc/district-council/wyre,30/03/2024,People and Places,Planning and Development Servs,132C,M D Security,08/03/2024,PE157348,118.00,0.00,Fleetwood Market: investigate fault on fire panel.  Found PSU in market studios needing new battery`s.  Replaced and left working,Alarm Systems and Security - Responsive
Wyre Council,http://opendatacommunities.org/doc/district-council/wyre,30/03/2024,People and Places,Cultural and Related Services,132A,Amazon Business,25/03/2024,PE158008,40.83,0.00,1x 120cm x 90cm White Board with Pen Tray - 40.83(above for Rossall Point Tower),Amenity and Information Signs
Wyre Council,http://opendatacommunities.org/doc/district-council/wyre,30/03/2024,Finance,Support Services,135B,,21/03/2024,WPST00136273,2988.00,0.00,Feb 24 IR - Apprenticeship Levy,Apprenticeship Levy
Wyre Council,http://opendatacommunities.org/doc/district-council/wyre,30/03/2024,Resources,Corporate and Democratic Core,131A,PR Chauffeuring Services,06/03/2024,RS157357,506.00,0.00,Payment of chauffer services to the Mayor of Wyre for February 2024,Attendant Chauffeur Service
Wyre Council,http://opendatacommunities.org/doc/district-council/wyre,30/03/2024,Finance,Corporate and Democratic Core,131A,NATWEST BANK,21/03/2024,WPST00136354,638.09,0.00,19/03/24 WorldPay 295809270,Bank Charges
Wyre Council,http://opendatacommunities.org/doc/district-council/wyre,30/03/2024,Finance,Corporate and Democratic Core,131A,NATWEST BANK,21/03/2024,WPST00136356,1162.26,0.00,19/03/24 WorldPay  295711113,Bank Charges
Wyre Council,http://opendatacommunities.org/doc/district-council/wyre,30/03/2024,Finance,Corporate and Democratic Core,131A,NATWEST BANK,04/03/2024,WPST00134819,733.87,0.00,29/02/24 02FEB GRP 99795000,Bank Charges
Wyre Council,http://opendatacommunities.org/doc/district-council/wyre,30/03/2024,Resources,Support Services,135B,APCOA Parking UK Ltd,22/03/2024,RS157408,28.15,0.00,Bank processing costs @0.41p per 100 for collections from business centres for 2023/2024,Cash Collection Security Service
Wyre Council,http://opendatacommunities.org/doc/district-council/wyre,30/03/2024,Resources,Support Services,135B,APCOA Parking UK Ltd,22/03/2024,RS157408,22.66,0.00,cash collection charges,Cash Collection Security Service
Wyre Council,http://opendatacommunities.org/doc/district-council/wyre,30/03/2024,Resources,Support Services,135B,APCOA Parking UK Ltd,22/03/2024,RS157959,10.37,0.00,Bank processing costs @0.41p per 100 for collections from business centres for 2023/2024,Cash Collection Security Service
Wyre Council,http://opendatacommunities.org/doc/district-council/wyre,30/03/2024,Resources,Support Services,135B,APCOA Parking UK Ltd,22/03/2024,RS157959,56.65,0.00,cash collection charges,Cash Collection Security Service
Wyre Council,http://opendatacommunities.org/doc/district-council/wyre,30/03/2024,Resources,Support Services,135B,APCOA Parking UK Ltd,22/03/2024,RS157955,14.51,0.00,Bank processing costs @0.41p per 100 for collections from business centres for 2023/2024,Cash Collection Security Service
Wyre Council,http://opendatacommunities.org/doc/district-council/wyre,30/03/2024,Resources,Support Services,135B,APCOA Parking UK Ltd,22/03/2024,RS157955,33.99,0.00,cash collection charges,Cash Collection Security Service
Wyre Council,http://opendatacommunities.org/doc/district-council/wyre,30/03/2024,Resources,Planning and Development Servs,132C,APCOA Parking UK Ltd,22/03/2024,RS157408,67.99,0.00,Bank processing costs @0.41p per 100 for collections from business centres for 2023/2024,Cash Collection Security Service
Wyre Council,http://opendatacommunities.org/doc/district-council/wyre,30/03/2024,Resources,Planning and Development Servs,132C,APCOA Parking UK Ltd,22/03/2024,RS157959,56.65,0.00,Cash collection charges,Cash Collection Security Service
Wyre Council,http://opendatacommunities.org/doc/district-council/wyre,30/03/2024,Resources,Planning and Development Servs,132C,APCOA Parking UK Ltd,22/03/2024,RS157408,22.66,0.00,Cash collection charges,Cash Collection Security Service
Wyre Council,http://opendatacommunities.org/doc/district-council/wyre,30/03/2024,Resources,Planning and Development Servs,132C,APCOA Parking UK Ltd,22/03/2024,RS157955,59.91,0.00,Bank processing costs @0.41p per 100 for collections from business centres for 2023/2024,Cash Collection Security Service
Wyre Council,http://opendatacommunities.org/doc/district-council/wyre,30/03/2024,Resources,Planning and Development Servs,132C,APCOA Parking UK Ltd,22/03/2024,RS157955,33.99,0.00,Cash collection charges,Cash Collection Security Service
Wyre Council,http://opendatacommunities.org/doc/district-council/wyre,30/03/2024,Resources,Planning and Development Servs,132C,APCOA Parking UK Ltd,22/03/2024,RS157959,97.11,0.00,Bank processing costs @0.41p per 100 for collections from business centres for 2023/2024,Cash Collection Security Service
Wyre Council,http://opendatacommunities.org/doc/district-council/wyre,30/03/2024,Resources,Cultural and Related Services,132A,APCOA Parking UK Ltd,22/03/2024,RS157959,56.65,0.00,cash collection charges,Cash Collection Security Service
Wyre Council,http://opendatacommunities.org/doc/district-council/wyre,30/03/2024,Resources,Cultural and Related Services,132A,APCOA Parking UK Ltd,22/03/2024,RS157955,11.38,0.00,Bank processing costs @0.41p per 100 for collections from business centres for 2023/2024,Cash Collection Security Service
Wyre Council,http://opendatacommunities.org/doc/district-council/wyre,30/03/2024,Resources,Cultural and Related Services,132A,APCOA Parking UK Ltd,22/03/2024,RS157955,33.99,0.00,cash collection charges,Cash Collection Security Service
Wyre Council,http://opendatacommunities.org/doc/district-council/wyre,30/03/2024,Resources,Cultural and Related Services,132A,APCOA Parking UK Ltd,22/03/2024,RS157408,11.86,0.00,Bank processing costs @0.41p per 100 for collections from business centres for 2023/2024,Cash Collection Security Service
Wyre Council,http://opendatacommunities.org/doc/district-council/wyre,30/03/2024,Resources,Cultural and Related Services,132A,APCOA Parking UK Ltd,22/03/2024,RS157408,22.66,0.00,cash collection charges,Cash Collection Security Service
Wyre Council,http://opendatacommunities.org/doc/district-council/wyre,30/03/2024,Resources,Cultural and Related Services,132A,APCOA Parking UK Ltd,22/03/2024,RS157959,37.49,0.00,Bank processing costs @0.41p per 100 for collections from business centres for 2023/2024,Cash Collection Security Service
Wyre Council,http://opendatacommunities.org/doc/district-council/wyre,30/03/2024,Resources,Cultural and Related Services,132A,APCOA Parking UK Ltd,08/03/2024,RS157406,15.31,0.00,Bank processing costs @0.41p per 100 for collections from business centres for 2023/2024,Cash Collection Security Service
Wyre Council,http://opendatacommunities.org/doc/district-council/wyre,30/03/2024,Resources,Cultural and Related Services,132A,APCOA Parking UK Ltd,08/03/2024,RS157406,22.66,0.00,cash collection charges,Cash Collection Security Service
Wyre Council,http://opendatacommunities.org/doc/district-council/wyre,30/03/2024,People and Places,Parking Services,133F,APCOA Parking UK Ltd,19/03/2024,PE157721,654.28,0.00,"Provide cash collection and processing services for Wyre Council - 1 April 2023 - 31 March 2024i) Cash collection from P&D car park machines - estimated 135 boxes per month at 11.33 per boxii) Cash processing - estimated 46,600 per month @ 0.44 pe",Cash Collection Security Service
Wyre Council,http://opendatacommunities.org/doc/district-council/wyre,30/03/2024,People and Places,Parking Services,133F,APCOA Parking UK Ltd,19/03/2024,PE157748,919.85,0.00,"Provide cash collection and processing services for Wyre Council - 1 April 2023 - 31 March 2024  i) Cash collection from P&D car park machines - estimated 135 boxes per month at 11.33 per box ii) Cash processing - estimated 46,600 per month @ 0.44 per �",Cash Collection Security Service
Wyre Council,http://opendatacommunities.org/doc/district-council/wyre,30/03/2024,People and Places,Parking Services,133F,APCOA Parking UK Ltd,19/03/2024,PE157750,844.10,0.00,"Provide cash collection and processing services for Wyre Council - 1 April 2023 - 31 March 2024  i) Cash collection from P&D car park machines - estimated 135 boxes per month at 11.33 per box ii) Cash processing - estimated 46,600 per month @ 0.44 per �",Cash Collection Security Service
Wyre Council,http://opendatacommunities.org/doc/district-council/wyre,30/03/2024,People and Places,Parking Services,133F,APCOA Parking UK Ltd,19/03/2024,PE157749,1123.98,0.00,"Provide cash collection and processing services for Wyre Council - 1 April 2023 - 31 March 2024  i) Cash collection from P&D car park machines - estimated 135 boxes per month at 11.33 per box ii) Cash processing - estimated 46,600 per month @ 0.44 per �",Cash Collection Security Service
Wyre Council,http://opendatacommunities.org/doc/district-council/wyre,30/03/2024,People and Places,Parking Services,133F,APCOA Parking UK Ltd,19/03/2024,PE157703,1255.46,0.00,"Provide cash collection and processing services for Wyre Council - 1 April 2023 - 31 March 2024  i) Cash collection from P&D car park machines - estimated 135 boxes per month at 11.33 per box ii) Cash processing - estimated 46,600 per month @ 0.44 per �",Cash Collection Security Service
Wyre Council,http://opendatacommunities.org/doc/district-council/wyre,30/03/2024,People and Places,Parking Services,133F,APCOA Parking UK Ltd,19/03/2024,PE157702,58.88,0.00,"Provide cash collection and processing services for Wyre Council - 1 April 2023 - 31 March 2024  i) Cash collection from P&D car park machines - estimated 135 boxes per month at 11.33 per box ii) Cash processing - estimated 46,600 per month @ 0.44 per �",Cash Collection Security Service
Wyre Council,http://opendatacommunities.org/doc/district-council/wyre,30/03/2024,People and Places,Parking Services,133F,APCOA Parking UK Ltd,19/03/2024,PE157701,69.78,0.00,"Provide cash collection and processing services for Wyre Council - 1 April 2023 - 31 March 2024  i) Cash collection from P&D car park machines - estimated 135 boxes per month at 11.33 per box ii) Cash processing - estimated 46,600 per month @ 0.44 per �",Cash Collection Security Service
Wyre Council,http://opendatacommunities.org/doc/district-council/wyre,30/03/2024,People and Places,Parking Services,133F,APCOA Parking UK Ltd,19/03/2024,PE157720,845.81,0.00,"Provide cash collection and processing services for Wyre Council - 1 April 2023 - 31 March 2024i) Cash collection from P&D car park machines - estimated 135 boxes per month at 11.33 per boxii) Cash processing - estimated 46,600 per month @ 0.44 pe",Cash Collection Security Service
Wyre Council,http://opendatacommunities.org/doc/district-council/wyre,30/03/2024,Resources,Planning and Development Servs,132C,APCOA Parking UK Ltd,08/03/2024,RS157406,42.88,0.00,Bank processing costs @0.41p per 100 for collections from business centres for 2023/2024,Cash Collection Security Service
Wyre Council,http://opendatacommunities.org/doc/district-council/wyre,30/03/2024,Resources,Planning and Development Servs,132C,APCOA Parking UK Ltd,08/03/2024,RS157406,11.33,0.00,Cash collection charges,Cash Collection Security Service
Wyre Council,http://opendatacommunities.org/doc/district-council/wyre,30/03/2024,Resources,Support Services,135B,APCOA Parking UK Ltd,08/03/2024,RS157406,6.07,0.00,Bank processing costs @0.41p per 100 for collections from business centres for 2023/2024,Cash Collection Security Service
Wyre Council,http://opendatacommunities.org/doc/district-council/wyre,30/03/2024,Resources,Support Services,135B,APCOA Parking UK Ltd,08/03/2024,RS157406,22.66,0.00,cash collection charges,Cash Collection Security Service
Wyre Council,http://opendatacommunities.org/doc/district-council/wyre,30/03/2024,People and Places,Support Services,135B,APCOA Parking UK Ltd,21/03/2024,PE157662,-802.12,0.00,cash collection charges credited,Cash Collection Security Service
Wyre Council,http://opendatacommunities.org/doc/district-council/wyre,30/03/2024,People and Places,Support Services,135B,APCOA Parking UK Ltd,21/03/2024,PE156040,802.12,0.00,cash collection charges credited,Cash Collection Security Service
Wyre Council,http://opendatacommunities.org/doc/district-council/wyre,30/03/2024,People and Places,Support Services,135B,APCOA Parking UK Ltd,21/03/2024,PE156039,471.02,0.00,cash collection charges credited,Cash Collection Security Service
Wyre Council,http://opendatacommunities.org/doc/district-council/wyre,30/03/2024,People and Places,Parking Services,133F,APCOA Parking UK Ltd,07/03/2024,PE157399,1110.17,0.00,"Provide cash collection and processing services for Wyre Council - 1 April 2023 - 31 March 2024i) Cash collection from P&D car park machines - estimated 135 boxes per month at 11.33 per boxii) Cash processing - estimated 46,600 per month @ 0.44 pe",Cash Collection Security Service
Wyre Council,http://opendatacommunities.org/doc/district-council/wyre,30/03/2024,People and Places,Parking Services,133F,APCOA Parking UK Ltd,07/03/2024,PE157400,935.59,0.00,"Provide cash collection and processing services for Wyre Council - 1 April 2023 - 31 March 2024i) Cash collection from P&D car park machines - estimated 135 boxes per month at 11.33 per boxii) Cash processing - estimated 46,600 per month @ 0.44 pe",Cash Collection Security Service
Wyre Council,http://opendatacommunities.org/doc/district-council/wyre,30/03/2024,People and Places,Environmental Services,132B,Blackpool Council,27/03/2024,PE158105,2550.46,0.00,FAO: Peter Brown (CCTV)Maintenance of Wyre CCTV Town Centre CCTV Apr2023-Mar2024,CCTV Running Costs
Wyre Council,http://opendatacommunities.org/doc/district-council/wyre,30/03/2024,People and Places,Environmental Services,132B,Blackpool Council,27/03/2024,PE158105,2550.47,0.00,FAO: Peter Brown (CCTV)Maintenance of Wyre CCTV Town Centre CCTV Apr2023-Mar2024,CCTV Running Costs
Wyre Council,http://opendatacommunities.org/doc/district-council/wyre,30/03/2024,People and Places,Environmental Services,132B,Blackpool Council,27/03/2024,PE158105,2550.47,0.00,FAO: Peter Brown (CCTV)Maintenance of Wyre CCTV Town Centre CCTV Apr2023-Mar2024,CCTV Running Costs
Wyre Council,http://opendatacommunities.org/doc/district-council/wyre,30/03/2024,People and Places,Environmental Services,132B,Blackpool Council,27/03/2024,PE158105,2550.47,0.00,FAO: Peter Brown (CCTV)Maintenance of Wyre CCTV Town Centre CCTV Apr2023-Mar2024,CCTV Running Costs
Wyre Council,http://opendatacommunities.org/doc/district-council/wyre,30/03/2024,People and Places,Environmental Services,132B,Blackpool Council,13/03/2024,PE157603,2550.47,0.00,FAO: Peter Brown (CCTV)Maintenance of Wyre CCTV Town Centre CCTV Apr2023-Mar2024,CCTV Running Costs
Wyre Council,http://opendatacommunities.org/doc/district-council/wyre,30/03/2024,People and Places,Environmental Services,132B,Blackpool Council,13/03/2024,PE157603,2550.47,0.00,FAO: Peter Brown (CCTV)Maintenance of Wyre CCTV Town Centre CCTV Apr2023-Mar2024,CCTV Running Costs
Wyre Council,http://opendatacommunities.org/doc/district-council/wyre,30/03/2024,People and Places,Environmental Services,132B,Blackpool Council,13/03/2024,PE157603,2550.46,0.00,FAO: Peter Brown (CCTV)Maintenance of Wyre CCTV Town Centre CCTV Apr2023-Mar2024,CCTV Running Costs
Wyre Council,http://opendatacommunities.org/doc/district-council/wyre,30/03/2024,People and Places,Environmental Services,132B,Blackpool Council,13/03/2024,PE157603,2550.47,0.00,FAO: Peter Brown (CCTV)Maintenance of Wyre CCTV Town Centre CCTV Apr2023-Mar2024,CCTV Running Costs
Wyre Council,http://opendatacommunities.org/doc/district-council/wyre,30/03/2024,People and Places,Environmental Services,132B,Blackpool Council,27/03/2024,PE158104,-2550.47,0.00,FAO: Peter Brown (CCTV)Maintenance of Wyre CCTV Town Centre CCTV Apr2023-Mar2024,CCTV Running Costs
Wyre Council,http://opendatacommunities.org/doc/district-council/wyre,30/03/2024,People and Places,Environmental Services,132B,Blackpool Council,27/03/2024,PE158104,-2550.47,0.00,FAO: Peter Brown (CCTV)Maintenance of Wyre CCTV Town Centre CCTV Apr2023-Mar2024,CCTV Running Costs
Wyre Council,http://opendatacommunities.org/doc/district-council/wyre,30/03/2024,People and Places,Environmental Services,132B,Blackpool Council,27/03/2024,PE158104,-2550.46,0.00,FAO: Peter Brown (CCTV)Maintenance of Wyre CCTV Town Centre CCTV Apr2023-Mar2024,CCTV Running Costs
Wyre Council,http://opendatacommunities.org/doc/district-council/wyre,30/03/2024,People and Places,Environmental Services,132B,Blackpool Council,27/03/2024,PE158104,-2550.47,0.00,FAO: Peter Brown (CCTV)Maintenance of Wyre CCTV Town Centre CCTV Apr2023-Mar2024,CCTV Running Costs
Wyre Council,http://opendatacommunities.org/doc/district-council/wyre,30/03/2024,People and Places,Environmental Services,132B,M D Security,18/03/2024,PE157346,1418.00,0.00,Chatsworth Depot: replace corroded cctv cameras 1 x PTZ 2 x bullet cameras,CCTV Running Costs
Wyre Council,http://opendatacommunities.org/doc/district-council/wyre,30/03/2024,People and Places,Environmental Services,132B,N Power LTD,08/03/2024,PE157332,96.65,0.00,Unmetered Electricity Supply for Town Centre CCTV Cameras - 1-29 Feb 2024,CCTV Running Costs
Wyre Council,http://opendatacommunities.org/doc/district-council/wyre,30/03/2024,People and Places,Environmental Services,132B,N Power LTD,08/03/2024,PE157332,144.95,0.00,Unmetered Electricity Supply for Town Centre CCTV Cameras - 1-29 Feb 2024,CCTV Running Costs
Wyre Council,http://opendatacommunities.org/doc/district-council/wyre,30/03/2024,People and Places,Environmental Services,132B,N Power LTD,08/03/2024,PE157332,16.10,0.00,Unmetered Electricity Supply for Town Centre CCTV Cameras - 1-29 Feb 2024,CCTV Running Costs
Wyre Council,http://opendatacommunities.org/doc/district-council/wyre,30/03/2024,Resources,Support Services,135B,Konica Minolta Business Solutions UK LTD,26/03/2024,RS158042,64.76,0.00,WECP,Central Printer/Copier Expenses
Wyre Council,http://opendatacommunities.org/doc/district-council/wyre,30/03/2024,People and Places,Support Services,135B,Preston City Council,20/03/2024,PE157791,39.75,0.00,530 x 2pp A4 Responsible Dogs Cemetery letters,Central Printer/Copier Expenses
Wyre Council,http://opendatacommunities.org/doc/district-council/wyre,30/03/2024,Resources,Support Services,135B,Key Engineering & Hygiene Supplies LTD,19/03/2024,RS157784,9.24,0.00,BLUE NITRILE POWDER FREE GLOVES MEDIUM,Cleaning Materials
Wyre Council,http://opendatacommunities.org/doc/district-council/wyre,30/03/2024,Resources,Support Services,135B,Key Engineering & Hygiene Supplies LTD,19/03/2024,RS157784,9.24,0.00,BLUE NITRILE GLOVES EXTRA LARGE,Cleaning Materials
Wyre Council,http://opendatacommunities.org/doc/district-council/wyre,30/03/2024,Resources,Support Services,135B,Key Engineering & Hygiene Supplies LTD,06/03/2024,RS157249,18.36,0.00,EAUFRESH NON ACIDIC POT POURRI TOILET CLEANER 1 LTR,Cleaning Materials
Wyre Council,http://opendatacommunities.org/doc/district-council/wyre,30/03/2024,Resources,Support Services,135B,Key Engineering & Hygiene Supplies LTD,06/03/2024,RS157249,15.66,0.00,WASHING UP LIQUID 5 LTR,Cleaning Materials
Wyre Council,http://opendatacommunities.org/doc/district-council/wyre,30/03/2024,Resources,Support Services,135B,Key Engineering & Hygiene Supplies LTD,06/03/2024,RS157249,4.12,0.00,FLORATILE GENERAL PURPOSE  CLEANER 5 LTR,Cleaning Materials
Wyre Council,http://opendatacommunities.org/doc/district-council/wyre,30/03/2024,Resources,Support Services,135B,Key Engineering & Hygiene Supplies LTD,06/03/2024,RS157249,6.38,0.00,KEYPINE GENERAL DISINFECTANT 5LTR,Cleaning Materials
Wyre Council,http://opendatacommunities.org/doc/district-council/wyre,30/03/2024,Resources,Support Services,135B,Key Engineering & Hygiene Supplies LTD,06/03/2024,RS157249,24.58,0.00,BLUE 2 PLY CENTREFEED ROLL 150M X 180MM 410 SHEETS,Cleaning Materials
Wyre Council,http://opendatacommunities.org/doc/district-council/wyre,30/03/2024,Resources,Support Services,135B,Key Engineering & Hygiene Supplies LTD,06/03/2024,RS157249,3.08,0.00,BLUE NITRILE POWDER FREE GLOVES LARGE,Cleaning Materials
Wyre Council,http://opendatacommunities.org/doc/district-council/wyre,30/03/2024,Resources,Support Services,135B,Key Engineering & Hygiene Supplies LTD,06/03/2024,RS157249,263.34,0.00,BLUE INTERFOLD HAND TOWELS 3600 SHEETS,Cleaning Materials
Wyre Council,http://opendatacommunities.org/doc/district-council/wyre,30/03/2024,Resources,Support Services,135B,Key Engineering & Hygiene Supplies LTD,06/03/2024,RS157249,31.84,0.00,11 X 18 X 18 WHITE PEDAL H/DUTY BIN LINER (1000),Cleaning Materials
Wyre Council,http://opendatacommunities.org/doc/district-council/wyre,30/03/2024,Resources,Support Services,135B,Key Engineering & Hygiene Supplies LTD,06/03/2024,RS157249,7.52,0.00,CITRUS FOAM LEMON SOAP 5 LITRE,Cleaning Materials
Wyre Council,http://opendatacommunities.org/doc/district-council/wyre,30/03/2024,Resources,Support Services,135B,Key Engineering & Hygiene Supplies LTD,06/03/2024,RS157249,103.60,0.00,SOFTLUX 3 PLY TOILET ROLL(10 X 4),Cleaning Materials
Wyre Council,http://opendatacommunities.org/doc/district-council/wyre,30/03/2024,Resources,Support Services,135B,Key Engineering & Hygiene Supplies LTD,26/03/2024,RS157009,38.76,0.00,MEDIUM BLACK REFUSE SACK 18X29X34 100G,Cleaning Materials
Wyre Council,http://opendatacommunities.org/doc/district-council/wyre,30/03/2024,Resources,Support Services,135B,Key Engineering & Hygiene Supplies LTD,26/03/2024,RS157009,9.57,0.00,KEYPINE GENERAL DISINFECTANT 5LTR,Cleaning Materials
Wyre Council,http://opendatacommunities.org/doc/district-council/wyre,30/03/2024,Resources,Support Services,135B,Key Engineering & Hygiene Supplies LTD,26/03/2024,RS157009,292.60,0.00,BLUE INTERFOLD HAND TOWELS 3600 SHEETS,Cleaning Materials
Wyre Council,http://opendatacommunities.org/doc/district-council/wyre,30/03/2024,Resources,Support Services,135B,Key Engineering & Hygiene Supplies LTD,26/03/2024,RS157009,103.60,0.00,toilet rolls credited,Cleaning Materials
Wyre Council,http://opendatacommunities.org/doc/district-council/wyre,30/03/2024,Resources,Support Services,135B,Key Engineering & Hygiene Supplies LTD,26/03/2024,RS157009,101.10,0.00,WHITE 2PLY LUXURY TOILET ROLL 320 40 PER PACK,Cleaning Materials
Wyre Council,http://opendatacommunities.org/doc/district-council/wyre,30/03/2024,People and Places,Cultural and Related Services,132A,Key Engineering & Hygiene Supplies LTD,19/03/2024,PE157739,12.29,0.00,6 no Blue towel rolls @11.88,Cleaning Materials
Wyre Council,http://opendatacommunities.org/doc/district-council/wyre,30/03/2024,People and Places,Cultural and Related Services,132A,Key Engineering & Hygiene Supplies LTD,19/03/2024,PE157739,17.40,0.00,ENSURE ALCOHOL BASED SANITISER 5 LITRE,Cleaning Materials
Wyre Council,http://opendatacommunities.org/doc/district-council/wyre,30/03/2024,People and Places,Cultural and Related Services,132A,Key Engineering & Hygiene Supplies LTD,19/03/2024,PE157739,6.48,0.00,EAUFRESH NON ACIDIC APPLE TOILET CLEANER 1 LTR,Cleaning Materials
Wyre Council,http://opendatacommunities.org/doc/district-council/wyre,30/03/2024,People and Places,Cultural and Related Services,132A,Key Engineering & Hygiene Supplies LTD,19/03/2024,PE157739,7.44,0.00,SANTEEM RTU ODOURLESS CLEANER + SANITISER 750ML,Cleaning Materials
Wyre Council,http://opendatacommunities.org/doc/district-council/wyre,30/03/2024,People and Places,Cultural and Related Services,132A,Key Engineering & Hygiene Supplies LTD,05/03/2024,PE157256,13.97,0.00,GREEN 1 PLY INTER-FOLD HAND TOWEL 250L X 190W 3600 SHEETS,Cleaning Materials
Wyre Council,http://opendatacommunities.org/doc/district-council/wyre,30/03/2024,People and Places,Cultural and Related Services,132A,Key Engineering & Hygiene Supplies LTD,05/03/2024,PE157256,42.34,0.00,EXTRA STRONG BLACK REFUSE SACK 18X29X39 180G 90LTR (PER 200),Cleaning Materials
Wyre Council,http://opendatacommunities.org/doc/district-council/wyre,30/03/2024,People and Places,Cultural and Related Services,132A,Key Engineering & Hygiene Supplies LTD,05/03/2024,PE157256,2.54,0.00,BLUE 200GM EXEL PY MOP HEAD ( PUSH FIT),Cleaning Materials
Wyre Council,http://opendatacommunities.org/doc/district-council/wyre,30/03/2024,People and Places,Cultural and Related Services,132A,Key Engineering & Hygiene Supplies LTD,05/03/2024,PE157256,1.27,0.00,RED 200GM EXEL PY MOP HEAD ( PUSH FIT),Cleaning Materials
Wyre Council,http://opendatacommunities.org/doc/district-council/wyre,30/03/2024,People and Places,Cultural and Related Services,132A,Key Engineering & Hygiene Supplies LTD,05/03/2024,PE157256,2.91,0.00,FURNITURE WAX POLISH 400ML,Cleaning Materials
Wyre Council,http://opendatacommunities.org/doc/district-council/wyre,30/03/2024,People and Places,Planning and Development Servs,132C,Key Engineering & Hygiene Supplies LTD,26/03/2024,PE158046,75.72,0.00,"Supply and deliver cleaning products as per quotation 22741Delivery to Wyre Council, Copse Road Depot, Copse Road, Fleetwood, FY7 6RP",Cleaning Materials
Wyre Council,http://opendatacommunities.org/doc/district-council/wyre,30/03/2024,People and Places,Planning and Development Servs,132C,Malcolm McCulloch & Sons LTD,21/03/2024,PE157929,120.00,0.00,10 Centre feed rolls @ 12.00 per pack,Cleaning Materials
Wyre Council,http://opendatacommunities.org/doc/district-council/wyre,30/03/2024,People and Places,Planning and Development Servs,132C,Malcolm McCulloch & Sons LTD,19/03/2024,PE157789,120.00,0.00,10 centre feed rolls,Cleaning Materials
Wyre Council,http://opendatacommunities.org/doc/district-council/wyre,30/03/2024,People and Places,Planning and Development Servs,132C,Malcolm McCulloch & Sons LTD,19/03/2024,PE157789,83.70,0.00,toilet rolls,Cleaning Materials
Wyre Council,http://opendatacommunities.org/doc/district-council/wyre,30/03/2024,Resources,Support Services,135B,Amazon Business,19/03/2024,RS157725,33.32,0.00,BLACK NITRILE MEDIUM GLOVES BOX 1000,Cleaning Materials
Wyre Council,http://opendatacommunities.org/doc/district-council/wyre,30/03/2024,Resources,Support Services,135B,Amazon Business,19/03/2024,RS157790,14.55,0.00,BLACK NITRILE GLOVES EXTRA LARGE,Cleaning Materials
Wyre Council,http://opendatacommunities.org/doc/district-council/wyre,30/03/2024,Resources,Support Services,135B,AVC WISE LTD,25/03/2024,RS158012,454.75,0.00,Invoice No. 107513,Commission Fees Etc.
Wyre Council,http://opendatacommunities.org/doc/district-council/wyre,30/03/2024,Resources,Support Services,135B,AVC WISE LTD,12/03/2024,RS157552,424.12,0.00,Invoice No. 107076,Commission Fees Etc.
Wyre Council,http://opendatacommunities.org/doc/district-council/wyre,30/03/2024,People and Places,Planning and Development Servs,132C,Preston City Council,20/03/2024,PE157793,266.98,0.00,Boards for HAZ project,Community Development Initiatives
Wyre Council,http://opendatacommunities.org/doc/district-council/wyre,30/03/2024,People and Places,Planning and Development Servs,132C,Amazon Business,08/03/2024,PE157409,120.83,0.00,People counter for Heritage Action Zone Exhibition,Community Development Initiatives
Wyre Council,http://opendatacommunities.org/doc/district-council/wyre,30/03/2024,People and Places,Planning and Development Servs,132C,Growth Lancashire Ltd,26/03/2024,PE158058,1155.00,0.00,Conservation Area Appraisal - HS HAZ,Community Development Initiatives
Wyre Council,http://opendatacommunities.org/doc/district-council/wyre,30/03/2024,Resources,Support Services,135B,Konica Minolta Business Solutions UK LTD,21/03/2024,RS157937,94.52,0.00,"x1 PaperCut licence to May 2025One x Card reader retro fitting,  maintenance, installation of the License and configuration.Total Cost : 1,056.76 (+vat)",Comp Hardware Purchases
Wyre Council,http://opendatacommunities.org/doc/district-council/wyre,30/03/2024,Resources,Support Services,135B,Konica Minolta Business Solutions UK LTD,21/03/2024,RS157936,427.68,0.00,"x1 PaperCut licence to May 2025One x Card reader retro fitting,  maintenance, installation of the License and configuration.Total Cost : 1,056.76 (+vat)",Comp Hardware Purchases
Wyre Council,http://opendatacommunities.org/doc/district-council/wyre,30/03/2024,Resources,Support Services,135B,Konica Minolta Business Solutions UK LTD,21/03/2024,RS157935,52.56,0.00,"x1 PaperCut licence to May 2025One x Card reader retro fitting,  maintenance, installation of the License and configuration.Total Cost : 1,056.76 (+vat)",Comp Hardware Purchases
Wyre Council,http://opendatacommunities.org/doc/district-council/wyre,30/03/2024,Resources,Support Services,135B,Konica Minolta Business Solutions UK LTD,21/03/2024,RS157939,392.00,0.00,"x1 PaperCut licence to May 2025One x Card reader retro fitting,  maintenance, installation of the License and configuration.Total Cost : 1,056.76 (+vat)",Comp Hardware Purchases
Wyre Council,http://opendatacommunities.org/doc/district-council/wyre,30/03/2024,Resources,Support Services,135B,Konica Minolta Business Solutions UK LTD,21/03/2024,RS157938,90.00,0.00,"x1 PaperCut licence to May 2025One x Card reader retro fitting,  maintenance, installation of the License and configuration.Total Cost : 1,056.76 (+vat)",Comp Hardware Purchases
Wyre Council,http://opendatacommunities.org/doc/district-council/wyre,30/03/2024,Resources,Support Services,135B,THE NETWORKING PEOPLE (TNP) LTD,20/03/2024,RS157821,1214.17,0.00,FG-VM02V - FortiGate Services: FortiGate-VM02V FortiGate-VM virtual appliance,Comp Hardware Purchases
Wyre Council,http://opendatacommunities.org/doc/district-council/wyre,30/03/2024,Resources,Support Services,135B,THE NETWORKING PEOPLE (TNP) LTD,20/03/2024,RS157821,309.07,0.00,FC-10-FG2VM-248-02-12 - FortiGate Services: FortiGate-VM02V 1 Year FortiCare Premium Support,Comp Hardware Purchases
Wyre Council,http://opendatacommunities.org/doc/district-council/wyre,30/03/2024,Resources,Support Services,135B,THE NETWORKING PEOPLE (TNP) LTD,21/03/2024,RS157880,366.09,0.00, FAP-221E-E - FortiAP: FortiAP-221E Indoor Wireless AP - Dual radio ; internal antennas; 1 x 10/100/1000 RJ45 po 802.11 b/g/n and 802.11 a/n/ac Wave 2; 2x2 MU-MIMO QTY = 3,Comp Hardware Purchases
Wyre Council,http://opendatacommunities.org/doc/district-council/wyre,30/03/2024,Resources,Support Services,135B,THE NETWORKING PEOPLE (TNP) LTD,21/03/2024,RS157880,139.77,0.00,FC-10-PE221-247-02-36 - FortiAP Services: FortiAP-221E 3 Year FortiCare Premium Support QTY = 3,Comp Hardware Purchases
Wyre Council,http://opendatacommunities.org/doc/district-council/wyre,30/03/2024,Resources,Support Services,135B,THE NETWORKING PEOPLE (TNP) LTD,21/03/2024,RS157880,25.00,0.00,Delivery,Comp Hardware Purchases
Wyre Council,http://opendatacommunities.org/doc/district-council/wyre,30/03/2024,Resources,Support Services,135B,THE NETWORKING PEOPLE (TNP) LTD,22/03/2024,RS157999,290.70,0.00,"Sundries including Trunking, Cable and Fixings",Comp Hardware Purchases
Wyre Council,http://opendatacommunities.org/doc/district-council/wyre,30/03/2024,Resources,Support Services,135B,Amazon Business,18/03/2024,RS157706,5.51,0.00,"1 x 0.2 m iPhone Charging Cable Short, 3 Pack Braided USB A to Lightning Cable 20 cm Original iPhone Fast Charging Cable Compatible with Apple iPhone 14 13 12 11 Pro Max Xs Xr X 8 7 6 Plus SE iPad.",Comp Hardware Purchases
Wyre Council,http://opendatacommunities.org/doc/district-council/wyre,30/03/2024,Resources,Support Services,135B,Amazon Business,18/03/2024,RS157717,13.99,0.00,2 x Maxonar USB C Cable Short 20cm/0.2M 2Pack [10Gbps Data] USB3.2 Gen2 Type C Android Auto Cable QC3.0 3.1A USB A to C Fast Charger for Samsung Note20 Galaxy S23/S22/S21 Z Flip 5 Tab S9 Pixel8 OnePlus11.,Comp Hardware Purchases
Wyre Council,http://opendatacommunities.org/doc/district-council/wyre,30/03/2024,Resources,Support Services,135B,Amazon Business,18/03/2024,RS157608,1.42,0.00,1 x LINDY 36730 0.2 m Anthra Line USB 2.0 Type A to Micro-B Cable - Black.,Comp Hardware Purchases
Wyre Council,http://opendatacommunities.org/doc/district-council/wyre,30/03/2024,Resources,Support Services,135B,Amazon Business,18/03/2024,RS157706,72.92,0.00,1 x ADP-240EB B 20V 12A 240W Charger Adapter Compatible for ASUS ROG Strix G15 G513QM G17 G713QM G713QR ROG Strix SCAR 15 G533 17 G733 ROG Zephyrus M16 GU603 Laptop Power Supply.,Comp Hardware Purchases
Wyre Council,http://opendatacommunities.org/doc/district-council/wyre,30/03/2024,Resources,Support Services,135B,Amazon Business,13/03/2024,RS157576,56.16,0.00,"3 x SEYMAC Case for iPad 10th Generation 2022 (10.9 inch), Shockproof Full Body Protective Case with Auto Sleep/Wake Magnetic Smart Cover, Card Slots, Multi-angle Stand, and Pencil Holder - Black.",Computer Stationery and Consumables
Wyre Council,http://opendatacommunities.org/doc/district-council/wyre,30/03/2024,Resources,Support Services,135B,Amazon Business,13/03/2024,RS157576,26.58,0.00,"2 x SEYMCY for iPad 10th Generation Case 10.9 inch 2022, 3 Layer Full Body Drop Shockproof Case with Folding Stand, Screen Protector, Pencil Holder, iPad 10th Gen Case A2696/A2757/A2777, Black.",Computer Stationery and Consumables
Wyre Council,http://opendatacommunities.org/doc/district-council/wyre,30/03/2024,Resources,Support Services,135B,Amazon Business,12/03/2024,RS157509,13.05,0.00,"1 x Amazon Basics Compact Laptop Shoulder Bag Carrying case with Accessory Storage Pockets (17.3 inch - 44 cm), Black, 1-Pack.",Computer Stationery and Consumables
Wyre Council,http://opendatacommunities.org/doc/district-council/wyre,30/03/2024,Resources,Support Services,135B,Amazon Business,18/03/2024,RS157706,11.66,0.00,1 x Alex Tech 10ft - 1 inch Cord Protector Wire Loom Tubing Cable Sleeve Split Sleeving for USB Cable Power Cord Audio Video Cable � Protect Cat from Chewing Cords - White.,Computer Stationery and Consumables
Wyre Council,http://opendatacommunities.org/doc/district-council/wyre,30/03/2024,Resources,Support Services,135B,Amazon Business,18/03/2024,RS157706,7.74,0.00,"2 x Haus Projekt Reusable Cable Ties, 100 x Black 150x12mm Adjustable Hook and Loop Cable Management Straps, Cable Tidy Under Desk Organiser, Garden Tree Plant Tie Wraps, Cable Straps, PC, TV Wire Tidy.",Computer Stationery and Consumables
Wyre Council,http://opendatacommunities.org/doc/district-council/wyre,30/03/2024,People and Places,Cultural and Related Services,132A,BOSTON SEEDS,13/03/2024,PE157582,645.83,0.00,1 5kg wildflower seed mix.,Conservation
Wyre Council,http://opendatacommunities.org/doc/district-council/wyre,30/03/2024,People and Places,Planning and Development Servs,132C,Tameside Metropolitan Borough Council,27/03/2024,PE157718,9118.00,0.00,Provision of ecological advice from Tameside Metropolitan Council (GMEU) April 23 - March 24,Consultants Fees
Wyre Council,http://opendatacommunities.org/doc/district-council/wyre,30/03/2024,People and Places,Planning and Development Servs,132C,Arcadis Consulting (UK) LTD,26/03/2024,PE158043,4980.00,0.00,Local plan full review consultancy fees,Consultants Fees
Wyre Council,http://opendatacommunities.org/doc/district-council/wyre,30/03/2024,Resources,Central Services to the Public,131C,Inform CPI,13/03/2024,RS157427,480.00,0.00,Analyse local - 7 Holly Road Thornton,Consultants Fees
Wyre Council,http://opendatacommunities.org/doc/district-council/wyre,30/03/2024,Resources,Central Services to the Public,131C,Inform CPI,08/03/2024,RS157428,7500.00,0.00,Analyse LOCAL systems and services,Consultants Fees
Wyre Council,http://opendatacommunities.org/doc/district-council/wyre,30/03/2024,People and Places,Environmental Services,132B,PS Research Ltd,19/03/2024,PE157787,3125.00,0.00,Climate Change Strategy Consultation,Consultants Fees
Wyre Council,http://opendatacommunities.org/doc/district-council/wyre,30/03/2024,Resources,Support Services,135B,THE NETWORKING PEOPLE (TNP) LTD,22/03/2024,RS157999,5800.00,0.00,Professional Services Days for configuration and installation,Consultants Fees
Wyre Council,http://opendatacommunities.org/doc/district-council/wyre,30/03/2024,People and Places,Planning and Development Servs,132C,Growth Lancashire Ltd,25/03/2024,PE158013,3406.25,0.00,"The production of six conservation area appraisals and management plans.Planning policy 10k - 3591/42612Remainder (ED) 17,250  3778/45273",Consultants Fees
Wyre Council,http://opendatacommunities.org/doc/district-council/wyre,30/03/2024,People and Places,Environmental Services,132B,Bloom Procurement Services Ltd,27/03/2024,PE158111,48475.00,0.00,Preparation of Heat Decarbonisation Plans EvaluationPart of Low Carbon Skills Fund Grant,Consultants Fees
Wyre Council,http://opendatacommunities.org/doc/district-council/wyre,30/03/2024,People and Places,Environmental Services,132B,Bloom Procurement Services Ltd,05/03/2024,PE157287,48475.00,0.00,Preparation of Heat Decarbonisation Plans EvaluationPart of Low Carbon Skills Fund Grant,Consultants Fees
Wyre Council,http://opendatacommunities.org/doc/district-council/wyre,30/03/2024,People and Places,"Cultural, Environ and Planning",137B,Susannah Bleakley Consulting,13/03/2024,PE157410,5794.05,0.00,Community Engagement,Consultants Fees (New CCR)
Wyre Council,http://opendatacommunities.org/doc/district-council/wyre,30/03/2024,People and Places,Support Services,135B,Blackpool Skip Hire LTD,13/03/2024,PE157578,225.00,0.00,Empty skip  Fleetwood Cemetery  7/3/24,Containers Skips and Hire
Wyre Council,http://opendatacommunities.org/doc/district-council/wyre,30/03/2024,People and Places,Environmental Services,132B,Blackpool Skip Hire LTD,22/03/2024,PE157949,225.00,0.00,Empty 8yrd skip at Copse Road Depot*rubber wheels only*,Containers Skips and Hire
Wyre Council,http://opendatacommunities.org/doc/district-council/wyre,30/03/2024,People and Places,Support Services,135B,Blackpool Skip Hire LTD,07/03/2024,PE157401,160.00,0.00,Skip empty Preesall Cemetery  29/2/24,Containers Skips and Hire
Wyre Council,http://opendatacommunities.org/doc/district-council/wyre,30/03/2024,People and Places,"Cultural, Environ and Planning",137B,M J Wilkinson,08/03/2024,PE157414,168.88,0.00,Hitachi ZX26 Excavator11/12/23 Time sheet 111648hrs @ 21.11 per hour,Contract (New CCR)
Wyre Council,http://opendatacommunities.org/doc/district-council/wyre,30/03/2024,People and Places,"Cultural, Environ and Planning",137B,M J Wilkinson,08/03/2024,PE157414,316.80,0.00,Labour Time sheet 1116424 hrs @ 13.20 per hour 12/12/23 - 14/12/23,Contract (New CCR)
Wyre Council,http://opendatacommunities.org/doc/district-council/wyre,30/03/2024,People and Places,"Cultural, Environ and Planning",137B,M J Wilkinson,08/03/2024,PE157414,26.41,0.00,Delivery charge,Contract (New CCR)
Wyre Council,http://opendatacommunities.org/doc/district-council/wyre,30/03/2024,People and Places,"Cultural, Environ and Planning",137B,M J Wilkinson,08/03/2024,PE157414,26.41,0.00,Collection charge,Contract (New CCR)
Wyre Council,http://opendatacommunities.org/doc/district-council/wyre,30/03/2024,People and Places,"Cultural, Environ and Planning",137B,Fitzpatrick Woolmer Design & Publishing Ltd,20/03/2024,PE157856,6314.00,0.00,2 x Notice boards (Bowman Option C Combination Display Single Sided -Header Board Ready) Plus art work for interpretation,Contract (New CCR)
Wyre Council,http://opendatacommunities.org/doc/district-council/wyre,30/03/2024,People and Places,"Cultural, Environ and Planning",137B,Traffic Technology Ltd,21/03/2024,PE157911,10080.00,0.00,3 x people counters for the Stanah gateway project,Contract (New CCR)
Wyre Council,http://opendatacommunities.org/doc/district-council/wyre,30/03/2024,People and Places,"Cultural, Environ and Planning",137B,Hartlington Fencing Supplies Ltd,21/03/2024,PE157941,840.00,0.00,3 finger posts for the Stanah gate way project,Contract (New CCR)
Wyre Council,http://opendatacommunities.org/doc/district-council/wyre,30/03/2024,People and Places,"Cultural, Environ and Planning",137B,Balfour Beatty Civil Engineering Ltd,21/03/2024,PE157895,1652978.63,0.00,"FAO Chloe SumnerBalfour Beatty Civil Engineering LtdChaddock Lane WorsleyManchesterM28 1XYWyre Beach Management Scheme Phase 2 � Construction Works.Cost 35,601,957.69Carl Green / Mike Wilkinson",Contract (New CCR)
Wyre Council,http://opendatacommunities.org/doc/district-council/wyre,30/03/2024,People and Places,"Cultural, Environ and Planning",137B,GARRY CARR BUILDING SERVICES LTD,20/03/2024,PE157813,2513.00,0.00,"Provision of replacement flooring to proposed CCTV Control Room, Civic Centre, Breck Road, Poulton - carpet tiles",Contract (New CCR)
Wyre Council,http://opendatacommunities.org/doc/district-council/wyre,30/03/2024,People and Places,"Cultural, Environ and Planning",137B,GARRY CARR BUILDING SERVICES LTD,20/03/2024,PE157812,1045.00,0.00,"Decoration of proposed CCTV Room - Civic Centre, Breck Road, Poulton-le-Fylde",Contract (New CCR)
Wyre Council,http://opendatacommunities.org/doc/district-council/wyre,30/03/2024,People and Places,Planning and Development Servs,132C,Blackburn With Darwen Borough Council,27/03/2024,PE158094,1775.00,0.00,Evolutive licence covering Jan 2024 - Dec 2024,Corporate and Professional Subscriptions
Wyre Council,http://opendatacommunities.org/doc/district-council/wyre,30/03/2024,Resources,Support Services,135B,CREDITSAFE BUSINESS SOLUTIONS LIMITED,04/03/2024,RS157244,2499.00,0.00,24 months subscription to Creditsafe credit checking system. Authorised by C.James- 2499 per annum + VAT,Corporate and Professional Subscriptions
Wyre Council,http://opendatacommunities.org/doc/district-council/wyre,30/03/2024,Resources,Support Services,135B,Bill Rogerson Safety Services LTD,13/03/2024,RS157605,200.00,0.00,"To deliver working at height, ladder and steps training, 26 February 1/2 day session start time 8.30 >10 operatives",Corporate Training - Health and Safety
Wyre Council,http://opendatacommunities.org/doc/district-council/wyre,30/03/2024,Resources,Support Services,135B,Bill Rogerson Safety Services LTD,19/03/2024,RS157726,600.00,0.00,"To provide Manual Handling training x 2 sessions 7 March and 1 x session 14 March> 10 delegates per session.  To be delivered at your premises. 8.30 morning start, 12.30 afternoon start",Corporate Training - Health and Safety
Wyre Council,http://opendatacommunities.org/doc/district-council/wyre,30/03/2024,Finance,Current Assets,130B,,26/03/2024,WPST00136698,18948.69,0.00,22/03/2024 Ctax Refunds,Council Tax Refunds
Wyre Council,http://opendatacommunities.org/doc/district-council/wyre,30/03/2024,Finance,Current Assets,130B,,19/03/2024,WPST00136020,12767.14,0.00,15/03/24 Ctax Refunds,Council Tax Refunds
Wyre Council,http://opendatacommunities.org/doc/district-council/wyre,30/03/2024,Finance,Current Assets,130B,,12/03/2024,WPST00135599,15434.85,0.00,08/03/24 C/tax Refunds,Council Tax Refunds
Wyre Council,http://opendatacommunities.org/doc/district-council/wyre,30/03/2024,Finance,Current Assets,130B,,04/03/2024,WPST00134818,17029.19,0.00,29/02/24 Ctax Refunds,Council Tax Refunds
Wyre Council,http://opendatacommunities.org/doc/district-council/wyre,30/03/2024,Finance,Current Assets,130B,,29/03/2024,WPST00137293,22437.20,0.00,28/03/24 Ctax REfunds,Council Tax Refunds
Wyre Council,http://opendatacommunities.org/doc/district-council/wyre,30/03/2024,Resources,Cultural and Related Services,132A,Preston City Council,20/03/2024,RS157792,16.75,0.00,Creative Wellbeing - Over Wyre arts sessions150 x A5 1pp3 x A4 1pp,Creative People and Places Contribution
Wyre Council,http://opendatacommunities.org/doc/district-council/wyre,30/03/2024,People and Places,Cultural and Related Services,132A,Gambolling Arena Theatre Company,13/03/2024,PE157569,1550.00,0.00,"For the delivery of 5 x shows of the Big Friendly Giant at Stalmine on 16th February and Scorton on 17th February 2024.  Fee 1,500",Creative People and Places Contribution
Wyre Council,http://opendatacommunities.org/doc/district-council/wyre,30/03/2024,People and Places,Cultural and Related Services,132A,Amazon Business,25/03/2024,PE158015,22.49,0.00,"Sound Level Meter, Tadeto Digital Sound Level Portable Decibel Meter 30dB to 130dB with LCD Display A/C Weighted for Home FactoriesVisit the Tadeto StorePrice:24.99 excl. VAT29.99 incl. VAT",Creative People and Places Contribution
Wyre Council,http://opendatacommunities.org/doc/district-council/wyre,30/03/2024,People and Places,Cultural and Related Services,132A,Amazon Business,20/03/2024,PE157826,22.49,0.00,"Tlingt Support Mic Stand, Portable Microphone Boom Stand with Telescopic Boom Arm, Deluxe Waterproof Protection Bag for Storage and Travel, Easy Carrying.  22.99TONOR Dynamic Vocal Microphone for Singing, Handheld Wired Karaoke Microfono, Cardioid St",Creative People and Places Contribution
Wyre Council,http://opendatacommunities.org/doc/district-council/wyre,30/03/2024,People and Places,Cultural and Related Services,132A,Amazon Business,20/03/2024,PE157854,29.15,0.00,"Tlingt Support Mic Stand, Portable Microphone Boom Stand with Telescopic Boom Arm, Deluxe Waterproof Protection Bag for Storage and Travel, Easy Carrying.  22.99TONOR Dynamic Vocal Microphone for Singing, Handheld Wired Karaoke Microfono, Cardioid St",Creative People and Places Contribution
Wyre Council,http://opendatacommunities.org/doc/district-council/wyre,30/03/2024,People and Places,Support Services,135B,EK Motors Factors LTD,25/03/2024,PE157982,78.00,0.00,Parts,Daywork Materials (Excl.Tyres)
Wyre Council,http://opendatacommunities.org/doc/district-council/wyre,30/03/2024,People and Places,Environmental Services,132B,EK Motors Factors LTD,25/03/2024,PE157974,44.46,0.00,Parts,Daywork Materials (Excl.Tyres)
Wyre Council,http://opendatacommunities.org/doc/district-council/wyre,30/03/2024,People and Places,Support Services,135B,EK Motors Factors LTD,25/03/2024,PE157976,20.72,0.00,Parts,Daywork Materials (Excl.Tyres)
Wyre Council,http://opendatacommunities.org/doc/district-council/wyre,30/03/2024,People and Places,Support Services,135B,EK Motors Factors LTD,25/03/2024,PE157979,160.32,0.00,Parts,Daywork Materials (Excl.Tyres)
Wyre Council,http://opendatacommunities.org/doc/district-council/wyre,30/03/2024,People and Places,Support Services,135B,EK Motors Factors LTD,25/03/2024,PE157978,158.80,0.00,Parts,Daywork Materials (Excl.Tyres)
Wyre Council,http://opendatacommunities.org/doc/district-council/wyre,30/03/2024,People and Places,Support Services,135B,EK Motors Factors LTD,25/03/2024,PE157977,53.96,0.00,Parts,Daywork Materials (Excl.Tyres)
Wyre Council,http://opendatacommunities.org/doc/district-council/wyre,30/03/2024,People and Places,Support Services,135B,EK Motors Factors LTD,25/03/2024,PE157975,14.56,0.00,Parts,Daywork Materials (Excl.Tyres)
Wyre Council,http://opendatacommunities.org/doc/district-council/wyre,30/03/2024,People and Places,Environmental Services,132B,EK Motors Factors LTD,13/03/2024,PE157596,55.46,0.00,Parts,Daywork Materials (Excl.Tyres)
Wyre Council,http://opendatacommunities.org/doc/district-council/wyre,30/03/2024,People and Places,Environmental Services,132B,EK Motors Factors LTD,13/03/2024,PE157595,49.50,0.00,Parts,Daywork Materials (Excl.Tyres)
Wyre Council,http://opendatacommunities.org/doc/district-council/wyre,30/03/2024,People and Places,Environmental Services,132B,EK Motors Factors LTD,13/03/2024,PE157596,55.46,0.00,Parts,Daywork Materials (Excl.Tyres)
Wyre Council,http://opendatacommunities.org/doc/district-council/wyre,30/03/2024,People and Places,Environmental Services,132B,EK Motors Factors LTD,13/03/2024,PE157597,118.32,0.00,Parts,Daywork Materials (Excl.Tyres)
Wyre Council,http://opendatacommunities.org/doc/district-council/wyre,30/03/2024,People and Places,Support Services,135B,FR Sharrock LTD,22/03/2024,PE157775,1238.55,0.00,Parts,Daywork Materials (Excl.Tyres)
Wyre Council,http://opendatacommunities.org/doc/district-council/wyre,30/03/2024,People and Places,Support Services,135B,FR Sharrock LTD,21/03/2024,PE157774,810.23,0.00,Parts,Daywork Materials (Excl.Tyres)
Wyre Council,http://opendatacommunities.org/doc/district-council/wyre,30/03/2024,People and Places,Support Services,135B,FR Sharrock LTD,08/03/2024,PE157196,179.14,0.00,Parts for sweeper V142,Daywork Materials (Excl.Tyres)
Wyre Council,http://opendatacommunities.org/doc/district-council/wyre,30/03/2024,People and Places,Support Services,135B,FR Sharrock LTD,08/03/2024,PE157196,17.71,0.00,Parts for hedge trimmer,Daywork Materials (Excl.Tyres)
Wyre Council,http://opendatacommunities.org/doc/district-council/wyre,30/03/2024,People and Places,Environmental Services,132B,Chris Allen Garages LTD,21/03/2024,PE157930,119.19,0.00,Hose Assy Part P F2649112,Daywork Materials (Excl.Tyres)
Wyre Council,http://opendatacommunities.org/doc/district-council/wyre,30/03/2024,People and Places,Environmental Services,132B,Chris Allen Garages LTD,01/03/2024,PE157213,35.54,0.00,CHECK ASSY - DOOR,Daywork Materials (Excl.Tyres)
Wyre Council,http://opendatacommunities.org/doc/district-council/wyre,30/03/2024,People and Places,Environmental Services,132B,Chris Allen Garages LTD,13/03/2024,PE157602,78.94,0.00,Lock Assy,Daywork Materials (Excl.Tyres)
Wyre Council,http://opendatacommunities.org/doc/district-council/wyre,30/03/2024,People and Places,Environmental Services,132B,Chris Allen Garages LTD,13/03/2024,PE157601,408.90,0.00,Column Assy,Daywork Materials (Excl.Tyres)
Wyre Council,http://opendatacommunities.org/doc/district-council/wyre,30/03/2024,People and Places,Support Services,135B,Amazon Business,06/03/2024,PE157194,60.67,0.00,Lastoflex bungee cord,Daywork Materials (Excl.Tyres)
Wyre Council,http://opendatacommunities.org/doc/district-council/wyre,30/03/2024,People and Places,Support Services,135B,Amazon Business,07/03/2024,PE156887,12.16,0.00,Coil spring Gary Scott,Daywork Materials (Excl.Tyres)
Wyre Council,http://opendatacommunities.org/doc/district-council/wyre,30/03/2024,People and Places,Environmental Services,132B,Hako Machines Limited,08/03/2024,PE157175,641.68,0.00,Suction hose for sweeper,Daywork Materials (Excl.Tyres)
Wyre Council,http://opendatacommunities.org/doc/district-council/wyre,30/03/2024,Resources,Support Services,135B,Experian Ltd,12/03/2024,RS157512,2161.66,0.00,CV Plus - Manual invoice - annual bill one off,Debtor Tracing
Wyre Council,http://opendatacommunities.org/doc/district-council/wyre,30/03/2024,People and Places,Cultural and Related Services,132A,Melrose Development Services Ltd,19/03/2024,PE157584,4817.83,0.00,Marsh Mill Dilapidation Fees Jubb Clews and Napthens Fees,Dilapidations Work
Wyre Council,http://opendatacommunities.org/doc/district-council/wyre,30/03/2024,People and Places,Environmental Services,132B,RENTOKIL INITIAL UK LTD,06/03/2024,PE156759,133.85,0.00,Clinical waste collection and disposal services to Wyre domestic customers.  To include provision of containers for financial year 2023/24,Disposal Costs Hazardous Waste
Wyre Council,http://opendatacommunities.org/doc/district-council/wyre,30/03/2024,People and Places,Cultural and Related Services,132A,Carlsberg UK LTD,06/03/2024,PE157187,388.90,0.00,Marine Hall bar stock,Drinks
Wyre Council,http://opendatacommunities.org/doc/district-council/wyre,30/03/2024,People and Places,Cultural and Related Services,132A,Carlsberg UK LTD,06/03/2024,PE157137,123.12,0.00,Marine Hall bar stock,Drinks
Wyre Council,http://opendatacommunities.org/doc/district-council/wyre,30/03/2024,People and Places,Cultural and Related Services,132A,Carlsberg UK LTD,06/03/2024,PE156873,540.28,0.00,Marine Hall bar stock,Drinks
Wyre Council,http://opendatacommunities.org/doc/district-council/wyre,30/03/2024,People and Places,Cultural and Related Services,132A,L W C Drinks LTD,06/03/2024,PE157351,675.60,0.00,Marine Hall Bar stock,Drinks
Wyre Council,http://opendatacommunities.org/doc/district-council/wyre,30/03/2024,Resources,Current Assets,130B,Print Image Network LTD,05/03/2024,RS157271,40636.44,0.00,Wyre 2024 PCC Poll Card Postage,Elect. - Poll Cards
Wyre Council,http://opendatacommunities.org/doc/district-council/wyre,30/03/2024,Resources,Current Assets,130B,Print Image Network LTD,18/03/2024,RS157604,4509.70,0.00,Payment of postage for issue of poll cards - PCC elections  2 May 2024,Elect. - Poll Cards
Wyre Council,http://opendatacommunities.org/doc/district-council/wyre,30/03/2024,People and Places,Current Assets,130B,Amazon Business,12/03/2024,PE157555,-11.58,0.00,Batteries Elections,Elect. - Polling Stations
Wyre Council,http://opendatacommunities.org/doc/district-council/wyre,30/03/2024,People and Places,Current Assets,130B,Amazon Business,26/03/2024,PE158003,11.58,0.00,Batteries  Elections,Elect. - Polling Stations
Wyre Council,http://opendatacommunities.org/doc/district-council/wyre,30/03/2024,People and Places,Current Assets,130B,Amazon Business,12/03/2024,PE157566,13.08,0.00,Batteries  Elections,Elect. - Polling Stations
Wyre Council,http://opendatacommunities.org/doc/district-council/wyre,30/03/2024,People and Places,Current Assets,130B,Amazon Business,12/03/2024,PE157555,11.58,0.00,Batteries Elections,Elect. - Polling Stations
Wyre Council,http://opendatacommunities.org/doc/district-council/wyre,30/03/2024,People and Places,Current Assets,130B,Amazon Business,12/03/2024,PE157554,15.50,0.00,2 First aid kits,Elect. - Polling Stations
Wyre Council,http://opendatacommunities.org/doc/district-council/wyre,30/03/2024,People and Places,Current Assets,130B,Amazon Business,21/03/2024,PE157886,25.06,0.00,2 x first aid kit,Elect. - Polling Stations
Wyre Council,http://opendatacommunities.org/doc/district-council/wyre,30/03/2024,People and Places,Cultural and Related Services,132A,N Power LTD,12/03/2024,PE157425,1619.46,0.00,Electricity Charges for Garstang Swimming Pool for the period 01/02/24 to 29/02/24 - 6203.100 kWh used,Electricity
Wyre Council,http://opendatacommunities.org/doc/district-council/wyre,30/03/2024,People and Places,Cultural and Related Services,132A,N Power LTD,12/03/2024,PE157423,7284.26,0.00,Electricity Charges for Fleetwood Leisure Centre for the period 01/02/24 to 29/02/24 - 29611.200 kWh used,Electricity
Wyre Council,http://opendatacommunities.org/doc/district-council/wyre,30/03/2024,People and Places,Cultural and Related Services,132A,N Power LTD,12/03/2024,PE157424,7138.77,0.00,Electricity Charges for Thornton YMCA for the period 01/02/24 to 29/02/24 - 26474.200 kWh used,Electricity
Wyre Council,http://opendatacommunities.org/doc/district-council/wyre,30/03/2024,People and Places,Cultural and Related Services,132A,N Power LTD,12/03/2024,PE157412,1178.43,0.00,Electricity Charges for Garstang YMCA for the period 01/02/24 to 29/02/24 - 3902.400 kWh used,Electricity
Wyre Council,http://opendatacommunities.org/doc/district-council/wyre,30/03/2024,People and Places,Cultural and Related Services,132A,N Power LTD,12/03/2024,PE157426,3838.24,0.00,Electricity charges for Poulton Swimming & Fitness for the period 01/02/24 to 29/02/24 - 13213.600 kWh used,Electricity
Wyre Council,http://opendatacommunities.org/doc/district-council/wyre,30/03/2024,People and Places,Environmental Services,132B,N Power LTD,07/03/2024,PE157335,324.59,0.00,1610036002846 unmetered supply lighting 01/02/24 to 29/02/24 (975.46kWh),Electricity
Wyre Council,http://opendatacommunities.org/doc/district-council/wyre,30/03/2024,People and Places,Environmental Services,132B,N Power LTD,07/03/2024,PE157334,8.94,0.00,"1610036002855 unmetered supply, Civic Centre, 01/02/24 to 29/02/24 (1.28kWh)",Electricity
Wyre Council,http://opendatacommunities.org/doc/district-council/wyre,30/03/2024,People and Places,Parking Services,133F,N Power LTD,07/03/2024,PE157334,50.17,0.00,"1610036002855 unmetered supply, Civic Centre, 01/02/24 to 29/02/24(7.22kWh)",Electricity
Wyre Council,http://opendatacommunities.org/doc/district-council/wyre,30/03/2024,People and Places,Parking Services,133F,N Power LTD,07/03/2024,PE157335,1820.37,0.00,1610036002846 unmetered supply lighting 01/02/24 to 29/02/24(5470.64kWh),Electricity
Wyre Council,http://opendatacommunities.org/doc/district-council/wyre,30/03/2024,People and Places,Parking Services,133F,N Power LTD,07/03/2024,PE157333,479.08,0.00,162000821031 unmetered supply lighting 01/02/24 to 29/02/24 (1335.1 kWh),Electricity
Wyre Council,http://opendatacommunities.org/doc/district-council/wyre,30/03/2024,People and Places,Cultural and Related Services,132A,OPUS Energy LTD,20/03/2024,PE155982,142.49,0.00,"1610004742431 Visitors Centre, River Road, Thornton Cleveleys FY5 5LR01/12/23-31/12/23681.00 kWh",Electricity
Wyre Council,http://opendatacommunities.org/doc/district-council/wyre,30/03/2024,People and Places,Cultural and Related Services,132A,OPUS Energy LTD,20/03/2024,PE155202,139.68,0.00,"1610004742431 Visitors Centre, River Road, Thornton Cleveleys FY5 5LR01-11-23 to 30-11-23668.00E",Electricity
Wyre Council,http://opendatacommunities.org/doc/district-council/wyre,30/03/2024,People and Places,Environmental Services,132B,OPUS Energy LTD,22/03/2024,PE157679,217.68,0.00,"16100047442413 Stanah Pumphouse 11, River  Road, Thornton Cleveleys FY5 5LR 01/02/2024-29/02/2024(641kWh) E",Electricity
Wyre Council,http://opendatacommunities.org/doc/district-council/wyre,30/03/2024,People and Places,Cultural and Related Services,132A,OPUS Energy LTD,22/03/2024,PE157680,6.12,0.00,"1610004742431 Visitors Centre, River Road,  Thornton Cleveleys FY5 5LR 01/02/2024-29/02/2024(0kWh)",Electricity
Wyre Council,http://opendatacommunities.org/doc/district-council/wyre,30/03/2024,People and Places,Cultural and Related Services,132A,OPUS Energy LTD,22/03/2024,PE157678,2002.13,0.00,1610004742404 River Road Thornton Cleveleys  FY5 5LR 01/02/2024-29/02/2024(7194kWh) E/A,Electricity
Wyre Council,http://opendatacommunities.org/doc/district-council/wyre,30/03/2024,People and Places,Cultural and Related Services,132A,OPUS Energy LTD,22/03/2024,PE157683,373.05,0.00,"1640000960322 The Mount Lodge, The  Esplanade, Fleetwood FY7 6EZ 01/02/2024-29/02/2024(1307.6kWh) A",Electricity
Wyre Council,http://opendatacommunities.org/doc/district-council/wyre,30/03/2024,People and Places,Environmental Services,132B,OPUS Energy LTD,22/03/2024,PE157682,82.77,0.00,"1610023232505 Public Conveniences, High  Street Car Park, Garstang PR3 1FA  01/02/2024-29/02/2024(155.39kWh) A",Electricity
Wyre Council,http://opendatacommunities.org/doc/district-council/wyre,30/03/2024,People and Places,Environmental Services,132B,OPUS Energy LTD,22/03/2024,PE157676,633.69,0.00,"1610004665168 Public Conveniences,  Cleveleys Bus Station, Rough Lea Road FY5 1BW 01/02/2024-29/02/2024(770kWh) E",Electricity
Wyre Council,http://opendatacommunities.org/doc/district-council/wyre,30/03/2024,People and Places,Environmental Services,132B,OPUS Energy LTD,22/03/2024,PE157671,381.28,0.00,1610004313728 Queensway Public Conveniences  Teanlowe Centre Poulton FY6 7DF 01/02/2024-29/02/2024(1234kWh) E,Electricity
Wyre Council,http://opendatacommunities.org/doc/district-council/wyre,30/03/2024,People and Places,Environmental Services,132B,OPUS Energy LTD,22/03/2024,PE157675,19.78,0.00,"1610004421200 New Lane Pumping Station  2,New Lane, Thornton FY5 5NH 01/02/2024-29/02/2024(27kWh) E",Electricity
Wyre Council,http://opendatacommunities.org/doc/district-council/wyre,30/03/2024,People and Places,Environmental Services,132B,OPUS Energy LTD,22/03/2024,PE157674,43.33,0.00,"1610004421042 New Lane Pumping Station 1,  New Lane Thornton Cleveleys FY5 5NS  01/02/2024-29/02/2024(9kWh) E",Electricity
Wyre Council,http://opendatacommunities.org/doc/district-council/wyre,30/03/2024,People and Places,Central Services to the Public,131C,OPUS Energy LTD,25/03/2024,PE156709,16.30,0.00,"Electricity charges for 1630000861704 North Promenade Kiosk, Childrens Corner, Thornton Cleveleys FY5 1DB01/01/24-31/01/240.00 kWh used",Electricity
Wyre Council,http://opendatacommunities.org/doc/district-council/wyre,30/03/2024,People and Places,Central Services to the Public,131C,OPUS Energy LTD,25/03/2024,PE156703,246.43,0.00,"Electricity charges for 16100047442413 Stanah Pumphouse 11, River Road, Thornton Cleveleys FY5 5LR01/01/24-31/01/24735.00 kWh used",Electricity
Wyre Council,http://opendatacommunities.org/doc/district-council/wyre,30/03/2024,People and Places,Cultural and Related Services,132A,OPUS Energy LTD,22/03/2024,PE157669,-921.61,0.00,"1610004773866 Thornton Little Theatre, Fleetwood Road Thornton FY5 4AD  01/01/2024-31/01/2024(-2924kWh)",Electricity
Wyre Council,http://opendatacommunities.org/doc/district-council/wyre,30/03/2024,People and Places,Environmental Services,132B,OPUS Energy LTD,22/03/2024,PE157685,-555.38,0.00,"1610004347328 Garstang Road East Cemetery, Garstang Road East, Poulton FY6 7SN  01/01/2024-31/01/2024(-2210kWh)",Electricity
Wyre Council,http://opendatacommunities.org/doc/district-council/wyre,30/03/2024,People and Places,Environmental Services,132B,OPUS Energy LTD,22/03/2024,PE157686,-738.06,0.00,"1610004347328 Garstang Road East Cemetery, Garstang Road East, Poulton FY6 7SN  01/12/2023-31/12/2023(-2694kWh)",Electricity
Wyre Council,http://opendatacommunities.org/doc/district-council/wyre,30/03/2024,People and Places,Environmental Services,132B,OPUS Energy LTD,22/03/2024,PE157687,-732.89,0.00,"1610004347328 Garstang Road East Cemetery, Garstang Road East, Poulton FY6 7SN  01/11/2023-30/11/2023(-2674kWh)",Electricity
Wyre Council,http://opendatacommunities.org/doc/district-council/wyre,30/03/2024,People and Places,Environmental Services,132B,OPUS Energy LTD,22/03/2024,PE157688,-633.32,0.00,"1610004347328 Garstang Road East Cemetery, Garstang Road East, Poulton FY6 7SN  01/10/2023-31/10/2023(-2204kWh)",Electricity
Wyre Council,http://opendatacommunities.org/doc/district-council/wyre,30/03/2024,People and Places,Cultural and Related Services,132A,OPUS Energy LTD,22/03/2024,PE157677,72.19,0.00,"1610004724089 North Drive Pavilion, North  Drive, Thornton FY5 2QD 01/02/2024-29/02/2024(217kWh) A",Electricity
Wyre Council,http://opendatacommunities.org/doc/district-council/wyre,30/03/2024,People and Places,Cultural and Related Services,132A,OPUS Energy LTD,22/03/2024,PE157672,45.45,0.00,"1610004318841 Jean Stansfield Bowling  Green, Vicarage Road Poulton FY6 7BE 01/02/2024-29/02/2024(120kWh) E",Electricity
Wyre Council,http://opendatacommunities.org/doc/district-council/wyre,30/03/2024,People and Places,Environmental Services,132B,OPUS Energy LTD,22/03/2024,PE157690,1436.11,0.00,"1610004347328 Garstang Road East Cemetery,  Garstang Road East, Poulton FY6 7SN  01/10/2023-29/02/2024(6477kWh) A",Electricity
Wyre Council,http://opendatacommunities.org/doc/district-council/wyre,30/03/2024,People and Places,Cultural and Related Services,132A,OPUS Energy LTD,22/03/2024,PE157681,123.48,0.00,"1610004863632 Beach Bungalows, The  Esplanade, Fleetwood FY7 6QD  01/02/2024-29/02/2024(396kWh) E",Electricity
Wyre Council,http://opendatacommunities.org/doc/district-council/wyre,30/03/2024,People and Places,Central Services to the Public,131C,OPUS Energy LTD,22/03/2024,PE157673,634.03,0.00,1610004322012 WRVS Teanlowe Day Centre  Queensway Poulton FY6 7ST 01/02/2024-29/02/2024(2329kWh) E,Electricity
Wyre Council,http://opendatacommunities.org/doc/district-council/wyre,30/03/2024,People and Places,Cultural and Related Services,132A,OPUS Energy LTD,22/03/2024,PE157684,15.25,0.00,"1630000861704 North Promenade Kiosk,  Childrens Corner, Thornton Cleveleys FY5 1DB 01/02/2024-29/02/2024(0kWh)",Electricity
Wyre Council,http://opendatacommunities.org/doc/district-council/wyre,30/03/2024,People and Places,Cultural and Related Services,132A,OPUS Energy LTD,22/03/2024,PE157689,830.18,0.00,"1610004773866 Thornton Little Theatre,  Fleetwood Road Thornton FY5 4AD  01/01/2024-29/02/2024(2202kWh) A",Electricity
Wyre Council,http://opendatacommunities.org/doc/district-council/wyre,30/03/2024,People and Places,Cultural and Related Services,132A,OPUS Energy LTD,22/03/2024,PE157670,64.64,0.00,"1610004305443 Blackpool Old Road, Sports  Pavilion, Cottam Hall FY6 7RH 01/02/2024-29/02/2024(64kWh) E",Electricity
Wyre Council,http://opendatacommunities.org/doc/district-council/wyre,30/03/2024,People and Places,Cultural and Related Services,132A,OPUS Energy LTD,05/03/2024,PE156702,639.85,0.00,Electricity charges for 1610004742404 River Road Thornton Cleveleys FY5 5LR01/01/24-31/01/242258.00 kWh used,Electricity
Wyre Council,http://opendatacommunities.org/doc/district-council/wyre,30/03/2024,People and Places,Cultural and Related Services,132A,OPUS Energy LTD,05/03/2024,PE156704,153.87,0.00,"Electricity charges for 1610004742431 Visitors Centre, River Road, Thornton Cleveleys FY5 5LR01/01/24-31/01/24738.00 kWh used",Electricity
Wyre Council,http://opendatacommunities.org/doc/district-council/wyre,30/03/2024,People and Places,Environmental Services,132B,OPUS Energy LTD,05/03/2024,PE156700,471.82,0.00,"Electricity charges for 1610004665168 Public Conveniences, Cleveleys Bus Station, Rough Lea Road FY5 1BW01/01/24-31/01/241552.00 kWh used",Electricity
Wyre Council,http://opendatacommunities.org/doc/district-council/wyre,30/03/2024,People and Places,Environmental Services,132B,OPUS Energy LTD,05/03/2024,PE156694,433.76,0.00,Electricity charges for 1610004313728 Queensway Public Conveniences Teanlowe Centre Poulton FY6 7DF01/01/24-31/01/241414.00 kWh used,Electricity
Wyre Council,http://opendatacommunities.org/doc/district-council/wyre,30/03/2024,People and Places,Environmental Services,132B,OPUS Energy LTD,05/03/2024,PE156707,68.59,0.00,"Electricity charges for 1610023232505 Public Conveniences, High Street Car Park, Garstang PR3 1FA 01/01/24-31/01/2493.98 kWh used",Electricity
Wyre Council,http://opendatacommunities.org/doc/district-council/wyre,30/03/2024,People and Places,Cultural and Related Services,132A,OPUS Energy LTD,05/03/2024,PE156706,141.05,0.00,"Electricity charges for 1610004863632 Beach Bungalows, The Esplanade, Fleetwood FY7 6QD 01/01/24-31/01/24456.00 kWh used",Electricity
Wyre Council,http://opendatacommunities.org/doc/district-council/wyre,30/03/2024,People and Places,Environmental Services,132B,OPUS Energy LTD,05/03/2024,PE156699,22.27,0.00,"Electricity charges for 1610004421200 New Lane Pumping Station 2,New Lane, Thornton FY5 5NH01/01/24-31/01/2433.00 kWh used",Electricity
Wyre Council,http://opendatacommunities.org/doc/district-council/wyre,30/03/2024,People and Places,Environmental Services,132B,OPUS Energy LTD,05/03/2024,PE156698,46.15,0.00,"Electricity charges for 1610004421042 New Lane Pumping Station 1, New Lane Thornton Cleveleys FY5 5NS 01/01/24-31/01/249.00 kWh used",Electricity
Wyre Council,http://opendatacommunities.org/doc/district-council/wyre,30/03/2024,People and Places,Cultural and Related Services,132A,OPUS Energy LTD,05/03/2024,PE156705,921.61,0.00,"Electricity charges for 1610004773866 Thornton Little Theatre, Fleetwood Road Thornton FY5 4AD 01/01/24-31/01/242924.00 kWh used",Electricity
Wyre Council,http://opendatacommunities.org/doc/district-council/wyre,30/03/2024,People and Places,Cultural and Related Services,132A,OPUS Energy LTD,05/03/2024,PE156710,273.36,0.00,"Electricity charges for 1610004305443 Blackpool Old Road, Sports Pavilion, Cottam Hall FY6 7RH01/01/24-31/01/24268.90 kWh used",Electricity
Wyre Council,http://opendatacommunities.org/doc/district-council/wyre,30/03/2024,People and Places,Cultural and Related Services,132A,OPUS Energy LTD,05/03/2024,PE156695,51.26,0.00,"Electricity charges for 1610004318841 Jean Stansfield Bowling Green, Vicarage Road Poulton FY6 7BE01/01/24-31/01/24138.00 kWh used",Electricity
Wyre Council,http://opendatacommunities.org/doc/district-council/wyre,30/03/2024,People and Places,Cultural and Related Services,132A,OPUS Energy LTD,05/03/2024,PE156701,63.66,0.00,"Electricity charges for 1610004724089 North Drive Pavilion, North Drive, Thornton FY5 2QD01/01/24-31/01/24183.00 kWh used",Electricity
Wyre Council,http://opendatacommunities.org/doc/district-council/wyre,30/03/2024,People and Places,Environmental Services,132B,OPUS Energy LTD,05/03/2024,PE156697,555.38,0.00,"Electricity charges for 1610004347328 Garstang Road East Cemetery, Garstang Road East, Poulton FY6 7SN 01/01/24-31/01/242210.00 kWh used",Electricity
Wyre Council,http://opendatacommunities.org/doc/district-council/wyre,30/03/2024,People and Places,Central Services to the Public,131C,OPUS Energy LTD,05/03/2024,PE156696,1696.55,0.00,Electricity charges for 1610004322012 WRVS Teanlowe Day Centre Queensway Poulton FY6 7ST01/01/24-31/01/245733.00 kWh used,Electricity
Wyre Council,http://opendatacommunities.org/doc/district-council/wyre,30/03/2024,People and Places,Cultural and Related Services,132A,Corona Energy Retail 4 Limited,25/03/2024,PE157558,221.19,0.00,"1650000008330 The Mount Pavilion, Mount Rd, Fleetwood, FY7 6EZ 01/02/24 to 01/03/24 (331 kWh)",Electricity
Wyre Council,http://opendatacommunities.org/doc/district-council/wyre,30/03/2024,People and Places,Support Services,135B,Corona Energy Retail 4 Limited,25/03/2024,PE157707,13983.41,0.00,1600000162857 Civic Centre Breck Road  Blackpool FY39DT 01/02/24 to 29/02/24 (38645kWh),Electricity
Wyre Council,http://opendatacommunities.org/doc/district-council/wyre,30/03/2024,People and Places,Cultural and Related Services,132A,Corona Energy Retail 4 Limited,25/03/2024,PE157708,1271.23,0.00,1630000670291 Promenade Cafe North  Promenade Thornton-Cleveleys FY51DB 01/02/24 to 29/02/24 (3408kWh),Electricity
Wyre Council,http://opendatacommunities.org/doc/district-council/wyre,30/03/2024,People and Places,Planning and Development Servs,132C,Corona Energy Retail 4 Limited,25/03/2024,PE157710,804.01,0.00,1620000784666 Main Hall Adelaide Street  Fleetwood FY76AB 01/02/24 to 29/02/24 (0kWh),Electricity
Wyre Council,http://opendatacommunities.org/doc/district-council/wyre,30/03/2024,People and Places,Environmental Services,132B,Corona Energy Retail 4 Limited,25/03/2024,PE157709,184.60,0.00,1600000023675 Royles Brook Pumping Station  Off Victoria Road East Thornton FY55OX 01/02/24 to 29/02/24 (497kWh),Electricity
Wyre Council,http://opendatacommunities.org/doc/district-council/wyre,30/03/2024,People and Places,Cultural and Related Services,132A,Corona Energy Retail 4 Limited,25/03/2024,PE157713,8413.37,0.00,1600000162875 Marine Hall The Esplanade  Fleetwood FY76HF 01/02/24 to 29/02/24 (20983kWh),Electricity
Wyre Council,http://opendatacommunities.org/doc/district-council/wyre,30/03/2024,People and Places,Planning and Development Servs,132C,Corona Energy Retail 4 Limited,25/03/2024,PE157711,2433.26,0.00,1640000184606 Council Depot Copse Road  Fleetwood FY76RP 01/02/24 to 29/02/24 (6606kWh),Electricity
Wyre Council,http://opendatacommunities.org/doc/district-council/wyre,30/03/2024,People and Places,Cultural and Related Services,132A,Corona Energy Retail 4 Limited,25/03/2024,PE157712,325.29,0.00,1640000233705 Coastal Observation Point  Rossal Point Fleetwood FY78AF 01/02/24 to 29/02/24 (889kWh),Electricity
Wyre Council,http://opendatacommunities.org/doc/district-council/wyre,30/03/2024,People and Places,Cultural and Related Services,132A,Corona Energy Retail 4 Limited,20/03/2024,PE153701,3125.44,0.00,1610004742431 Visitors Centre River Road  Visitors Centre FY55LR 01/09/23 to 01/10/23 D (5587Kwh),Electricity
Wyre Council,http://opendatacommunities.org/doc/district-council/wyre,30/03/2024,People and Places,Planning and Development Servs,132C,Drax Energy Solutions Limited,06/03/2024,PE152981,58.08,0.00,3200000534773 Electricity charges for the period 01/09/23-11/09/23 for Unit 8 Dock Ave Fleetwood - 37 KWH used,Electricity
Wyre Council,http://opendatacommunities.org/doc/district-council/wyre,30/03/2024,People and Places,Planning and Development Servs,132C,Drax Energy Solutions Limited,06/03/2024,PE152980,58.08,0.00,3200000534764 Electricity charges for the perid 01/09/23-11/09/23 for Unit 7B Dock Ave Fleetwood - 37 KWH used,Electricity
Wyre Council,http://opendatacommunities.org/doc/district-council/wyre,30/03/2024,People and Places,Planning and Development Servs,132C,Drax Energy Solutions Limited,06/03/2024,PE152979,56.56,0.00,3200000534755 Electricity charges for the period 01/09/23-11/09/23 for Unit 7A Dock Ave Fleetwood - 33 KWH used,Electricity
Wyre Council,http://opendatacommunities.org/doc/district-council/wyre,30/03/2024,People and Places,Planning and Development Servs,132C,Drax Energy Solutions Limited,06/03/2024,PE152978,56.94,0.00,3200000534746 Electricity charges for the perid 01/09/23-11/09/23 for Unit 6 Dock Ave Fleetwood - 34 KWH used,Electricity
Wyre Council,http://opendatacommunities.org/doc/district-council/wyre,30/03/2024,People and Places,Planning and Development Servs,132C,Drax Energy Solutions Limited,06/03/2024,PE152977,56.56,0.00,3200000534737 Electricity charges for the period 01/09/23-11/09/23 for Unit 5 Dock Ave Fleetwood - 33 KWH used,Electricity
Wyre Council,http://opendatacommunities.org/doc/district-council/wyre,30/03/2024,People and Places,Planning and Development Servs,132C,Drax Energy Solutions Limited,06/03/2024,PE152976,56.94,0.00,"3200000534728 Electricity charges for the period 01/09/23-11/09/23 for Unit 4, Dock Ave, Fleetwood - 34KWH used",Electricity
Wyre Council,http://opendatacommunities.org/doc/district-council/wyre,30/03/2024,People and Places,Planning and Development Servs,132C,Drax Energy Solutions Limited,06/03/2024,PE152975,47.04,0.00,3200000534719 Electricity charges for the period 01/09/23-11/09/23 for Unit 3 Dock Aveneu fleetwood - 8 KWH used,Electricity
Wyre Council,http://opendatacommunities.org/doc/district-council/wyre,30/03/2024,People and Places,Planning and Development Servs,132C,Drax Energy Solutions Limited,06/03/2024,PE152974,47.04,0.00,3200000534700 Electricity charges for the period 01-09-23 to 11-09-23 for Unit 2 Dock Avenue Fleetwood - 8KWH used,Electricity
Wyre Council,http://opendatacommunities.org/doc/district-council/wyre,30/03/2024,People and Places,Planning and Development Servs,132C,Drax Energy Solutions Limited,06/03/2024,PE157024,34.28,0.00,"3200000534700 Unit 2 Dock Ave, Fleetwood FY7 6PS 01/08/23 to 08/08/23",Electricity
Wyre Council,http://opendatacommunities.org/doc/district-council/wyre,30/03/2024,People and Places,Planning and Development Servs,132C,Drax Energy Solutions Limited,06/03/2024,PE157026,34.66,0.00,"3200000534728 Unit 4 Dock Ave, Fleetwood, FY7 6PS 01/08/23 to 08/08/23",Electricity
Wyre Council,http://opendatacommunities.org/doc/district-council/wyre,30/03/2024,People and Places,Planning and Development Servs,132C,Drax Energy Solutions Limited,06/03/2024,PE157025,34.28,0.00,"3200000534719 Unit 3 Dock Ave, Fleetwood, FY7 6PS 01/08/23 to 08/08/23",Electricity
Wyre Council,http://opendatacommunities.org/doc/district-council/wyre,30/03/2024,People and Places,Planning and Development Servs,132C,Drax Energy Solutions Limited,06/03/2024,PE157030,33.90,0.00,"3200000534764 Unit 7B Dock Ave, Fleetwood, FY7 6PS 01/08/23 to 08/08/23",Electricity
Wyre Council,http://opendatacommunities.org/doc/district-council/wyre,30/03/2024,People and Places,Planning and Development Servs,132C,Drax Energy Solutions Limited,06/03/2024,PE157029,34.66,0.00,"3200000534755 Unit 7A Dock Ave, Fleetwood, FY7 6PS",Electricity
Wyre Council,http://opendatacommunities.org/doc/district-council/wyre,30/03/2024,People and Places,Planning and Development Servs,132C,Drax Energy Solutions Limited,06/03/2024,PE157028,34.66,0.00,"3200000534746 Unit 6 Dock Ave, Fleetwood, FY7 6PS",Electricity
Wyre Council,http://opendatacommunities.org/doc/district-council/wyre,30/03/2024,People and Places,Planning and Development Servs,132C,Drax Energy Solutions Limited,06/03/2024,PE157027,34.66,0.00,"3200000534737 Unit 5 Dock Ave, Fleetwood, FY7 6PS 01/08/23 to 08/08/23",Electricity
Wyre Council,http://opendatacommunities.org/doc/district-council/wyre,30/03/2024,People and Places,Planning and Development Servs,132C,Drax Energy Solutions Limited,06/03/2024,PE156489,146.13,0.00,"Electricity supplied to 3200000534807LL Supply c/o ABP Port Office, Dock Ave, Fleetwood, FY7 6PS01-01-24 to 31-01-24 - 73kWh used",Electricity
Wyre Council,http://opendatacommunities.org/doc/district-council/wyre,30/03/2024,People and Places,Planning and Development Servs,132C,Drax Energy Solutions Limited,06/03/2024,PE156488,130.67,0.00,"Electricity supplied for 3200000534791Unit 10, Dock Ave, Fleetwood, FY7 6PS01-01-24 to 31-01-24 - 22 kWh used",Electricity
Wyre Council,http://opendatacommunities.org/doc/district-council/wyre,30/03/2024,People and Places,Planning and Development Servs,132C,Drax Energy Solutions Limited,06/03/2024,PE156487,132.19,0.00,"3200000534782Unit 9, Dock Ave, Fleetwood, FY7 6PS01-01-24 to 31-01-24 - 27KwH used",Electricity
Wyre Council,http://opendatacommunities.org/doc/district-council/wyre,30/03/2024,People and Places,Planning and Development Servs,132C,Drax Energy Solutions Limited,06/03/2024,PE154403,127.86,0.00,"3200000534807 LL Supply c/o ABP Port Office, Dock Ave,  Fleetwood 01/10/23 to 31/10/23 (11kWh) A",Electricity
Wyre Council,http://opendatacommunities.org/doc/district-council/wyre,30/03/2024,People and Places,Planning and Development Servs,132C,Drax Energy Solutions Limited,06/03/2024,PE153648,77.90,0.00,"3200000534807  Electricity charges for the period 12/09/23 to 30/09/23 for LL Supply c/o ABP Port Office, Dock Ave, Fleetwood 5 KWH used",Electricity
Wyre Council,http://opendatacommunities.org/doc/district-council/wyre,30/03/2024,People and Places,Planning and Development Servs,132C,Drax Energy Solutions Limited,06/03/2024,PE153647,44.76,0.00,"3200000534807  Electricity charges for the period 01/09/23 to 11/09/23 for LL Supply c/o ABP Port Office, Dock Ave, Fleetwood 2 KWH used",Electricity
Wyre Council,http://opendatacommunities.org/doc/district-council/wyre,30/03/2024,People and Places,Planning and Development Servs,132C,Drax Energy Solutions Limited,06/03/2024,PE157031,35.42,0.00,"3200000534773 Unit 8 Dock Ave, Fleetwood, FY7 6PS 01/08/23 to 08/08/23",Electricity
Wyre Council,http://opendatacommunities.org/doc/district-council/wyre,30/03/2024,People and Places,Planning and Development Servs,132C,Drax Energy Solutions Limited,06/03/2024,PE157331,135.40,0.00,"3200000534807 LL supply, Dock Ave, Fleetwood, FY7 6PS 01/02/24 to 29/02/24 (30.32kWh)",Electricity
Wyre Council,http://opendatacommunities.org/doc/district-council/wyre,30/03/2024,People and Places,Planning and Development Servs,132C,Drax Energy Solutions Limited,06/03/2024,PE157330,122.67,0.00,"3200000534791 Unit 10 Dock Ave, Fleetwood FY7 6PS 01/02/24 to 29/02/24  (22kWh)",Electricity
Wyre Council,http://opendatacommunities.org/doc/district-council/wyre,30/03/2024,People and Places,Planning and Development Servs,132C,Drax Energy Solutions Limited,06/03/2024,PE157329,123.58,0.00,"3200000534782 Unit 9 Dock Ave, Fleetwood, FY7 6PS 01/02/24 to 29/02/24  (30.32kWh)",Electricity
Wyre Council,http://opendatacommunities.org/doc/district-council/wyre,30/03/2024,People and Places,Planning and Development Servs,132C,Drax Energy Solutions Limited,06/03/2024,PE153409,140.69,0.00,3200000534746 Electricity charges for the perid 12/09/23 - 30/09/23 for Unit 6 Dock Ave Fleetwood - 170 KWH used,Electricity
Wyre Council,http://opendatacommunities.org/doc/district-council/wyre,30/03/2024,People and Places,Planning and Development Servs,132C,Drax Energy Solutions Limited,06/03/2024,PE153408,169.60,0.00,"3200000534728 Electricity charges for the period 12/09/23 - 30/09/23 for Unit 4, Dock Ave, Fleetwood - 246KWH used",Electricity
Wyre Council,http://opendatacommunities.org/doc/district-council/wyre,30/03/2024,People and Places,Planning and Development Servs,132C,Drax Energy Solutions Limited,06/03/2024,PE153407,82.47,0.00,3200000534719 Electricity charges for the period 12/09/23 - 30/09/23 for Unit 3 Dock Aveneu fleetwood - 17KWH used,Electricity
Wyre Council,http://opendatacommunities.org/doc/district-council/wyre,30/03/2024,People and Places,Planning and Development Servs,132C,Drax Energy Solutions Limited,06/03/2024,PE153406,82.09,0.00,3200000534700 Electricity charges for the period 12/09/23 - 30/09/23 for Unit 2 Dock Avenue Fleetwood - 16KWH used,Electricity
Wyre Council,http://opendatacommunities.org/doc/district-council/wyre,30/03/2024,People and Places,Planning and Development Servs,132C,Drax Energy Solutions Limited,06/03/2024,PE155120,177.51,0.00,"3200000534773 Unit 8 Dock Ave, Fleetwood, FY7 6PS 01/11/23 to 30/11/23 (35.07kWh)",Electricity
Wyre Council,http://opendatacommunities.org/doc/district-council/wyre,30/03/2024,People and Places,Planning and Development Servs,132C,Drax Energy Solutions Limited,06/03/2024,PE154400,152.41,0.00,"3200000534773 Unit 8 Dock Avenue, Fletwood  01/10/23 to 31/10/23 (81kWh) A",Electricity
Wyre Council,http://opendatacommunities.org/doc/district-council/wyre,30/03/2024,People and Places,Planning and Development Servs,132C,Drax Energy Solutions Limited,06/03/2024,PE154399,146.09,0.00,3200000534764 Unit 7B Dock Avenue Fleetwood  01/10/23 to 31/10/23 (63kWh) A,Electricity
Wyre Council,http://opendatacommunities.org/doc/district-council/wyre,30/03/2024,People and Places,Planning and Development Servs,132C,Drax Energy Solutions Limited,06/03/2024,PE154398,158.72,0.00,"3200000534746 Unit 6 Dock Avenue, Fleetwood  01/10/23 to 31/10/23 (99kWh) A",Electricity
Wyre Council,http://opendatacommunities.org/doc/district-council/wyre,30/03/2024,People and Places,Planning and Development Servs,132C,Drax Energy Solutions Limited,06/03/2024,PE154397,138.03,0.00,3200000534728 Unit 4 Dock Avenue Fleetwood  01/10/23 to 31/10/23 (40kWh) A,Electricity
Wyre Council,http://opendatacommunities.org/doc/district-council/wyre,30/03/2024,People and Places,Planning and Development Servs,132C,Drax Energy Solutions Limited,06/03/2024,PE153642,83.23,0.00,3200000534737   Electricity charges for the period 12/09/23 to 30/09/23  for Unit 5 Dock Ave Fleetwood -19 KWH used,Electricity
Wyre Council,http://opendatacommunities.org/doc/district-council/wyre,30/03/2024,People and Places,Planning and Development Servs,132C,Drax Energy Solutions Limited,06/03/2024,PE153641,47.42,0.00,3200000534737   Electricity charges for the period 01/09/23-11/09/23 for Unit 5 Dock Ave Fleetwood - 9 KWH used,Electricity
Wyre Council,http://opendatacommunities.org/doc/district-council/wyre,30/03/2024,People and Places,Planning and Development Servs,132C,Drax Energy Solutions Limited,06/03/2024,PE153412,76.38,0.00,3200000534773 Electricity charges for the period 12/09/23 - 30/09/23 for Unit 8 Dock Ave Fleetwood - 1KWH used,Electricity
Wyre Council,http://opendatacommunities.org/doc/district-council/wyre,30/03/2024,People and Places,Planning and Development Servs,132C,Drax Energy Solutions Limited,06/03/2024,PE153411,109.48,0.00,3200000534764 Electricity charges for the perid 12/09/23 - 30/09/23 for Unit 7B Dock Ave Fleetwood - 88 KWH used,Electricity
Wyre Council,http://opendatacommunities.org/doc/district-council/wyre,30/03/2024,People and Places,Planning and Development Servs,132C,Drax Energy Solutions Limited,06/03/2024,PE153410,201.18,0.00,3200000534755 Electricity charges for the period 12/09/23 - 30/09/23 for Unit 7A Dock Ave Fleetwood - 329 KWH used,Electricity
Wyre Council,http://opendatacommunities.org/doc/district-council/wyre,30/03/2024,People and Places,Planning and Development Servs,132C,Engie Power Limited,26/03/2024,PE157614,64.81,0.00,"1640000947154 Kiosk 3, Fleetwood Market,  Adelaide St, Fleetwood, FY7 6AB 01/02/2024 to 29/02/2024 (57.5) A",Electricity
Wyre Council,http://opendatacommunities.org/doc/district-council/wyre,30/03/2024,People and Places,Planning and Development Servs,132C,Engie Power Limited,26/03/2024,PE157626,46.79,0.00,"1640000947215 Landlord Supply, Fleetwood  Market, Adelaide St, Fleetwood, FY7 6AB  01/02/2024 to 29/02/2024 (2.4) A",Electricity
Wyre Council,http://opendatacommunities.org/doc/district-council/wyre,30/03/2024,People and Places,Planning and Development Servs,132C,Engie Power Limited,26/03/2024,PE157625,53.72,0.00,"1640000947206 Kiosk 8, Fleetwood Market,  Adelaide St, Fleetwood, FY7 6AB  01/02/2024 to 29/02/2024 (23.6) A",Electricity
Wyre Council,http://opendatacommunities.org/doc/district-council/wyre,30/03/2024,People and Places,Planning and Development Servs,132C,Engie Power Limited,26/03/2024,PE157623,219.94,0.00,"1640000947190 Kiosk 7, Fleetwood Market,  Adelaide St, Fleetwood, FY7 6AB  01/02/2024 to 29/02/2024 (532.1) A",Electricity
Wyre Council,http://opendatacommunities.org/doc/district-council/wyre,30/03/2024,People and Places,Planning and Development Servs,132C,Engie Power Limited,26/03/2024,PE157621,174.96,0.00,"1640000947145 Kiosk 2, Fleetwood Market,  Adelaie St, Fleetwood, FY7 6AB  01/02/2024 to 29/02/2024 (394.5) A",Electricity
Wyre Council,http://opendatacommunities.org/doc/district-council/wyre,30/03/2024,People and Places,Planning and Development Servs,132C,Engie Power Limited,26/03/2024,PE157620,54.84,0.00,"1640000947136 Kiosk 1, Fleetwood Market,  Adelaide St, Fleetwood, FY7 6AB  01/02/2024 to 29/02/2024 (27) E",Electricity
Wyre Council,http://opendatacommunities.org/doc/district-council/wyre,30/03/2024,People and Places,Planning and Development Servs,132C,Engie Power Limited,26/03/2024,PE157617,50.19,0.00,"1640000947181 Kiosk 6, Fleetwood Market,  Adelaide St, Fleetwood, FY7 6AB 0 01/02/2024 to 29/02/2024 (12.8) A",Electricity
Wyre Council,http://opendatacommunities.org/doc/district-council/wyre,30/03/2024,People and Places,Cultural and Related Services,132A,Engie Power Limited,26/03/2024,PE157638,119.03,0.00,"1610004775074 The Windmill, Fleetwood Rd  North, Thornton Cleveleys, FY5 4BP 01/02/2024 to 29/02/2024 (140.8) A",Electricity
Wyre Council,http://opendatacommunities.org/doc/district-council/wyre,30/03/2024,People and Places,Environmental Services,132B,Engie Power Limited,26/03/2024,PE157640,240.74,0.00,"1610023195261 PC, Smallwood Hey, Pilling,  Preston, PR3 6HJ 01/02/2024 to 29/02/2024 (481.9) E",Electricity
Wyre Council,http://opendatacommunities.org/doc/district-council/wyre,30/03/2024,People and Places,Environmental Services,132B,Engie Power Limited,26/03/2024,PE157624,185.55,0.00,"1640000218200 PC, Bold St, Fleetwood, FY7  6BW 01/02/2024 to 29/02/2024 (426.9) E",Electricity
Wyre Council,http://opendatacommunities.org/doc/district-council/wyre,30/03/2024,People and Places,Environmental Services,132B,Engie Power Limited,26/03/2024,PE157630,143.37,0.00,"1610004845322 PC, Beach Rd, Fleetwood, FY7  8PH 01/02/2024 to 29/02/2024 (209) E",Electricity
Wyre Council,http://opendatacommunities.org/doc/district-council/wyre,30/03/2024,People and Places,Environmental Services,132B,Engie Power Limited,26/03/2024,PE157618,139.63,0.00,"1640000258365 PC, River Road, Thornton  Cleveleys, FY5 5LR 01/02/2024 to  29/02/2024 (286.4) E",Electricity
Wyre Council,http://opendatacommunities.org/doc/district-council/wyre,30/03/2024,People and Places,Planning and Development Servs,132C,Engie Power Limited,26/03/2024,PE157616,51.34,0.00,"1640000947172 Kiosk 5, Fleetwood Market,  Adelaide St, Fleetwood, FY7 6AB  01/02/2024 to 29/02/2024 (16.3) A",Electricity
Wyre Council,http://opendatacommunities.org/doc/district-council/wyre,30/03/2024,People and Places,Planning and Development Servs,132C,Engie Power Limited,26/03/2024,PE157615,55.00,0.00,"1640000947163 Kiosk 4, Fleetwood Market,  Adelaide St, Fleetwood, FY7 6AB  01/02/2024 to 29/02/2024 (27.5) A",Electricity
Wyre Council,http://opendatacommunities.org/doc/district-council/wyre,30/03/2024,People and Places,Cultural and Related Services,132A,Engie Power Limited,26/03/2024,PE157631,69.00,0.00,"1610004846502 Valve House, Marine Lake,  Laidleys Walk, Fleetwood, FY7 7JL 01/02/2024 to 29/02/2024 (0.6) E",Electricity
Wyre Council,http://opendatacommunities.org/doc/district-council/wyre,30/03/2024,People and Places,Cultural and Related Services,132A,Engie Power Limited,26/03/2024,PE157628,392.64,0.00,"1610004863605 Central Toilets Kiosk, The  Esplanade, Fleetwood, FY7 7BE  01/02/2024 to 29/02/2024 (907.6) A",Electricity
Wyre Council,http://opendatacommunities.org/doc/district-council/wyre,30/03/2024,People and Places,Cultural and Related Services,132A,Engie Power Limited,26/03/2024,PE157627,184.58,0.00,"1610004846558 Pump Station, The Esplanade,  Fleetwood, FY7 6HF 01/02/2024 to  29/02/2024 (324.5) A",Electricity
Wyre Council,http://opendatacommunities.org/doc/district-council/wyre,30/03/2024,People and Places,Cultural and Related Services,132A,Engie Power Limited,26/03/2024,PE157619,88.11,0.00,"1640000400837 Beach Huts, The Esplanade,  Fleetwood, FY7 6QD 01/02/2024 to  29/02/2024 (128.8) E",Electricity
Wyre Council,http://opendatacommunities.org/doc/district-council/wyre,30/03/2024,People and Places,Cultural and Related Services,132A,Engie Power Limited,26/03/2024,PE157632,239.10,0.00,1610004846390 Pump House Model Yacht Pond  Laidleys Walk Fleetwood FY7 7JL 01/02/2024 to 29/02/2024 (477.3) A,Electricity
Wyre Council,http://opendatacommunities.org/doc/district-council/wyre,30/03/2024,People and Places,Cultural and Related Services,132A,Engie Power Limited,26/03/2024,PE157643,516.93,0.00,"1610004897400 Ladies Bowls Pavilion,  Memorial Park, Fleetwood, FY7 7AE 01/02/2024 to 29/02/2024 (1229.2) E",Electricity
Wyre Council,http://opendatacommunities.org/doc/district-council/wyre,30/03/2024,People and Places,Cultural and Related Services,132A,Engie Power Limited,26/03/2024,PE157622,266.82,0.00,"1640000118533 Feeder Pillar, Vicarage Rd,  Poulton le Fylde, FY6 7BE 01/02/2024  to 29/02/2024 (675.5) A",Electricity
Wyre Council,http://opendatacommunities.org/doc/district-council/wyre,30/03/2024,People and Places,Cultural and Related Services,132A,Engie Power Limited,26/03/2024,PE157644,100.26,0.00,"1610004932427 King Georges Field,  Broadwater, Fleetwood Road, Fleetwood, Lancashire, FY7 8BD 01/02/2024 to  29/02/2024 (119.4) E",Electricity
Wyre Council,http://opendatacommunities.org/doc/district-council/wyre,30/03/2024,People and Places,Cultural and Related Services,132A,Engie Power Limited,20/03/2024,PE156783,586.23,0.00,"1610004863623 Pitch &amp; Putt  Kiosk, Carr Rd, The Esplanade, Fleetwood, FY7 6QE 01/01/24 to 31/01/24  (1406.3kWh) E",Electricity
Wyre Council,http://opendatacommunities.org/doc/district-council/wyre,30/03/2024,People and Places,Cultural and Related Services,132A,Engie Power Limited,20/03/2024,PE156081,533.11,0.00,"1610004863623 Pitch &amp; Putt Kiosk, Carr  Rd, The Esplanade, Fleetwood, FY7 6QE 01/12/23 to 31/12/23 (1260.6kWh) E",Electricity
Wyre Council,http://opendatacommunities.org/doc/district-council/wyre,30/03/2024,People and Places,Cultural and Related Services,132A,Engie Power Limited,20/03/2024,PE156787,415.81,0.00,"1610004775083 The Windmill,  Fleetwood Road North, Thornton Cleveleys, FY5 4BP 01/01/24 to 31/01/24  (1261.4kWh) A",Electricity
Wyre Council,http://opendatacommunities.org/doc/district-council/wyre,30/03/2024,People and Places,Cultural and Related Services,132A,Engie Power Limited,20/03/2024,PE152861,146.75,0.00,"1630000841586 Garstang Tourist Info Ctr,  Unit 1, Cherestanc Sq, Preston, PR3 1EF 01/08/23 to 31/08/23 A (205.2kWh)",Electricity
Wyre Council,http://opendatacommunities.org/doc/district-council/wyre,30/03/2024,People and Places,Cultural and Related Services,132A,Engie Power Limited,20/03/2024,PE155260,326.86,0.00,"1630000841586 Garstang TIC, Unit  1 Cherestanc Squary, PR3 1EF 01/11/23 to 30/11/23 (716.6kWh) A",Electricity
Wyre Council,http://opendatacommunities.org/doc/district-council/wyre,30/03/2024,People and Places,Cultural and Related Services,132A,Engie Power Limited,20/03/2024,PE154619,233.10,0.00,"1630000841586 Garstang Tourist Info Ctr,  Unit 1, Cherestanc Sq, Preston, PR3 1EF 01/10/23 to 31/10/23 (447.2 kWh) Act",Electricity
Wyre Council,http://opendatacommunities.org/doc/district-council/wyre,30/03/2024,People and Places,Cultural and Related Services,132A,Engie Power Limited,20/03/2024,PE153803,184.88,0.00,"1630000841586 Garstang Tourist Info Ctr,  Unit 1, Cherestanc Sq, Preston, PR3 1EF 01/09/23 to 30/09/23 (318.7kWh) A",Electricity
Wyre Council,http://opendatacommunities.org/doc/district-council/wyre,30/03/2024,People and Places,Cultural and Related Services,132A,Engie Power Limited,20/03/2024,PE156106,411.37,0.00,"1630000841586 Garstang TIC, Unit 1  Cherestanc Square, PR3 1EF 01/12/23 to 31/12/23 (946.8kWh) A",Electricity
Wyre Council,http://opendatacommunities.org/doc/district-council/wyre,30/03/2024,People and Places,Cultural and Related Services,132A,Engie Power Limited,20/03/2024,PE156808,391.21,0.00,"1630000841586 Garstang TIC, Unit  1 Cherestanc Square, PR3 1EF 01/01/24 to 31/01/24 (890.3kWh) A",Electricity
Wyre Council,http://opendatacommunities.org/doc/district-council/wyre,30/03/2024,People and Places,Cultural and Related Services,132A,Engie Power Limited,26/03/2024,PE157642,361.14,0.00,"1610004897394 Bowls House, Memorial Park,  Fleetwood, FY7 7AE 01/02/2024 to 29/02/2024 (819.3) A",Electricity
Wyre Council,http://opendatacommunities.org/doc/district-council/wyre,30/03/2024,People and Places,Cultural and Related Services,132A,Engie Power Limited,26/03/2024,PE157646,191.63,0.00,"1610004867488 Mount Pavilion, Mount Rd,  Fleetwood, FY7 6EZ 01/02/2024 to 29/02/2024 (466) E",Electricity
Wyre Council,http://opendatacommunities.org/doc/district-council/wyre,30/03/2024,People and Places,Environmental Services,132B,Engie Power Limited,26/03/2024,PE157634,611.71,0.00,"1610004828771 Council Depot, Chatsworth Day  Centre, Chatsworth Ave, Fleetwood, FY7 8AP 01/02/2024 to 29/02/2024 (1489.2)  E",Electricity
Wyre Council,http://opendatacommunities.org/doc/district-council/wyre,30/03/2024,People and Places,Environmental Services,132B,Engie Power Limited,26/03/2024,PE157637,152.35,0.00,"1610023169146 Public Conveniences, Barton  Square, Knott End on Sea, Lancashire, FY6 0AG 01/02/2024 to 29/02/2024  (244.4) E",Electricity
Wyre Council,http://opendatacommunities.org/doc/district-council/wyre,30/03/2024,People and Places,Environmental Services,132B,Engie Power Limited,26/03/2024,PE157639,210.95,0.00,"1610013371994 PC, The Weind, Great  Eccleston, PR3 0ZU 01/02/2024 to 29/02/2024 (398.4) E",Electricity
Wyre Council,http://opendatacommunities.org/doc/district-council/wyre,30/03/2024,People and Places,Environmental Services,132B,Engie Power Limited,26/03/2024,PE157641,312.07,0.00,"1610023251891 PC, Gubberford Lane, Scorton,  PR3 1BL 01/02/2024 to 29/02/2024 (681.8) E",Electricity
Wyre Council,http://opendatacommunities.org/doc/district-council/wyre,30/03/2024,People and Places,Environmental Services,132B,Engie Power Limited,26/03/2024,PE157655,105.36,0.00,"1620001343345 PC, Thornton Centre, Victoria  Rd East, FY5 5DZ 01/02/2024 to 29/02/2024 (102.5) A",Electricity
Wyre Council,http://opendatacommunities.org/doc/district-council/wyre,30/03/2024,People and Places,Environmental Services,132B,Engie Power Limited,26/03/2024,PE157647,132.66,0.00,"1610004885487 PC, Preston St, Fleetwood,  FY7 6JA 01/02/2024 to 29/02/2024 (179) E",Electricity
Wyre Council,http://opendatacommunities.org/doc/district-council/wyre,30/03/2024,People and Places,Environmental Services,132B,Engie Power Limited,26/03/2024,PE157657,233.29,0.00,"1630000584632 PC, rear of Tesco, Rough Lea  Rd, Thornton Cleveleys, FY5 1BW 01/02/2024 to 29/02/2024 (461) E",Electricity
Wyre Council,http://opendatacommunities.org/doc/district-council/wyre,30/03/2024,People and Places,Environmental Services,132B,Engie Power Limited,26/03/2024,PE157659,144.26,0.00,"1630000819048 Public Conveniences,  Cherestanc Square, Garstang, Lancashire, PR3 1EF 01/02/2024 to 29/02/2024  (211.5) E",Electricity
Wyre Council,http://opendatacommunities.org/doc/district-council/wyre,30/03/2024,People and Places,Environmental Services,132B,Engie Power Limited,26/03/2024,PE157658,287.84,0.00,"1630000740099 PC, Wyreside, Knott End on  Sea, FY6 0AA 01/02/2024 to 29/02/2024 (613.9) E",Electricity
Wyre Council,http://opendatacommunities.org/doc/district-council/wyre,30/03/2024,People and Places,Cultural and Related Services,132A,Engie Power Limited,26/03/2024,PE157652,225.93,0.00,1610004867479 The Mount Pavilion Mount Rd  Fleetwood FY7 6EZ 01/02/2024 to 29/02/2024 (453.3) E,Electricity
Wyre Council,http://opendatacommunities.org/doc/district-council/wyre,30/03/2024,People and Places,Cultural and Related Services,132A,Engie Power Limited,26/03/2024,PE157649,280.06,0.00,"1610004897385 Tennis Pavillion, Memorial  Park, Fleetwood, FY7 7AE 01/02/2024 to 29/02/2024 (648.1) E",Electricity
Wyre Council,http://opendatacommunities.org/doc/district-council/wyre,30/03/2024,People and Places,Cultural and Related Services,132A,Engie Power Limited,26/03/2024,PE157653,191.76,0.00,"1610004867441 Mount Hotel, Mount Rd,  Fleetwood, FY7 6RA 01/02/2024 to 29/02/2024 (466.5) E",Electricity
Wyre Council,http://opendatacommunities.org/doc/district-council/wyre,30/03/2024,People and Places,Cultural and Related Services,132A,Engie Power Limited,26/03/2024,PE157633,644.38,0.00,"1610004775083 The Windmill, Fleetwood Road  North, Thornton Cleveleys, FY5 4BP 01/02/2024 to 29/02/2024 (2121.2) A",Electricity
Wyre Council,http://opendatacommunities.org/doc/district-council/wyre,30/03/2024,People and Places,Environmental Services,132B,Engie Power Limited,26/03/2024,PE157635,571.54,0.00,"1610004845304 Fleetwood Corp Cemetery,  Beach Rd, Fleetwood, FY7 8PH 01/02/2024 to 29/02/2024 (1379) A",Electricity
Wyre Council,http://opendatacommunities.org/doc/district-council/wyre,30/03/2024,People and Places,Environmental Services,132B,Engie Power Limited,26/03/2024,PE157636,160.97,0.00,"1610004845313 Fleetwood Corp Cemetery,  Beach Rd, Fleetwood, FY7 8PH 01/02/2024 to 29/02/2024 (349.7) E",Electricity
Wyre Council,http://opendatacommunities.org/doc/district-council/wyre,30/03/2024,People and Places,Environmental Services,132B,Engie Power Limited,26/03/2024,PE157645,233.93,0.00,"1610004933625 Springfield Pumping Station  17, Fleeetwood Road, Fleetwood, Lancashire, FY7 8TW 01/02/2024 to 29/02/2024  (492.1) E",Electricity
Wyre Council,http://opendatacommunities.org/doc/district-council/wyre,30/03/2024,People and Places,Cultural and Related Services,132A,Engie Power Limited,26/03/2024,PE157656,92.82,0.00,"1640000004924 Feeder Pillar, Hawthorne  Park, Hawthorne Rd, Thornton Cleveleys, FY5 5DH 01/02/2024 to 29/02/2024  (65.2) A",Electricity
Wyre Council,http://opendatacommunities.org/doc/district-council/wyre,30/03/2024,People and Places,Cultural and Related Services,132A,Engie Power Limited,26/03/2024,PE157650,89.06,0.00,"1610004863776 Tourist Information Office,  The Esplanade, Fleetwood, FY7 6DL 01/02/2024 to 29/02/2024 (56.8) A",Electricity
Wyre Council,http://opendatacommunities.org/doc/district-council/wyre,30/03/2024,People and Places,Cultural and Related Services,132A,Engie Power Limited,26/03/2024,PE157648,517.32,0.00,"1610004890636 Fishermans Walk, Lord St,  Fleetwood, FY7 6DU 01/02/2024 to 29/02/2024 (1230.3) E",Electricity
Wyre Council,http://opendatacommunities.org/doc/district-council/wyre,30/03/2024,People and Places,Cultural and Related Services,132A,I C BRINDLE AND CO LTD,20/03/2024,PE157572,504.00,0.00,"Supply 3 no Lifebuoy, Housing / Life Ring Cabinet and Throwing Line: Life buoy Set with Lifering, House and Buoyant Line - SET 2A - 24`` Lifebuoy, Line & Housing ( no pole needed) 168.00 x 3 = 504.00Any problems you can contact me on tracy.waistle",Emergency Telephones
Wyre Council,http://opendatacommunities.org/doc/district-council/wyre,30/03/2024,People and Places,Cultural and Related Services,132A,I C BRINDLE AND CO LTD,20/03/2024,PE157572,34.25,0.00,Shipping,Emergency Telephones
Wyre Council,http://opendatacommunities.org/doc/district-council/wyre,30/03/2024,Resources,Central Services to the Public,131C,Bristow & Sutor,26/03/2024,RS158052,258.63,0.00,Fees paid direct,Enforcement Agents` Fees
Wyre Council,http://opendatacommunities.org/doc/district-council/wyre,30/03/2024,Resources,Central Services to the Public,131C,Bristow & Sutor,04/03/2024,RS157247,248.04,0.00,Fees paid direct,Enforcement Agents` Fees
Wyre Council,http://opendatacommunities.org/doc/district-council/wyre,30/03/2024,People and Places,Cultural and Related Services,132A,Play Inclusion Project,08/03/2024,PE157429,939.66,0.00,Play Inclusion Project SEND Saturday CLUB November 2023 - March 2024,External Coaching
Wyre Council,http://opendatacommunities.org/doc/district-council/wyre,30/03/2024,People and Places,Cultural and Related Services,132A,G.Whitley,20/03/2024,PE157393,1075.00,0.00,1 x New welcome sign at Wyre estuary Country park,External Contractor
Wyre Council,http://opendatacommunities.org/doc/district-council/wyre,30/03/2024,People and Places,Cultural and Related Services,132A,BL & EA CLARK,19/03/2024,PE157804,2984.00,0.00,Contractor work on the brock bottom picnic site river bank,External Contractor
Wyre Council,http://opendatacommunities.org/doc/district-council/wyre,30/03/2024,People and Places,Cultural and Related Services,132A,Dr Tree Surgeons,11/03/2024,PE157498,2500.00,0.00,Tree works at Brock,External Contractor
Wyre Council,http://opendatacommunities.org/doc/district-council/wyre,30/03/2024,People and Places,Cultural and Related Services,132A,The Ramblers Association,26/03/2024,PE158065,750.00,0.00,Subscription to Wellbeing Walks scheme 2024,External Contractor
Wyre Council,http://opendatacommunities.org/doc/district-council/wyre,30/03/2024,People and Places,Environmental Services,132B,NWIFCA      N W Inshore Fisheries and Conservation,12/03/2024,PE157520,623.00,0.00,Shellfish Collections sept 23- Mar24,Food and Drug Etc Samples
Wyre Council,http://opendatacommunities.org/doc/district-council/wyre,30/03/2024,People and Places,Environmental Services,132B,UK Health Security Agency,26/03/2024,PE157947,615.06,0.00,Shellfish Testing oct-march  23/24,Food and Drug Etc Samples
Wyre Council,http://opendatacommunities.org/doc/district-council/wyre,30/03/2024,People and Places,Support Services,135B,Powerfit Pneumatics & Hydraulics LTD,08/03/2024,PE157276,30.78,0.00,Parts,Fuel
Wyre Council,http://opendatacommunities.org/doc/district-council/wyre,30/03/2024,People and Places,Cultural and Related Services,132A,Lancashire County Council,25/03/2024,PE158010,32.50,0.00,Ref 01.1530177.26203.00.000000 Hire of Garstang Library Meeting Room - January - 14.00 Hire of Garstang Library Meeting Room - February - 14.00 Admin charge - 4.50,Garstang Walking Festival
Wyre Council,http://opendatacommunities.org/doc/district-council/wyre,30/03/2024,People and Places,Cultural and Related Services,132A,Lancashire County Council,27/03/2024,PE158110,88.50,0.00,Hire of Meeting Room at Garstang Library - March 2024 - 20/3/24 - 3.5hrs - 24.50 - 27/3/24 - 8.5hrs - 59.50 Admin charge - 4.50,Garstang Walking Festival
Wyre Council,http://opendatacommunities.org/doc/district-council/wyre,30/03/2024,People and Places,Cultural and Related Services,132A,Engie Gas Limited,26/03/2024,PE157560,1353.42,0.00,"Gas supplied to 73570403 Thornton Little Theatre, Victoria Rd East, Thornton-Cleveleys, FY5 3SZ for the period  01/02/24 to 29/02/24 - 13406.10 kWh",Gas
Wyre Council,http://opendatacommunities.org/doc/district-council/wyre,30/03/2024,People and Places,Planning and Development Servs,132C,Engie Gas Limited,26/03/2024,PE157559,5734.36,0.00,"Gas supplied to 49097909 Adelaide St, Fleetwood, FY7 6AB for the period  01/02/24 to 29/02/24  - 65913.10 kWh",Gas
Wyre Council,http://opendatacommunities.org/doc/district-council/wyre,30/03/2024,People and Places,Support Services,135B,Engie Gas Limited,26/03/2024,PE157561,8004.88,0.00,"Gas supplied to 20867010 Civic Centre, Breck Rd, Poulton, FY6 7PU for the period  01/02/24 to 29/02/24 - 93126.30 kWh",Gas
Wyre Council,http://opendatacommunities.org/doc/district-council/wyre,30/03/2024,People and Places,Planning and Development Servs,132C,Engie Gas Limited,26/03/2024,PE157562,497.16,0.00,"Gas Supplied to 9322410204 Copse Rd Depot, Fleetwood, FY7 6PR for the period  01/02/24 to 29/02/24 - 3207.60kWh",Gas
Wyre Council,http://opendatacommunities.org/doc/district-council/wyre,30/03/2024,People and Places,Cultural and Related Services,132A,Npower Commercial Gas Ltd,12/03/2024,PE157422,933.13,0.00,Gas Charges for Thornton Sports Centre for the period 01/02/24 to 29/02/24 - 10548.4 kWh used,Gas
Wyre Council,http://opendatacommunities.org/doc/district-council/wyre,30/03/2024,People and Places,Cultural and Related Services,132A,Npower Commercial Gas Ltd,12/03/2024,PE157420,572.72,0.00,Gas charges for Garstang Sports Centre for the period 01/02/24 to 29/02/24 - 7184.6 kWh used,Gas
Wyre Council,http://opendatacommunities.org/doc/district-council/wyre,30/03/2024,People and Places,Cultural and Related Services,132A,Npower Commercial Gas Ltd,12/03/2024,PE157421,2485.04,0.00,Gas Charges for Garstang Swimming Club for the period 01/02/24 to 29/02/24 - 37999.0 kWh used,Gas
Wyre Council,http://opendatacommunities.org/doc/district-council/wyre,30/03/2024,People and Places,Cultural and Related Services,132A,Npower Commercial Gas Ltd,18/03/2024,PE157610,20571.83,0.00,20411606 Fleetwood YMCA 01/11/23 to 30/11/23 (323790.5 kWh),Gas
Wyre Council,http://opendatacommunities.org/doc/district-council/wyre,30/03/2024,People and Places,Cultural and Related Services,132A,Npower Commercial Gas Ltd,18/03/2024,PE157613,16134.14,0.00,20411606 Fleetwood YMCA 01/02/24 to 29/02/24 (251535.6 kWh),Gas
Wyre Council,http://opendatacommunities.org/doc/district-council/wyre,30/03/2024,People and Places,Cultural and Related Services,132A,Npower Commercial Gas Ltd,18/03/2024,PE157612,19335.77,0.00,20411606 Fleetwood YMCA 01/01/24 to 31/01/24 (303102.16 kWh),Gas
Wyre Council,http://opendatacommunities.org/doc/district-council/wyre,30/03/2024,People and Places,Cultural and Related Services,132A,Npower Commercial Gas Ltd,18/03/2024,PE157611,17793.14,0.00,20411606 Fleetwood YMCA 01/12/23 to 31/12/23 (277832.1 kWh),Gas
Wyre Council,http://opendatacommunities.org/doc/district-council/wyre,30/03/2024,Resources,"Cultural, Environ and Planning",137B,RH Property Management Ltd,07/03/2024,RS157402,4721.50,0.00,"HSHAZ Grant: Former HSBC Bank, Albert St, Fleetwood, FY7 6AH",Grants and Advances
Wyre Council,http://opendatacommunities.org/doc/district-council/wyre,30/03/2024,People and Places,Cultural and Related Services,132A,Keep Britain Tidy,05/03/2024,PE157295,612.15,0.00,Rossall beach Cleveley`s seaside award,Green Flag and Other Awards
Wyre Council,http://opendatacommunities.org/doc/district-council/wyre,30/03/2024,People and Places,Cultural and Related Services,132A,Keep Britain Tidy,05/03/2024,PE157294,612.15,0.00,Jubilee beach seaside award bathing beach,Green Flag and Other Awards
Wyre Council,http://opendatacommunities.org/doc/district-council/wyre,30/03/2024,People and Places,Cultural and Related Services,132A,Keep Britain Tidy,05/03/2024,PE157297,612.15,0.00,Ferry beach Fleetwood seaside award,Green Flag and Other Awards
Wyre Council,http://opendatacommunities.org/doc/district-council/wyre,30/03/2024,People and Places,Cultural and Related Services,132A,Keep Britain Tidy,05/03/2024,PE157296,612.15,0.00,Marine beach Fleetwood seaside award,Green Flag and Other Awards
Wyre Council,http://opendatacommunities.org/doc/district-council/wyre,30/03/2024,People and Places,Cultural and Related Services,132A,Road Safety Services LTD,12/03/2024,PE157536,1330.00,0.00,"For the provision of a LANTRA training course on Friday 8th March for 12 event volunteers.  Please report to reception on the day before 9am. The training will be in one of the committee rooms, tea and coffee will be available in the room and photo copyin",Guides
Wyre Council,http://opendatacommunities.org/doc/district-council/wyre,30/03/2024,People and Places,Cultural and Related Services,132A,Schools Publishing Ltd,21/03/2024,PE157914,1000.00,0.00,Easter Advertising - Primary Times school book bags - Wanderland,Guides
Wyre Council,http://opendatacommunities.org/doc/district-council/wyre,30/03/2024,Resources,Support Services,135B,Defibstore Ltd,19/03/2024,RS157740,678.00,0.00,1 x Battery and adult pads for G5 1 x Battery and adult pads for G3,Health and Safety General
Wyre Council,http://opendatacommunities.org/doc/district-council/wyre,30/03/2024,Resources,Planning and Development Servs,132C,Konica Minolta Business Solutions UK LTD,26/03/2024,RS158042,25.22,0.00,Copy and print charges 2023-2024  Fleetwood Market,Hire of Tools or Equipment
Wyre Council,http://opendatacommunities.org/doc/district-council/wyre,30/03/2024,Resources,Support Services,135B,Konica Minolta Business Solutions UK LTD,27/03/2024,RS157579,309.69,0.00,Biz hub C450i  - 1841954123 - 16/02/24-15/05/24,Hire of Tools or Equipment
Wyre Council,http://opendatacommunities.org/doc/district-council/wyre,30/03/2024,Resources,Housing General Fund,134A,Creative Support LTD,19/03/2024,RS157744,8765.50,0.00,Contract Fees - Turning the tide - 01/01/2024-31/03/2024,Homelessness Tenancy Support
Wyre Council,http://opendatacommunities.org/doc/district-council/wyre,30/03/2024,Resources,Central Services to the Public,131C,Fylde Coast Womens Aid,05/03/2024,RS157289,10000.00,0.00,Funding from Wyre Council - Household Support Fund 2nd Payment,Household Support Fund
Wyre Council,http://opendatacommunities.org/doc/district-council/wyre,30/03/2024,People and Places,Environmental Services,132B,Poulton Pets LTD,20/03/2024,PE157873,1576.50,0.00,Provision of stray dog kennelling service 2023/24,Impounded Dogs Costs
Wyre Council,http://opendatacommunities.org/doc/district-council/wyre,30/03/2024,Resources,Cultural and Related Services,132A,Daisy Communications LTD,07/03/2024,RS157252,13.87,0.00,Service Charges 01/03/24 to 31/03/24,Internet and Telephone Charges
Wyre Council,http://opendatacommunities.org/doc/district-council/wyre,30/03/2024,Resources,Cultural and Related Services,132A,Daisy Communications LTD,07/03/2024,RS157252,33.25,0.00,Service Charges 01/03/24 to 31/03/24,Internet and Telephone Charges
Wyre Council,http://opendatacommunities.org/doc/district-council/wyre,30/03/2024,Resources,Corporate and Democratic Core,131A,Daisy Communications LTD,07/03/2024,RS157252,13.87,0.00,Service Charges 01/03/24 to 31/03/24,Internet and Telephone Charges
Wyre Council,http://opendatacommunities.org/doc/district-council/wyre,30/03/2024,Resources,Support Services,135B,Daisy Communications LTD,07/03/2024,RS157252,80.93,0.00,Service Charges 01/03/24 to 31/03/24,Internet and Telephone Charges
Wyre Council,http://opendatacommunities.org/doc/district-council/wyre,30/03/2024,Resources,Support Services,135B,Daisy Communications LTD,07/03/2024,RS157252,0.08,0.00,Call Charges to 29/02/24,Internet and Telephone Charges
Wyre Council,http://opendatacommunities.org/doc/district-council/wyre,30/03/2024,Resources,Support Services,135B,Daisy Communications LTD,07/03/2024,RS157252,19.39,0.00,Service Charges 01/03/24 to 31/03/24,Internet and Telephone Charges
Wyre Council,http://opendatacommunities.org/doc/district-council/wyre,30/03/2024,Resources,Support Services,135B,THE NETWORKING PEOPLE (TNP) LTD,06/03/2024,RS157353,17889.00,0.00,"nnual Rental 2/10Gb Internet service, 1 year minimum term at Wyre Civic @ 17,889.00 Centre, FY6 7PU",Internet and Telephone Charges
Wyre Council,http://opendatacommunities.org/doc/district-council/wyre,30/03/2024,Resources,Support Services,135B,THE NETWORKING PEOPLE (TNP) LTD,27/03/2024,RS158103,-5594.85,0.00,1/1 Gb ISP circuit to Wyre Civic Ctr - rental credit for cease 27/03/24 to 08/12/24,Internet and Telephone Charges
Wyre Council,http://opendatacommunities.org/doc/district-council/wyre,30/03/2024,Resources,Support Services,135B,THE NETWORKING PEOPLE (TNP) LTD,06/03/2024,RS157353,6601.00,0.00,"Install 2/10Gb Internet service, 1yr term",Internet and Telephone Charges
Wyre Council,http://opendatacommunities.org/doc/district-council/wyre,30/03/2024,People and Places,Cultural and Related Services,132A,Northern Citrus Products LTD,20/03/2024,PE157844,497.80,0.00,Kiosk stock,Kiosk stock
Wyre Council,http://opendatacommunities.org/doc/district-council/wyre,30/03/2024,People and Places,Cultural and Related Services,132A,Northern Citrus Products LTD,20/03/2024,PE157843,201.25,0.00,Kiosk stock,Kiosk stock
Wyre Council,http://opendatacommunities.org/doc/district-council/wyre,30/03/2024,People and Places,Cultural and Related Services,132A,Northern Citrus Products LTD,20/03/2024,PE157842,14.75,0.00,Kiosk stock,Kiosk stock
Wyre Council,http://opendatacommunities.org/doc/district-council/wyre,30/03/2024,Resources,Central Services to the Public,131C,Lancashire County Council,07/03/2024,RS157380,612.00,0.00,Wyre Council Con29 Searches for January 2024 - 36 @ 17.00 each,L.C.C. Search Fees
Wyre Council,http://opendatacommunities.org/doc/district-council/wyre,30/03/2024,Resources,Central Services to the Public,131C,Lancashire County Council,26/03/2024,RS158061,663.00,0.00,Wyre Council Con29 Searches for February 2024 - 39 @ 17.00 each,L.C.C. Search Fees
Wyre Council,http://opendatacommunities.org/doc/district-council/wyre,30/03/2024,People and Places,Planning and Development Servs,132C,Kings Chambers,04/03/2024,PE157202,4380.00,0.00,Legal advice Helmsdeep enforcement 23/00050/COU - Phil Robson,Legal Fees
Wyre Council,http://opendatacommunities.org/doc/district-council/wyre,30/03/2024,Resources,Support Services,135B,Forbes Solicitors,27/03/2024,RS158114,920.50,0.00,Employment Advice 27.2.24 to 25.3.24. Invoice number 642503,Legal Fees
Wyre Council,http://opendatacommunities.org/doc/district-council/wyre,30/03/2024,People and Places,Highways,133B,CU PHOSCO LIGHTING LTD,27/03/2024,PE158108,96.34,0.00,*** Confirmation Order ***Your ref: HM18552BSpares used for High Mast Maintenance,Maint. of Unadopted Assets - Engineers
Wyre Council,http://opendatacommunities.org/doc/district-council/wyre,30/03/2024,People and Places,Highways,133B,CU PHOSCO LIGHTING LTD,05/03/2024,PE155956,2990.00,0.00,Your quotation HM18552  Provide all necessary labour and supervision to conduct a Type 2 maintenance on 2 no. raise and lower high masts as detailed in maintenance certificate items 1-42. Certification to be provided upon completion.  Location: Wyre Civic,Maint. of Unadopted Assets - Engineers
Wyre Council,http://opendatacommunities.org/doc/district-council/wyre,30/03/2024,People and Places,Highways,133B,HUWS GRAY LTD,06/03/2024,PE157280,29.06,0.00,Hanson Multicem and sand,Maint. of Unadopted Assets - Engineers
Wyre Council,http://opendatacommunities.org/doc/district-council/wyre,30/03/2024,People and Places,Highways,133B,PETER HEARN ELECTRICAL LTD,04/03/2024,PE157224,950.00,0.00,"*** Confirmation Order *** Replace exterior lighting to Cafe Cove building, Cleveleys",Maint. of Unadopted Assets - Engineers
Wyre Council,http://opendatacommunities.org/doc/district-council/wyre,30/03/2024,People and Places,Highways,133B,PETER HEARN ELECTRICAL LTD,04/03/2024,PE157224,1158.00,0.00,"*** Confirmation Order *** Replace exterior lighting to Cafe Cove building, Cleveleys",Maint. of Unadopted Assets - Engineers
Wyre Council,http://opendatacommunities.org/doc/district-council/wyre,30/03/2024,People and Places,Planning and Development Servs,132C,Powerfit Pneumatics & Hydraulics LTD,26/03/2024,PE158088,512.40,0.00,Parts,Maintenance of Tools or Equipment
Wyre Council,http://opendatacommunities.org/doc/district-council/wyre,30/03/2024,People and Places,Parking Services,133F,CHIPSIDE LTD,12/03/2024,PE157375,15.00,0.00,Provide 2 no. 500 Mb SIMS for Wyre handheld units - 1 April 2023 - 31 March 2024,Maintenance of Tools or Equipment
Wyre Council,http://opendatacommunities.org/doc/district-council/wyre,30/03/2024,People and Places,Planning and Development Servs,132C,PSM Group,11/03/2024,PE157497,1000.00,0.00,paint 8 kiosks ready for event 9th March 24,Maintenance of Tools or Equipment
Wyre Council,http://opendatacommunities.org/doc/district-council/wyre,30/03/2024,People and Places,Planning and Development Servs,132C,PETER HEARN ELECTRICAL LTD,26/03/2024,PE158092,180.00,0.00,"Please undertake charge point tests to 6 number EV charging points at Copse Road Depot. Tests should verify the safety interlocks, DC leakage monitoring and Type A RCD protection. Testing to be undertaken twice per year at 6 monthly intervals (October 202",Maintenance of Tools or Equipment
Wyre Council,http://opendatacommunities.org/doc/district-council/wyre,30/03/2024,People and Places,Environmental Services,132B,Andrew Signs LTD,20/03/2024,PE157890,350.00,0.00,Supplied signs 1 large site safety sign MT1 x warning sign BG100 water vinyl labels BG50 malgicide vinyl labels  BG,Materials and Consumables
Wyre Council,http://opendatacommunities.org/doc/district-council/wyre,30/03/2024,People and Places,Support Services,135B,EK Motors Factors LTD,25/03/2024,PE157987,87.70,0.00,Parts,Materials and Consumables
Wyre Council,http://opendatacommunities.org/doc/district-council/wyre,30/03/2024,People and Places,Support Services,135B,EK Motors Factors LTD,25/03/2024,PE157989,29.09,0.00,Parts,Materials and Consumables
Wyre Council,http://opendatacommunities.org/doc/district-council/wyre,30/03/2024,People and Places,Support Services,135B,EK Motors Factors LTD,25/03/2024,PE157988,74.39,0.00,Parts,Materials and Consumables
Wyre Council,http://opendatacommunities.org/doc/district-council/wyre,30/03/2024,People and Places,Support Services,135B,EK Motors Factors LTD,25/03/2024,PE157994,34.57,0.00,Parts,Materials and Consumables
Wyre Council,http://opendatacommunities.org/doc/district-council/wyre,30/03/2024,People and Places,Support Services,135B,EK Motors Factors LTD,25/03/2024,PE157993,74.39,0.00,Parts,Materials and Consumables
Wyre Council,http://opendatacommunities.org/doc/district-council/wyre,30/03/2024,People and Places,Support Services,135B,EK Motors Factors LTD,25/03/2024,PE157992,63.40,0.00,Parts,Materials and Consumables
Wyre Council,http://opendatacommunities.org/doc/district-council/wyre,30/03/2024,People and Places,Support Services,135B,EK Motors Factors LTD,25/03/2024,PE157991,38.11,0.00,Parts,Materials and Consumables
Wyre Council,http://opendatacommunities.org/doc/district-council/wyre,30/03/2024,People and Places,Support Services,135B,EK Motors Factors LTD,25/03/2024,PE157990,41.84,0.00,Parts,Materials and Consumables
Wyre Council,http://opendatacommunities.org/doc/district-council/wyre,30/03/2024,People and Places,Support Services,135B,EK Motors Factors LTD,25/03/2024,PE157983,11.49,0.00,Parts,Materials and Consumables
Wyre Council,http://opendatacommunities.org/doc/district-council/wyre,30/03/2024,People and Places,Support Services,135B,EK Motors Factors LTD,25/03/2024,PE157985,2.75,0.00,Parts,Materials and Consumables
Wyre Council,http://opendatacommunities.org/doc/district-council/wyre,30/03/2024,People and Places,Support Services,135B,EK Motors Factors LTD,25/03/2024,PE157984,157.55,0.00,Parts,Materials and Consumables
Wyre Council,http://opendatacommunities.org/doc/district-council/wyre,30/03/2024,People and Places,Support Services,135B,EK Motors Factors LTD,25/03/2024,PE157986,57.82,0.00,Parts,Materials and Consumables
Wyre Council,http://opendatacommunities.org/doc/district-council/wyre,30/03/2024,People and Places,Support Services,135B,EK Motors Factors LTD,13/03/2024,PE157591,81.51,0.00,Parts,Materials and Consumables
Wyre Council,http://opendatacommunities.org/doc/district-council/wyre,30/03/2024,People and Places,Support Services,135B,EK Motors Factors LTD,13/03/2024,PE157590,144.38,0.00,Parts,Materials and Consumables
Wyre Council,http://opendatacommunities.org/doc/district-council/wyre,30/03/2024,People and Places,Support Services,135B,EK Motors Factors LTD,13/03/2024,PE157589,29.09,0.00,Parts,Materials and Consumables
Wyre Council,http://opendatacommunities.org/doc/district-council/wyre,30/03/2024,People and Places,Support Services,135B,EK Motors Factors LTD,13/03/2024,PE157586,101.51,0.00,Parts,Materials and Consumables
Wyre Council,http://opendatacommunities.org/doc/district-council/wyre,30/03/2024,People and Places,Support Services,135B,EK Motors Factors LTD,13/03/2024,PE157588,46.81,0.00,Parts,Materials and Consumables
Wyre Council,http://opendatacommunities.org/doc/district-council/wyre,30/03/2024,People and Places,Support Services,135B,EK Motors Factors LTD,13/03/2024,PE157587,39.74,0.00,Parts,Materials and Consumables
Wyre Council,http://opendatacommunities.org/doc/district-council/wyre,30/03/2024,People and Places,Support Services,135B,EK Motors Factors LTD,13/03/2024,PE157594,31.10,0.00,Parts,Materials and Consumables
Wyre Council,http://opendatacommunities.org/doc/district-council/wyre,30/03/2024,People and Places,Support Services,135B,EK Motors Factors LTD,13/03/2024,PE157593,36.50,0.00,Parts,Materials and Consumables
Wyre Council,http://opendatacommunities.org/doc/district-council/wyre,30/03/2024,People and Places,Support Services,135B,EK Motors Factors LTD,13/03/2024,PE157592,18.96,0.00,Parts,Materials and Consumables
Wyre Council,http://opendatacommunities.org/doc/district-council/wyre,30/03/2024,People and Places,Support Services,135B,EK Motors Factors LTD,27/03/2024,PE158101,4.06,0.00,Part,Materials and Consumables
Wyre Council,http://opendatacommunities.org/doc/district-council/wyre,30/03/2024,People and Places,Support Services,135B,Malcolm McCulloch & Sons LTD,21/03/2024,PE157928,619.84,0.00,208 x Q8 @ 2.98 each,Materials and Consumables
Wyre Council,http://opendatacommunities.org/doc/district-council/wyre,30/03/2024,People and Places,Support Services,135B,Malcolm McCulloch & Sons LTD,21/03/2024,PE157928,320.00,0.00,2 x Adblue barrel @ 160 each,Materials and Consumables
Wyre Council,http://opendatacommunities.org/doc/district-council/wyre,30/03/2024,People and Places,Support Services,135B,Malcolm McCulloch & Sons LTD,21/03/2024,PE157928,728.00,0.00,208 x Q8 techno @ 3.50 each,Materials and Consumables
Wyre Council,http://opendatacommunities.org/doc/district-council/wyre,30/03/2024,People and Places,Support Services,135B,Malcolm McCulloch & Sons LTD,21/03/2024,PE157927,384.80,0.00,208 x Q8 @ 1.85,Materials and Consumables
Wyre Council,http://opendatacommunities.org/doc/district-council/wyre,30/03/2024,People and Places,Support Services,135B,Malcolm McCulloch & Sons LTD,21/03/2024,PE157927,149.00,0.00,100 x MM 2T Semi Synthetic @ 1.49 each,Materials and Consumables
Wyre Council,http://opendatacommunities.org/doc/district-council/wyre,30/03/2024,People and Places,Support Services,135B, Systematic Design And Print LTD,27/03/2024,PE158090,956.00,0.00,DDVI Defect Report Books Under 3.5 Tonne,Materials and Consumables
Wyre Council,http://opendatacommunities.org/doc/district-council/wyre,30/03/2024,Resources,Housing General Fund,134A,Solon Security LTD,04/03/2024,RS157234,1787.64,0.00,Invoice SI24002790,Materials and Consumables
Wyre Council,http://opendatacommunities.org/doc/district-council/wyre,30/03/2024,People and Places,Environmental Services,132B,Probrush T/A Northern Municipal Spares LTD,19/03/2024,PE157811,3371.60,0.00,"To supply and deliver as per quote 23,752 11/03/24   50 blue brushes for Hako 1  + economy freight (2-5 days)",Materials and Consumables
Wyre Council,http://opendatacommunities.org/doc/district-council/wyre,30/03/2024,People and Places,Support Services,135B,HUWS GRAY LTD,21/03/2024,PE157815,3.14,0.00,Steel washers Keith Urwin,Materials and Consumables
Wyre Council,http://opendatacommunities.org/doc/district-council/wyre,30/03/2024,People and Places,Support Services,135B,HUWS GRAY LTD,21/03/2024,PE157820,73.71,0.00,Materials  Keith Urwin,Materials and Consumables
Wyre Council,http://opendatacommunities.org/doc/district-council/wyre,30/03/2024,People and Places,Support Services,135B,HUWS GRAY LTD,07/03/2024,PE157279,65.64,0.00,Materials  Keith Urwin,Materials and Consumables
Wyre Council,http://opendatacommunities.org/doc/district-council/wyre,30/03/2024,People and Places,Support Services,135B,HUWS GRAY LTD,12/03/2024,PE157522,42.48,0.00,Bradstone round top edging  R17808,Materials and Consumables
Wyre Council,http://opendatacommunities.org/doc/district-council/wyre,30/03/2024,People and Places,Support Services,135B,HUWS GRAY LTD,21/03/2024,PE157819,296.24,0.00,Timber  R17811,Materials and Consumables
Wyre Council,http://opendatacommunities.org/doc/district-council/wyre,30/03/2024,People and Places,Support Services,135B,HUWS GRAY LTD,21/03/2024,PE157817,13.58,0.00,Timber posts,Materials and Consumables
Wyre Council,http://opendatacommunities.org/doc/district-council/wyre,30/03/2024,People and Places,Support Services,135B,HUWS GRAY LTD,07/03/2024,PE157278,38.76,0.00,Timber  Keith urwin,Materials and Consumables
Wyre Council,http://opendatacommunities.org/doc/district-council/wyre,30/03/2024,People and Places,Support Services,135B,Amazon Business,06/03/2024,PE157366,7.50,0.00,Health & Safety PosterGary Scott,Materials and Consumables
Wyre Council,http://opendatacommunities.org/doc/district-council/wyre,30/03/2024,People and Places,Support Services,135B,Amazon Business,26/03/2024,PE158041,50.10,0.00,DYMO Label maker  Transport,Materials and Consumables
Wyre Council,http://opendatacommunities.org/doc/district-council/wyre,30/03/2024,People and Places,Support Services,135B,Amazon Business,26/03/2024,PE158016,-1.07,0.00,funded by Amazon,Materials and Consumables
Wyre Council,http://opendatacommunities.org/doc/district-council/wyre,30/03/2024,People and Places,Support Services,135B,Amazon Business,26/03/2024,PE158017,8.33,0.00,Lights,Materials and Consumables
Wyre Council,http://opendatacommunities.org/doc/district-council/wyre,30/03/2024,People and Places,Support Services,135B,Amazon Business,26/03/2024,PE158006,26.24,0.00,Vapormatic Grit compound,Materials and Consumables
Wyre Council,http://opendatacommunities.org/doc/district-council/wyre,30/03/2024,People and Places,Support Services,135B,Amazon Business,26/03/2024,PE158016,21.23,0.00,Lights,Materials and Consumables
Wyre Council,http://opendatacommunities.org/doc/district-council/wyre,30/03/2024,People and Places,Support Services,135B,Amazon Business,26/03/2024,PE158005,65.63,0.00,DYMO Label machine,Materials and Consumables
Wyre Council,http://opendatacommunities.org/doc/district-council/wyre,30/03/2024,People and Places,Cultural and Related Services,132A,Amazon Business,26/03/2024,PE158038,383.28,0.00,4 x industrial shelving for new container Stanah,Materials and Consumables
Wyre Council,http://opendatacommunities.org/doc/district-council/wyre,30/03/2024,Resources,Corporate and Democratic Core,131A,Preston City Council,20/03/2024,RS157792,4.00,0.00,Mayoral Ball - Night At the Races 10 x A4 1pp 60 x A5 1pp 4 **RAISED FOR 10 DUE TO MINIMUM AMOUNT REQUIRED - FINANCE WILL WRITE OFF THE 6 REMAINDER**,Mayoral Ball
Wyre Council,http://opendatacommunities.org/doc/district-council/wyre,30/03/2024,Resources,Housing General Fund,134A,Mobility Care Services,06/03/2024,RS157363,520.00,0.00,REDACT,Minor Adaptations
Wyre Council,http://opendatacommunities.org/doc/district-council/wyre,30/03/2024,Resources,Housing General Fund,134A,Mobility Care Services,06/03/2024,RS157358,140.00,0.00,REDACT,Minor Adaptations
Wyre Council,http://opendatacommunities.org/doc/district-council/wyre,30/03/2024,Resources,Housing General Fund,134A,Mobility Care Services,06/03/2024,RS157362,160.00,0.00,REDACT,Minor Adaptations
Wyre Council,http://opendatacommunities.org/doc/district-council/wyre,30/03/2024,Resources,Housing General Fund,134A,Mobility Care Services,06/03/2024,RS157361,200.00,0.00,REDACT,Minor Adaptations
Wyre Council,http://opendatacommunities.org/doc/district-council/wyre,30/03/2024,Resources,Housing General Fund,134A,Mobility Care Services,06/03/2024,RS157360,75.00,0.00,REDACT,Minor Adaptations
Wyre Council,http://opendatacommunities.org/doc/district-council/wyre,30/03/2024,Resources,Housing General Fund,134A,Mobility Care Services,06/03/2024,RS157359,320.00,0.00,REDACT,Minor Adaptations
Wyre Council,http://opendatacommunities.org/doc/district-council/wyre,30/03/2024,Resources,Housing General Fund,134A,Mobility Care Services,25/03/2024,RS158027,300.00,0.00,REDACT,Minor Adaptations
Wyre Council,http://opendatacommunities.org/doc/district-council/wyre,30/03/2024,Resources,Housing General Fund,134A,Mobility Care Services,25/03/2024,RS158032,480.00,0.00,REDACT,Minor Adaptations
Wyre Council,http://opendatacommunities.org/doc/district-council/wyre,30/03/2024,Resources,Housing General Fund,134A,Mobility Care Services,25/03/2024,RS158031,300.00,0.00,REDACT,Minor Adaptations
Wyre Council,http://opendatacommunities.org/doc/district-council/wyre,30/03/2024,Resources,Housing General Fund,134A,Mobility Care Services,25/03/2024,RS158030,420.00,0.00,REDACT,Minor Adaptations
Wyre Council,http://opendatacommunities.org/doc/district-council/wyre,30/03/2024,Resources,Housing General Fund,134A,Mobility Care Services,25/03/2024,RS158029,320.00,0.00,REDACT,Minor Adaptations
Wyre Council,http://opendatacommunities.org/doc/district-council/wyre,30/03/2024,Resources,Housing General Fund,134A,Mobility Care Services,25/03/2024,RS158028,760.00,0.00,REDACT,Minor Adaptations
Wyre Council,http://opendatacommunities.org/doc/district-council/wyre,30/03/2024,Resources,Housing General Fund,134A,J A DICKENS LIMITED,08/03/2024,RS157464,140.00,0.00,REDACT,Minor Adaptations
Wyre Council,http://opendatacommunities.org/doc/district-council/wyre,30/03/2024,Resources,Housing General Fund,134A,J A DICKENS LIMITED,08/03/2024,RS157465,180.00,0.00,REDACT,Minor Adaptations
Wyre Council,http://opendatacommunities.org/doc/district-council/wyre,30/03/2024,Resources,Housing General Fund,134A,J A DICKENS LIMITED,08/03/2024,RS157465,140.00,0.00,REDACT,Minor Adaptations
Wyre Council,http://opendatacommunities.org/doc/district-council/wyre,30/03/2024,Resources,Housing General Fund,134A,J A DICKENS LIMITED,08/03/2024,RS157455,380.00,0.00,REDACT,Minor Adaptations
Wyre Council,http://opendatacommunities.org/doc/district-council/wyre,30/03/2024,Resources,Housing General Fund,134A,J A DICKENS LIMITED,08/03/2024,RS157455,310.00,0.00,REDACT,Minor Adaptations
Wyre Council,http://opendatacommunities.org/doc/district-council/wyre,30/03/2024,Resources,Housing General Fund,134A,J A DICKENS LIMITED,08/03/2024,RS157456,350.00,0.00,REDACT,Minor Adaptations
Wyre Council,http://opendatacommunities.org/doc/district-council/wyre,30/03/2024,Resources,Housing General Fund,134A,J A DICKENS LIMITED,08/03/2024,RS157456,300.00,0.00,REDACT,Minor Adaptations
Wyre Council,http://opendatacommunities.org/doc/district-council/wyre,30/03/2024,Resources,Housing General Fund,134A,J A DICKENS LIMITED,08/03/2024,RS157451,90.00,0.00,REDACT,Minor Adaptations
Wyre Council,http://opendatacommunities.org/doc/district-council/wyre,30/03/2024,Resources,Housing General Fund,134A,J A DICKENS LIMITED,08/03/2024,RS157451,70.00,0.00,REDACT,Minor Adaptations
Wyre Council,http://opendatacommunities.org/doc/district-council/wyre,30/03/2024,Resources,Housing General Fund,134A,J A DICKENS LIMITED,22/03/2024,RS157963,80.00,0.00,REDACT,Minor Adaptations
Wyre Council,http://opendatacommunities.org/doc/district-council/wyre,30/03/2024,Resources,Housing General Fund,134A,J A DICKENS LIMITED,22/03/2024,RS157972,340.00,0.00,REDACT,Minor Adaptations
Wyre Council,http://opendatacommunities.org/doc/district-council/wyre,30/03/2024,Resources,Housing General Fund,134A,J A DICKENS LIMITED,22/03/2024,RS157967,180.00,0.00,REDACT,Minor Adaptations
Wyre Council,http://opendatacommunities.org/doc/district-council/wyre,30/03/2024,Resources,Housing General Fund,134A,J A DICKENS LIMITED,22/03/2024,RS157967,140.00,0.00,REDACT,Minor Adaptations
Wyre Council,http://opendatacommunities.org/doc/district-council/wyre,30/03/2024,Resources,Housing General Fund,134A,J A DICKENS LIMITED,22/03/2024,RS157968,180.00,0.00,REDACT,Minor Adaptations
Wyre Council,http://opendatacommunities.org/doc/district-council/wyre,30/03/2024,Resources,Housing General Fund,134A,J A DICKENS LIMITED,22/03/2024,RS157968,140.00,0.00,REDACT,Minor Adaptations
Wyre Council,http://opendatacommunities.org/doc/district-council/wyre,30/03/2024,Resources,Housing General Fund,134A,J A DICKENS LIMITED,22/03/2024,RS157969,140.00,0.00,REDACT,Minor Adaptations
Wyre Council,http://opendatacommunities.org/doc/district-council/wyre,30/03/2024,Resources,Housing General Fund,134A,J A DICKENS LIMITED,22/03/2024,RS157969,180.00,0.00,REDACT,Minor Adaptations
Wyre Council,http://opendatacommunities.org/doc/district-council/wyre,30/03/2024,Resources,Housing General Fund,134A,J A DICKENS LIMITED,22/03/2024,RS157970,160.00,0.00,REDACT,Minor Adaptations
Wyre Council,http://opendatacommunities.org/doc/district-council/wyre,30/03/2024,Resources,Housing General Fund,134A,J A DICKENS LIMITED,22/03/2024,RS157970,140.00,0.00,REDACT,Minor Adaptations
Wyre Council,http://opendatacommunities.org/doc/district-council/wyre,30/03/2024,Resources,Housing General Fund,134A,J A DICKENS LIMITED,22/03/2024,RS157963,80.00,0.00,REDACT,Minor Adaptations
Wyre Council,http://opendatacommunities.org/doc/district-council/wyre,30/03/2024,Resources,Housing General Fund,134A,J A DICKENS LIMITED,22/03/2024,RS157964,70.00,0.00,REDACT,Minor Adaptations
Wyre Council,http://opendatacommunities.org/doc/district-council/wyre,30/03/2024,Resources,Housing General Fund,134A,J A DICKENS LIMITED,22/03/2024,RS157964,90.00,0.00,REDACT,Minor Adaptations
Wyre Council,http://opendatacommunities.org/doc/district-council/wyre,30/03/2024,Resources,Housing General Fund,134A,J A DICKENS LIMITED,22/03/2024,RS157965,70.00,0.00,REDACT,Minor Adaptations
Wyre Council,http://opendatacommunities.org/doc/district-council/wyre,30/03/2024,Resources,Housing General Fund,134A,J A DICKENS LIMITED,22/03/2024,RS157965,90.00,0.00,REDACT,Minor Adaptations
Wyre Council,http://opendatacommunities.org/doc/district-council/wyre,30/03/2024,Resources,Housing General Fund,134A,J A DICKENS LIMITED,22/03/2024,RS157966,100.00,0.00,REDACT,Minor Adaptations
Wyre Council,http://opendatacommunities.org/doc/district-council/wyre,30/03/2024,Resources,Housing General Fund,134A,J A DICKENS LIMITED,22/03/2024,RS157966,60.00,0.00,REDACT,Minor Adaptations
Wyre Council,http://opendatacommunities.org/doc/district-council/wyre,30/03/2024,Resources,Housing General Fund,134A,J A DICKENS LIMITED,22/03/2024,RS157973,440.00,0.00,REDACT,Minor Adaptations
Wyre Council,http://opendatacommunities.org/doc/district-council/wyre,30/03/2024,Resources,Housing General Fund,134A,J A DICKENS LIMITED,22/03/2024,RS157973,440.00,0.00,REDACT,Minor Adaptations
Wyre Council,http://opendatacommunities.org/doc/district-council/wyre,30/03/2024,Resources,Housing General Fund,134A,J A DICKENS LIMITED,22/03/2024,RS157971,430.00,0.00,REDACT,Minor Adaptations
Wyre Council,http://opendatacommunities.org/doc/district-council/wyre,30/03/2024,Resources,Housing General Fund,134A,J A DICKENS LIMITED,22/03/2024,RS157971,350.00,0.00,REDACT,Minor Adaptations
Wyre Council,http://opendatacommunities.org/doc/district-council/wyre,30/03/2024,Resources,Housing General Fund,134A,J A DICKENS LIMITED,22/03/2024,RS157972,350.00,0.00,REDACT,Minor Adaptations
Wyre Council,http://opendatacommunities.org/doc/district-council/wyre,30/03/2024,Resources,Housing General Fund,134A,J A DICKENS LIMITED,08/03/2024,RS157443,110.00,0.00,REDACT,Minor Adaptations
Wyre Council,http://opendatacommunities.org/doc/district-council/wyre,30/03/2024,Resources,Housing General Fund,134A,J A DICKENS LIMITED,08/03/2024,RS157443,50.00,0.00,REDACT,Minor Adaptations
Wyre Council,http://opendatacommunities.org/doc/district-council/wyre,30/03/2024,Resources,Housing General Fund,134A,J A DICKENS LIMITED,08/03/2024,RS157444,90.00,0.00,REDACT,Minor Adaptations
Wyre Council,http://opendatacommunities.org/doc/district-council/wyre,30/03/2024,Resources,Housing General Fund,134A,J A DICKENS LIMITED,08/03/2024,RS157444,70.00,0.00,REDACT,Minor Adaptations
Wyre Council,http://opendatacommunities.org/doc/district-council/wyre,30/03/2024,Resources,Housing General Fund,134A,J A DICKENS LIMITED,08/03/2024,RS157445,180.00,0.00,REDACT,Minor Adaptations
Wyre Council,http://opendatacommunities.org/doc/district-council/wyre,30/03/2024,Resources,Housing General Fund,134A,J A DICKENS LIMITED,08/03/2024,RS157445,140.00,0.00,REDACT,Minor Adaptations
Wyre Council,http://opendatacommunities.org/doc/district-council/wyre,30/03/2024,Resources,Housing General Fund,134A,J A DICKENS LIMITED,08/03/2024,RS157447,300.00,0.00,REDACT,Minor Adaptations
Wyre Council,http://opendatacommunities.org/doc/district-council/wyre,30/03/2024,Resources,Housing General Fund,134A,J A DICKENS LIMITED,08/03/2024,RS157447,280.00,0.00,REDACT,Minor Adaptations
Wyre Council,http://opendatacommunities.org/doc/district-council/wyre,30/03/2024,Resources,Housing General Fund,134A,J A DICKENS LIMITED,08/03/2024,RS157448,200.00,0.00,REDACT,Minor Adaptations
Wyre Council,http://opendatacommunities.org/doc/district-council/wyre,30/03/2024,Resources,Housing General Fund,134A,J A DICKENS LIMITED,08/03/2024,RS157448,190.00,0.00,REDACT,Minor Adaptations
Wyre Council,http://opendatacommunities.org/doc/district-council/wyre,30/03/2024,Resources,Housing General Fund,134A,J A DICKENS LIMITED,08/03/2024,RS157449,340.00,0.00,REDACT,Minor Adaptations
Wyre Council,http://opendatacommunities.org/doc/district-council/wyre,30/03/2024,Resources,Housing General Fund,134A,J A DICKENS LIMITED,08/03/2024,RS157449,280.00,0.00,REDACT,Minor Adaptations
Wyre Council,http://opendatacommunities.org/doc/district-council/wyre,30/03/2024,Resources,Housing General Fund,134A,J A DICKENS LIMITED,08/03/2024,RS157450,160.00,0.00,REDACT,Minor Adaptations
Wyre Council,http://opendatacommunities.org/doc/district-council/wyre,30/03/2024,Resources,Housing General Fund,134A,J A DICKENS LIMITED,08/03/2024,RS157450,80.00,0.00,REDACT,Minor Adaptations
Wyre Council,http://opendatacommunities.org/doc/district-council/wyre,30/03/2024,Resources,Housing General Fund,134A,J A DICKENS LIMITED,08/03/2024,RS157466,80.00,0.00,REDACT,Minor Adaptations
Wyre Council,http://opendatacommunities.org/doc/district-council/wyre,30/03/2024,Resources,Housing General Fund,134A,J A DICKENS LIMITED,08/03/2024,RS157466,80.00,0.00,REDACT,Minor Adaptations
Wyre Council,http://opendatacommunities.org/doc/district-council/wyre,30/03/2024,Resources,Housing General Fund,134A,J A DICKENS LIMITED,08/03/2024,RS157464,160.00,0.00,REDACT,Minor Adaptations
Wyre Council,http://opendatacommunities.org/doc/district-council/wyre,30/03/2024,Resources,Housing General Fund,134A,J A DICKENS LIMITED,08/03/2024,RS157452,140.00,0.00,REDACT,Minor Adaptations
Wyre Council,http://opendatacommunities.org/doc/district-council/wyre,30/03/2024,Resources,Housing General Fund,134A,J A DICKENS LIMITED,08/03/2024,RS157452,180.00,0.00,REDACT,Minor Adaptations
Wyre Council,http://opendatacommunities.org/doc/district-council/wyre,30/03/2024,Resources,Housing General Fund,134A,J A DICKENS LIMITED,08/03/2024,RS157453,120.00,0.00,REDACT,Minor Adaptations
Wyre Council,http://opendatacommunities.org/doc/district-council/wyre,30/03/2024,Resources,Housing General Fund,134A,J A DICKENS LIMITED,08/03/2024,RS157453,200.00,0.00,REDACT,Minor Adaptations
Wyre Council,http://opendatacommunities.org/doc/district-council/wyre,30/03/2024,Resources,Housing General Fund,134A,J A DICKENS LIMITED,08/03/2024,RS157454,190.00,0.00,REDACT,Minor Adaptations
Wyre Council,http://opendatacommunities.org/doc/district-council/wyre,30/03/2024,Resources,Housing General Fund,134A,J A DICKENS LIMITED,08/03/2024,RS157454,150.00,0.00,REDACT,Minor Adaptations
Wyre Council,http://opendatacommunities.org/doc/district-council/wyre,30/03/2024,Resources,Housing General Fund,134A,J A DICKENS LIMITED,08/03/2024,RS157441,70.00,0.00,REDACT,Minor Adaptations
Wyre Council,http://opendatacommunities.org/doc/district-council/wyre,30/03/2024,Resources,Housing General Fund,134A,J A DICKENS LIMITED,08/03/2024,RS157441,90.00,0.00,REDACT,Minor Adaptations
Wyre Council,http://opendatacommunities.org/doc/district-council/wyre,30/03/2024,Resources,Housing General Fund,134A,J A DICKENS LIMITED,08/03/2024,RS157442,80.00,0.00,REDACT,Minor Adaptations
Wyre Council,http://opendatacommunities.org/doc/district-council/wyre,30/03/2024,Resources,Housing General Fund,134A,J A DICKENS LIMITED,08/03/2024,RS157442,80.00,0.00,REDACT,Minor Adaptations
Wyre Council,http://opendatacommunities.org/doc/district-council/wyre,30/03/2024,People and Places,Housing General Fund,134A,J A DICKENS LIMITED,08/03/2024,PE157446,80.00,0.00,REDACT,Minor Adaptations
Wyre Council,http://opendatacommunities.org/doc/district-council/wyre,30/03/2024,People and Places,Housing General Fund,134A,J A DICKENS LIMITED,08/03/2024,PE157446,80.00,0.00,REDACT,Minor Adaptations
Wyre Council,http://opendatacommunities.org/doc/district-council/wyre,30/03/2024,Resources,Current Liabilities,130C,DEPARTMENT FOR COMMUNITIES AND LOCAL GOVERNMENT,21/03/2024,RS157872,1152387.00,0.00,brrg-2023-24/BR S31 Receipts/Wyre Borough Council/4747084,Miscellaneous Debits
Wyre Council,http://opendatacommunities.org/doc/district-council/wyre,30/03/2024,Resources,Current Assets,130B,SME HCI Ltd,21/03/2024,RS157913,1982.80,0.00,INVOICE NUMBER: 151533,Miscellaneous Debits
Wyre Council,http://opendatacommunities.org/doc/district-council/wyre,30/03/2024,Resources,Current Assets,130B,SME HCI Ltd,19/03/2024,RS157730,288.60,0.00,INVOICE NUMBER: 150906,Miscellaneous Debits
Wyre Council,http://opendatacommunities.org/doc/district-council/wyre,30/03/2024,Resources,Environmental Services,132B,VODAFONE LIMITED,26/03/2024,RS157722,0.25,0.00,Monthly Phone Charges,Mobile Devices
Wyre Council,http://opendatacommunities.org/doc/district-council/wyre,30/03/2024,Resources,Environmental Services,132B,VODAFONE LIMITED,26/03/2024,RS157722,0.25,0.00,Monthly Phone Charges,Mobile Devices
Wyre Council,http://opendatacommunities.org/doc/district-council/wyre,30/03/2024,Resources,Housing General Fund,134A,VODAFONE LIMITED,26/03/2024,RS157722,0.75,0.00,Monthly Phone Charges,Mobile Devices
Wyre Council,http://opendatacommunities.org/doc/district-council/wyre,30/03/2024,Resources,Support Services,135B,VODAFONE LIMITED,26/03/2024,RS157722,0.50,0.00,Monthly Phone Charges,Mobile Devices
Wyre Council,http://opendatacommunities.org/doc/district-council/wyre,30/03/2024,Resources,Support Services,135B,VODAFONE LIMITED,26/03/2024,RS157722,1.25,0.00,Monthly Phone Charges,Mobile Devices
Wyre Council,http://opendatacommunities.org/doc/district-council/wyre,30/03/2024,Resources,Support Services,135B,VODAFONE LIMITED,26/03/2024,RS157722,0.97,0.00,Monthly Phone Charges,Mobile Devices
Wyre Council,http://opendatacommunities.org/doc/district-council/wyre,30/03/2024,Resources,Support Services,135B,VODAFONE LIMITED,26/03/2024,RS157722,0.27,0.00,Monthly Phone Charges,Mobile Devices
Wyre Council,http://opendatacommunities.org/doc/district-council/wyre,30/03/2024,Resources,Support Services,135B,VODAFONE LIMITED,26/03/2024,RS157722,4.84,0.00,Monthly Phone Charges,Mobile Devices
Wyre Council,http://opendatacommunities.org/doc/district-council/wyre,30/03/2024,Resources,Support Services,135B,VODAFONE LIMITED,26/03/2024,RS157722,3.89,0.00,Monthly Phone Charges,Mobile Devices
Wyre Council,http://opendatacommunities.org/doc/district-council/wyre,30/03/2024,Resources,Housing General Fund,134A,VODAFONE LIMITED,26/03/2024,RS157722,1.62,0.00,Monthly Phone Charges,Mobile Devices
Wyre Council,http://opendatacommunities.org/doc/district-council/wyre,30/03/2024,Resources,Housing General Fund,134A,VODAFONE LIMITED,26/03/2024,RS157722,0.25,0.00,Monthly Phone Charges,Mobile Devices
Wyre Council,http://opendatacommunities.org/doc/district-council/wyre,30/03/2024,Resources,Housing General Fund,134A,VODAFONE LIMITED,26/03/2024,RS157722,0.69,0.00,Monthly Phone Charges,Mobile Devices
Wyre Council,http://opendatacommunities.org/doc/district-council/wyre,30/03/2024,Resources,Support Services,135B,VODAFONE LIMITED,26/03/2024,RS157722,0.50,0.00,Monthly Phone Charges,Mobile Devices
Wyre Council,http://opendatacommunities.org/doc/district-council/wyre,30/03/2024,Resources,Support Services,135B,VODAFONE LIMITED,26/03/2024,RS157722,4.99,0.00,Monthly Phone Charges,Mobile Devices
Wyre Council,http://opendatacommunities.org/doc/district-council/wyre,30/03/2024,Resources,Support Services,135B,VODAFONE LIMITED,26/03/2024,RS157722,495.25,0.00,Monthly Phone Charges,Mobile Devices
Wyre Council,http://opendatacommunities.org/doc/district-council/wyre,30/03/2024,Resources,Support Services,135B,VODAFONE LIMITED,26/03/2024,RS157722,0.75,0.00,Monthly Phone Charges,Mobile Devices
Wyre Council,http://opendatacommunities.org/doc/district-council/wyre,30/03/2024,Resources,Support Services,135B,VODAFONE LIMITED,26/03/2024,RS157722,0.25,0.00,Monthly Phone Charges,Mobile Devices
Wyre Council,http://opendatacommunities.org/doc/district-council/wyre,30/03/2024,Resources,Support Services,135B,VODAFONE LIMITED,26/03/2024,RS157722,0.75,0.00,Monthly Phone Charges,Mobile Devices
Wyre Council,http://opendatacommunities.org/doc/district-council/wyre,30/03/2024,Resources,Support Services,135B,VODAFONE LIMITED,26/03/2024,RS157722,0.25,0.00,Monthly Phone Charges,Mobile Devices
Wyre Council,http://opendatacommunities.org/doc/district-council/wyre,30/03/2024,Resources,Central Services to the Public,131C,VODAFONE LIMITED,26/03/2024,RS157722,0.53,0.00,Monthly Phone Charges,Mobile Devices
Wyre Council,http://opendatacommunities.org/doc/district-council/wyre,30/03/2024,Resources,Environmental Services,132B,VODAFONE LIMITED,26/03/2024,RS157722,4.00,0.00,Monthly Phone Charges,Mobile Devices
Wyre Council,http://opendatacommunities.org/doc/district-council/wyre,30/03/2024,Resources,Support Services,135B,VODAFONE LIMITED,26/03/2024,RS157722,6.73,0.00,Monthly Phone Charges,Mobile Devices
Wyre Council,http://opendatacommunities.org/doc/district-council/wyre,30/03/2024,Resources,Support Services,135B,VODAFONE LIMITED,26/03/2024,RS157722,2.91,0.00,Monthly Phone Charges,Mobile Devices
Wyre Council,http://opendatacommunities.org/doc/district-council/wyre,30/03/2024,Resources,Support Services,135B,VODAFONE LIMITED,26/03/2024,RS157722,0.50,0.00,Monthly Phone Charges,Mobile Devices
Wyre Council,http://opendatacommunities.org/doc/district-council/wyre,30/03/2024,Resources,Support Services,135B,VODAFONE LIMITED,26/03/2024,RS157722,2.00,0.00,Monthly Phone Charges,Mobile Devices
Wyre Council,http://opendatacommunities.org/doc/district-council/wyre,30/03/2024,Resources,Cultural and Related Services,132A,VODAFONE LIMITED,26/03/2024,RS157722,0.25,0.00,Monthly Phone Charges,Mobile Devices
Wyre Council,http://opendatacommunities.org/doc/district-council/wyre,30/03/2024,Resources,Support Services,135B,VODAFONE LIMITED,26/03/2024,RS157722,0.25,0.00,Monthly Phone Charges,Mobile Devices
Wyre Council,http://opendatacommunities.org/doc/district-council/wyre,30/03/2024,People and Places,Highways,133B,Andrew Signs LTD,20/03/2024,PE157890,230.00,0.00,Various Street name plates MT,Naming of Streets
Wyre Council,http://opendatacommunities.org/doc/district-council/wyre,30/03/2024,Finance,Current Assets,130B,,26/03/2024,WPST00136697,69908.00,0.00,22/03/2024 NNDR Refunds,NNDR Refunds
Wyre Council,http://opendatacommunities.org/doc/district-council/wyre,30/03/2024,Finance,Current Assets,130B,,19/03/2024,WPST00136021,6233.68,0.00,15/03/24 NNDR Refunds,NNDR Refunds
Wyre Council,http://opendatacommunities.org/doc/district-council/wyre,30/03/2024,Finance,Current Assets,130B,,12/03/2024,WPST00135603,60797.75,0.00,08/03/24 NNDR Refunds,NNDR Refunds
Wyre Council,http://opendatacommunities.org/doc/district-council/wyre,30/03/2024,Finance,Current Assets,130B,,04/03/2024,WPST00134817,200439.48,0.00,29/02/24 NNDR Refunds,NNDR Refunds
Wyre Council,http://opendatacommunities.org/doc/district-council/wyre,30/03/2024,Finance,Current Assets,130B,,29/03/2024,WPST00137292,212330.38,0.00,28/03/2024 NNDR REfunds,NNDR Refunds
Wyre Council,http://opendatacommunities.org/doc/district-council/wyre,30/03/2024,Finance,Collection Fund Revenue Accts,138A,DEPARTMENT FOR COMMUNITIES AND LOCAL GOVERNMENT,21/03/2024,WPST00136416,1022749.00,0.00,DLUHC-BusRatesCenShare 19/03/24,NNDR Tariff to Government
Wyre Council,http://opendatacommunities.org/doc/district-council/wyre,30/03/2024,Finance,General Fund below the line,136A,DEPARTMENT FOR COMMUNITIES AND LOCAL GOVERNMENT,21/03/2024,WPST00136370,643840.00,0.00,19/03/24 R V B C General LBRP0008,NNDR Tariff to Government
Wyre Council,http://opendatacommunities.org/doc/district-council/wyre,30/03/2024,Resources,Support Services,135B,People Asset Management LTD,19/03/2024,RS157282,586.43,0.00,PAM - Monthly PAYG Charges,Occupational Health Fees
Wyre Council,http://opendatacommunities.org/doc/district-council/wyre,30/03/2024,Resources,Support Services,135B,Karen Openshaw Consultancy,06/03/2024,RS157339,520.00,0.00,Listening Services until March 22024,Occupational Health Fees
Wyre Council,http://opendatacommunities.org/doc/district-council/wyre,30/03/2024,People and Places,Environmental Services,132B,DANFO (UK) LTD,01/03/2024,PE157177,23387.86,0.00,Public Conveniences - Maintenance and Cleaning 2023/24,Other Establishments
Wyre Council,http://opendatacommunities.org/doc/district-council/wyre,30/03/2024,Finance,Collection Fund Revenue Accts,138A,LANCASHIRE FIRE AUTHORITY,19/03/2024,WPST00135982,25569.00,0.00,Lancs Fire 23/24 Business rates,Other Local Authorities
Wyre Council,http://opendatacommunities.org/doc/district-council/wyre,30/03/2024,Finance,Collection Fund Revenue Accts,138A,LANCASHIRE COUNTY COUNCIL,19/03/2024,WPST00135978,230119.00,0.00,LCC 23/24 Business rates,Other Local Authorities
Wyre Council,http://opendatacommunities.org/doc/district-council/wyre,30/03/2024,Finance,Collection Fund Revenue Accts,138A,,19/03/2024,WPST00135984,967972.00,0.00,PCCL 23/24 council tax,Other Local Authorities
Wyre Council,http://opendatacommunities.org/doc/district-council/wyre,30/03/2024,Finance,Collection Fund Revenue Accts,138A,,19/03/2024,WPST00135985,46481.00,0.00,PCCL 22/23 Council tax surplus,Other Local Authorities
Wyre Council,http://opendatacommunities.org/doc/district-council/wyre,30/03/2024,Finance,Collection Fund Revenue Accts,138A,LANCASHIRE FIRE AUTHORITY,19/03/2024,WPST00135980,316703.00,0.00,Lancs Fire 23/24 council tax,Other Local Authorities
Wyre Council,http://opendatacommunities.org/doc/district-council/wyre,30/03/2024,Finance,Collection Fund Revenue Accts,138A,,19/03/2024,WPST00135981,15190.00,0.00,Lancs Fire 22/23 Ctax surplus,Other Local Authorities
Wyre Council,http://opendatacommunities.org/doc/district-council/wyre,30/03/2024,Finance,Collection Fund Revenue Accts,138A,LANCASHIRE COUNTY COUNCIL,19/03/2024,WPST00135976,6061941.00,0.00,LCC 23/24 council tax,Other Local Authorities
Wyre Council,http://opendatacommunities.org/doc/district-council/wyre,30/03/2024,Finance,Collection Fund Revenue Accts,138A,LANCASHIRE FIRE AUTHORITY,19/03/2024,WPST00135977,297674.00,0.00,LCC 22/23 Ctax surplus,Other Local Authorities
Wyre Council,http://opendatacommunities.org/doc/district-council/wyre,30/03/2024,People and Places,Planning and Development Servs,132C,Blackpool Council,19/03/2024,PE157728,25000.00,0.00,"Hillhouse EZ Support 2023/24 - R Green, M Harrison, A Ogden",Other Local Authorities
Wyre Council,http://opendatacommunities.org/doc/district-council/wyre,30/03/2024,People and Places,Cultural and Related Services,132A,Granthams Signs LTD,20/03/2024,PE157881,960.34,0.00,To Supply and install signage to Mount Gardens Entrance as your quotation ref: 48239-0/07Ref: George Luckett,Other Materials
Wyre Council,http://opendatacommunities.org/doc/district-council/wyre,30/03/2024,People and Places,Cultural and Related Services,132A,DCM Projects LTD,06/03/2024,PE157153,4399.00,0.00,"Worked to be carried out at The Mount Fleetwood  Quotation ref: 12031 15/1/24  Please liaise with George Luckett and see email trail regarding colour, dates, etc..",Other Materials
Wyre Council,http://opendatacommunities.org/doc/district-council/wyre,30/03/2024,Resources,Cultural and Related Services,132A,Visual Print and Design Ltd,12/03/2024,RS157524,110.00,0.00,Mount history pull up banners banners - 2 x reprints/replacements for damaged1 x Clock banner1 x heart of community banner,Other Materials
Wyre Council,http://opendatacommunities.org/doc/district-council/wyre,30/03/2024,People and Places,Cultural and Related Services,132A,Amazon Business,07/03/2024,PE157404,6.62,0.00,Twine @ 7.95,Other Materials
Wyre Council,http://opendatacommunities.org/doc/district-council/wyre,30/03/2024,People and Places,Cultural and Related Services,132A,SHARD SURFACING LTD,06/03/2024,PE157195,1824.01,0.00,Quotation Reference Number:   Date: 15/01/2024 Project Title: Mount Seating Area    ItemDescription  A/C 20 Binder M289.822.251998.05 6mm Close Surface M2 89.822.872053.72  1.5 Ton Excavator (no cad) 1 Ton Dumper  7.5 Ton Wagon  (labour,Other Materials
Wyre Council,http://opendatacommunities.org/doc/district-council/wyre,30/03/2024,People and Places,Cultural and Related Services,132A,SHARD SURFACING LTD,06/03/2024,PE157195,3105.77,0.00,Quotation Reference Number:   Date: 15/01/2024 Project Title: Mount Seating Area    ItemDescription  A/C 20 Binder M289.822.251998.05 6mm Close Surface M2 89.822.872053.72  1.5 Ton Excavator (no cad) 1 Ton Dumper  7.5 Ton Wagon  (to reduce le,Other Materials
Wyre Council,http://opendatacommunities.org/doc/district-council/wyre,30/03/2024,People and Places,Parking Services,133F,Park Now Limited,08/03/2024,PE157462,612.65,0.00,RingGo fee 1 Nov 2023 - 31 March 2024,Other Parking Fees and Commission
Wyre Council,http://opendatacommunities.org/doc/district-council/wyre,30/03/2024,People and Places,Environmental Services,132B,D Hollowell & Sons LTD,25/03/2024,PE158018,932.00,0.00,REDACT,Other Rechargeable Services
Wyre Council,http://opendatacommunities.org/doc/district-council/wyre,30/03/2024,People and Places,Environmental Services,132B,D Hollowell & Sons LTD,21/03/2024,PE157905,1114.00,0.00,REDACT,Other Rechargeable Services
Wyre Council,http://opendatacommunities.org/doc/district-council/wyre,30/03/2024,People and Places,Environmental Services,132B,D Hollowell & Sons LTD,25/03/2024,PE158020,-1032.00,0.00,REDACT,Other Rechargeable Services
Wyre Council,http://opendatacommunities.org/doc/district-council/wyre,30/03/2024,People and Places,Environmental Services,132B,D Hollowell & Sons LTD,25/03/2024,PE158020,1032.00,0.00,REDACT,Other Rechargeable Services
Wyre Council,http://opendatacommunities.org/doc/district-council/wyre,30/03/2024,People and Places,Environmental Services,132B,D Hollowell & Sons LTD,25/03/2024,PE158021,1952.00,0.00,REDACT,Other Rechargeable Services
Wyre Council,http://opendatacommunities.org/doc/district-council/wyre,30/03/2024,People and Places,Environmental Services,132B,D Hollowell & Sons LTD,25/03/2024,PE158022,1032.00,0.00,REDACT,Other Rechargeable Services
Wyre Council,http://opendatacommunities.org/doc/district-council/wyre,30/03/2024,People and Places,Environmental Services,132B,D Hollowell & Sons LTD,25/03/2024,RS158033,1032.00,0.00,REDACT,Other Rechargeable Services
Wyre Council,http://opendatacommunities.org/doc/district-council/wyre,30/03/2024,People and Places,Planning and Development Servs,132C,Andrew Signs LTD,27/03/2024,PE158109,113.00,0.00,"Supply of reversing signs for Copse Road Depot, Fleetwood as your quotation QU-0406Collection to be arranged with Bob Greaves","Paths, Roads and Car Park Mtnce Annual"
Wyre Council,http://opendatacommunities.org/doc/district-council/wyre,30/03/2024,People and Places,Parking Services,133F,Andrew Signs LTD,01/03/2024,PE157208,122.50,0.00,supply of 3 disabled regulation signs requested by Mark T,"Paths, Roads and Car Park Mtnce Annual"
Wyre Council,http://opendatacommunities.org/doc/district-council/wyre,30/03/2024,People and Places,Parking Services,133F,SHARD SURFACING LTD,04/03/2024,PE156897,174.16,0.00,Fill in various pot holes on Poulton YMCA car park and Preesall Community Centre car park as discussed with Paul Long labour,"Paths, Roads and Car Park Mtnce Annual"
Wyre Council,http://opendatacommunities.org/doc/district-council/wyre,30/03/2024,People and Places,Parking Services,133F,SHARD SURFACING LTD,04/03/2024,PE156897,447.84,0.00,Fill in various pot holes on Poulton YMCA car park and Preesall Community Centre car park as discussed with Paul Long materials,"Paths, Roads and Car Park Mtnce Annual"
Wyre Council,http://opendatacommunities.org/doc/district-council/wyre,30/03/2024,Finance,Corporate and Democratic Core,131A,LANCASHIRE COUNTY COUNCIL,01/03/2024,WPST00134733,15947.96,0.00,28/02/2024LCC CO Pension,Pension Increase Act Payments
Wyre Council,http://opendatacommunities.org/doc/district-council/wyre,30/03/2024,Finance,Corporate and Democratic Core,131A,LANCASHIRE COUNTY COUNCIL,29/03/2024,WPST00137221,17042.65,0.00,27/03/2024LCC CO 6510104341 Pension,Pension Increase Act Payments
Wyre Council,http://opendatacommunities.org/doc/district-council/wyre,30/03/2024,People and Places,Cultural and Related Services,132A,Lancashire County Council,20/03/2024,PE157796,243.88,0.00,08.12.2023 INS341485 Fleetwood Rossall Point Observatory -  Legionella Risk Assessment,Planned Building Maintenance
Wyre Council,http://opendatacommunities.org/doc/district-council/wyre,30/03/2024,People and Places,Cultural and Related Services,132A,Lancashire County Council,20/03/2024,PE157796,673.36,0.00,23.11.2023 INS341393 Fleetwood Leisure Centre - Legionella  Risk Assessment,Planned Building Maintenance
Wyre Council,http://opendatacommunities.org/doc/district-council/wyre,30/03/2024,People and Places,Cultural and Related Services,132A,Lancashire County Council,20/03/2024,PE157796,243.87,0.00,20.12.2023 INS341520 Poulton le Fylde Cottam Hall Pavillion -  Legionella Risk Assessment,Planned Building Maintenance
Wyre Council,http://opendatacommunities.org/doc/district-council/wyre,30/03/2024,People and Places,Cultural and Related Services,132A,Lancashire County Council,20/03/2024,PE157796,243.88,0.00,11.01.2024 INS341487 Thornton Cleveleys Jubliee Gardens  Bowling Green - Legionella Risk Assessment,Planned Building Maintenance
Wyre Council,http://opendatacommunities.org/doc/district-council/wyre,30/03/2024,People and Places,Cultural and Related Services,132A,Lancashire County Council,20/03/2024,PE157796,209.01,0.00,11.01.2024 INS341489 Thornton Cleveleys North Drive Park  Bowling Green - Legionella Risk Assessment,Planned Building Maintenance
Wyre Council,http://opendatacommunities.org/doc/district-council/wyre,30/03/2024,People and Places,Environmental Services,132B,Lancashire County Council,20/03/2024,PE157796,371.48,0.00,25.01.2024 INS341541 Sea Defence Depot - Legionella Risk  Assessment,Planned Building Maintenance
Wyre Council,http://opendatacommunities.org/doc/district-council/wyre,30/03/2024,People and Places,Planning and Development Servs,132C,Lancashire County Council,20/03/2024,PE157796,418.09,0.00,11.12.2023 INS341483 Fleetwood Copse Road Depot - Legionella  Risk Assessment,Planned Building Maintenance
Wyre Council,http://opendatacommunities.org/doc/district-council/wyre,30/03/2024,People and Places,Central Services to the Public,131C,Lancashire County Council,20/03/2024,PE157796,313.48,0.00,17.01.2024 INS341521 Poulton le Fylde Teanlowe Day Centre -  Legionella Risk Assessment,Planned Building Maintenance
Wyre Council,http://opendatacommunities.org/doc/district-council/wyre,30/03/2024,People and Places,Cultural and Related Services,132A,Siemens Financial Services,27/03/2024,PE157356,681.66,0.00,Meter Operation & Comms Link Charges and Data Collection & Energy Management,Planned Building Maintenance
Wyre Council,http://opendatacommunities.org/doc/district-council/wyre,30/03/2024,People and Places,Cultural and Related Services,132A,Siemens Financial Services,27/03/2024,PE157356,681.66,0.00,Meter Operation & Comms Link Charges and Data Collection & Energy Management,Planned Building Maintenance
Wyre Council,http://opendatacommunities.org/doc/district-council/wyre,30/03/2024,People and Places,Planning and Development Servs,132C,Siemens Financial Services,27/03/2024,PE157356,681.66,0.00,Meter Operation & Comms Link Charges and Data Collection & Energy Management,Planned Building Maintenance
Wyre Council,http://opendatacommunities.org/doc/district-council/wyre,30/03/2024,People and Places,Planning and Development Servs,132C,Siemens Financial Services,27/03/2024,PE157356,681.66,0.00,Meter Operation & Comms Link Charges and Data Collection & Energy Management,Planned Building Maintenance
Wyre Council,http://opendatacommunities.org/doc/district-council/wyre,30/03/2024,People and Places,Support Services,135B,Siemens Financial Services,27/03/2024,PE157356,681.66,0.00,Meter Operation & Comms Link Charges and Data Collection & Energy Management,Planned Building Maintenance
Wyre Council,http://opendatacommunities.org/doc/district-council/wyre,30/03/2024,People and Places,Environmental Services,132B,Siemens Financial Services,27/03/2024,PE157356,681.66,0.00,Meter Operation & Comms Link Charges and Data Collection & Energy Management,Planned Building Maintenance
Wyre Council,http://opendatacommunities.org/doc/district-council/wyre,30/03/2024,People and Places,Cultural and Related Services,132A,Siemens Financial Services,27/03/2024,PE157356,681.66,0.00,Meter Operation & Comms Link Charges and Data Collection & Energy Management,Planned Building Maintenance
Wyre Council,http://opendatacommunities.org/doc/district-council/wyre,30/03/2024,People and Places,Environmental Services,132B,ADJ Doors Ltd T/A Keman Roller Shutters,18/03/2024,PE157583,5775.00,0.00,"To manufacture and install 2 no. manually operated, standard duty reduction geared roller shutters including plastic coating and access equipment",Planned Building Maintenance
Wyre Council,http://opendatacommunities.org/doc/district-council/wyre,30/03/2024,People and Places,Support Services,135B,RENTOKIL INITIAL UK LTD,18/03/2024,PE157261,709.35,0.00,R14120 Hygiene services 21/03/24 to 20/06/24,Planned Building Maintenance
Wyre Council,http://opendatacommunities.org/doc/district-council/wyre,30/03/2024,People and Places,Cultural and Related Services,132A,RENTOKIL INITIAL UK LTD,18/03/2024,PE157261,21.33,0.00,R14124  Hygiene services 21/03/24 to 20/06/24,Planned Building Maintenance
Wyre Council,http://opendatacommunities.org/doc/district-council/wyre,30/03/2024,People and Places,Planning and Development Servs,132C,RENTOKIL INITIAL UK LTD,18/03/2024,PE157261,333.41,0.00,R14122 Hygiene services 21/03/24 to 20/06/24,Planned Building Maintenance
Wyre Council,http://opendatacommunities.org/doc/district-council/wyre,30/03/2024,People and Places,Cultural and Related Services,132A,RENTOKIL INITIAL UK LTD,18/03/2024,PE157261,247.32,0.00,R14123  Hygiene services 21/03/24 to 20/06/24,Planned Building Maintenance
Wyre Council,http://opendatacommunities.org/doc/district-council/wyre,30/03/2024,People and Places,Planning and Development Servs,132C,RENTOKIL INITIAL UK LTD,18/03/2024,PE157261,243.04,0.00,R14121 Hygiene services 21/03/24 to 20/06/24,Planned Building Maintenance
Wyre Council,http://opendatacommunities.org/doc/district-council/wyre,30/03/2024,People and Places,Planning and Development Servs,132C,EVOLUTION CONSTRUCTION GROUP LTD,19/03/2024,PE157047,1587.06,0.00,Copse Rd Depot: Replace timber windows with UPVC,Planned Building Maintenance
Wyre Council,http://opendatacommunities.org/doc/district-council/wyre,30/03/2024,People and Places,Environmental Services,132B,EVOLUTION CONSTRUCTION GROUP LTD,19/03/2024,PE157046,2535.92,0.00,Chatsworth Depot: Replace high level glass blocks with UPVC windows including galvanised metal mesh to protect the glass,Planned Building Maintenance
Wyre Council,http://opendatacommunities.org/doc/district-council/wyre,30/03/2024,People and Places,Environmental Services,132B,The Columbaria Company,26/03/2024,PE157918,265.70,0.00,REDACT,Plaque Inscriptions and Furniture
Wyre Council,http://opendatacommunities.org/doc/district-council/wyre,30/03/2024,People and Places,Environmental Services,132B,The Columbaria Company,06/03/2024,PE157286,240.00,0.00,REDACT,Plaque Inscriptions and Furniture
Wyre Council,http://opendatacommunities.org/doc/district-council/wyre,30/03/2024,People and Places,Environmental Services,132B,The Columbaria Company,15/03/2024,PE157607,471.00,0.00,REDACT,Plaque Inscriptions and Furniture
Wyre Council,http://opendatacommunities.org/doc/district-council/wyre,30/03/2024,People and Places,Environmental Services,132B,The Columbaria Company,26/03/2024,PE158059,152.60,0.00,REDACT,Plaque Inscriptions and Furniture
Wyre Council,http://opendatacommunities.org/doc/district-council/wyre,30/03/2024,People and Places,Environmental Services,132B,The Columbaria Company,26/03/2024,PE158070,110.00,0.00,REDACT,Plaque Inscriptions and Furniture
Wyre Council,http://opendatacommunities.org/doc/district-council/wyre,30/03/2024,People and Places,Support Services,135B,GB  Sport & Leisure UK LTD,26/03/2024,PE158085,153.00,0.00,As per quotation 29639   SP-11-034 Reinforcement Ground Mesh - 30m x 2m,Playground Equipment
Wyre Council,http://opendatacommunities.org/doc/district-council/wyre,30/03/2024,People and Places,Support Services,135B,GB  Sport & Leisure UK LTD,26/03/2024,PE158085,645.00,0.00,SP-11-040 Grass Mat 1.5m x 1m x 23mm - Black - c/w Pegs 30No.,Playground Equipment
Wyre Council,http://opendatacommunities.org/doc/district-council/wyre,30/03/2024,People and Places,Support Services,135B,GB  Sport & Leisure UK LTD,26/03/2024,PE158085,115.00,0.00,Delivery,Playground Equipment
Wyre Council,http://opendatacommunities.org/doc/district-council/wyre,30/03/2024,Resources,Support Services,135B,Critiqom LTD,06/03/2024,RS157336,22.01,0.00,Services Feb 24 IQ Post - Pollution,Postage
Wyre Council,http://opendatacommunities.org/doc/district-council/wyre,30/03/2024,Resources,Central Services to the Public,131C,Critiqom LTD,22/03/2024,RS157961,26501.89,0.00,Annual Council  Tax Bills,Postage
Wyre Council,http://opendatacommunities.org/doc/district-council/wyre,30/03/2024,Resources,Central Services to the Public,131C,Critiqom LTD,22/03/2024,RS157960,3461.97,0.00,Annual Council  Tax Bills,Postage
Wyre Council,http://opendatacommunities.org/doc/district-council/wyre,30/03/2024,Resources,Central Services to the Public,131C,Critiqom LTD,22/03/2024,RS157960,261.05,0.00,Annual NNDR Bills,Postage
Wyre Council,http://opendatacommunities.org/doc/district-council/wyre,30/03/2024,Resources,Central Services to the Public,131C,Critiqom LTD,22/03/2024,RS157961,2129.73,0.00,Annual NNDR Bills,Postage
Wyre Council,http://opendatacommunities.org/doc/district-council/wyre,30/03/2024,Resources,Housing General Fund,134A,Critiqom LTD,22/03/2024,RS157961,2370.20,0.00,Annual HB Notifications,Postage
Wyre Council,http://opendatacommunities.org/doc/district-council/wyre,30/03/2024,Resources,Housing General Fund,134A,Critiqom LTD,22/03/2024,RS157960,463.95,0.00,Annual HB Notifications,Postage
Wyre Council,http://opendatacommunities.org/doc/district-council/wyre,30/03/2024,Resources,Housing General Fund,134A,Critiqom LTD,06/03/2024,RS157337,144.30,0.00,Postage Feb 24 Benefit Notifications,Postage
Wyre Council,http://opendatacommunities.org/doc/district-council/wyre,30/03/2024,Resources,Central Services to the Public,131C,Critiqom LTD,06/03/2024,RS157336,201.22,0.00,Services Feb 24 IQ post - Electoral,Postage
Wyre Council,http://opendatacommunities.org/doc/district-council/wyre,30/03/2024,Resources,Support Services,135B,Critiqom LTD,06/03/2024,RS157336,108.10,0.00,Services Feb 24 Ctax Reminders,Postage
Wyre Council,http://opendatacommunities.org/doc/district-council/wyre,30/03/2024,Resources,Support Services,135B,Critiqom LTD,06/03/2024,RS157336,2.52,0.00,Services Feb 24 NNDR Reminders,Postage
Wyre Council,http://opendatacommunities.org/doc/district-council/wyre,30/03/2024,Resources,Support Services,135B,Critiqom LTD,06/03/2024,RS157336,154.69,0.00,Services Feb 24 Ctax Summons,Postage
Wyre Council,http://opendatacommunities.org/doc/district-council/wyre,30/03/2024,Resources,Support Services,135B,Critiqom LTD,06/03/2024,RS157336,7.54,0.00,Services Feb 24 NNDR Summons,Postage
Wyre Council,http://opendatacommunities.org/doc/district-council/wyre,30/03/2024,Resources,Support Services,135B,Critiqom LTD,06/03/2024,RS157337,374.80,0.00,Postage Feb 24 Council Tax Reminders,Postage
Wyre Council,http://opendatacommunities.org/doc/district-council/wyre,30/03/2024,Resources,Support Services,135B,Critiqom LTD,06/03/2024,RS157337,20.25,0.00,Postage Feb 24 NNDR Reminders,Postage
Wyre Council,http://opendatacommunities.org/doc/district-council/wyre,30/03/2024,Resources,Support Services,135B,Critiqom LTD,06/03/2024,RS157337,470.26,0.00,Postage Feb 24 Council Tax Summons,Postage
Wyre Council,http://opendatacommunities.org/doc/district-council/wyre,30/03/2024,Resources,Support Services,135B,Critiqom LTD,06/03/2024,RS157337,23.40,0.00,Postage Feb 24 NNDR Summons,Postage
Wyre Council,http://opendatacommunities.org/doc/district-council/wyre,30/03/2024,Resources,Support Services,135B,Critiqom LTD,06/03/2024,RS157336,636.92,0.00,Services Feb 24 IQ post - Off Serv Admin,Postage
Wyre Council,http://opendatacommunities.org/doc/district-council/wyre,30/03/2024,Resources,Support Services,135B,Critiqom LTD,06/03/2024,RS157336,54.84,0.00,Services Feb 24 IQ post - CC,Postage
Wyre Council,http://opendatacommunities.org/doc/district-council/wyre,30/03/2024,Resources,Support Services,135B,Critiqom LTD,06/03/2024,RS157336,297.39,0.00,Services Feb 24 IQ Post - Planning,Postage
Wyre Council,http://opendatacommunities.org/doc/district-council/wyre,30/03/2024,Resources,Support Services,135B,Critiqom LTD,06/03/2024,RS157336,6.19,0.00,Services Feb 24 IQ Post - Cemeteries,Postage
Wyre Council,http://opendatacommunities.org/doc/district-council/wyre,30/03/2024,Resources,Central Services to the Public,131C,Critiqom LTD,06/03/2024,RS157336,1267.66,0.00,Services Feb 24 Critiqom HSF4 Costs,Postage
Wyre Council,http://opendatacommunities.org/doc/district-council/wyre,30/03/2024,Resources,Central Services to the Public,131C,Critiqom LTD,06/03/2024,RS157337,1915.67,0.00,Postage Feb 24 Daily Bills,Postage
Wyre Council,http://opendatacommunities.org/doc/district-council/wyre,30/03/2024,Resources,Central Services to the Public,131C,Critiqom LTD,06/03/2024,RS157336,425.50,0.00,Services Feb 24 Daily Bills,Postage
Wyre Council,http://opendatacommunities.org/doc/district-council/wyre,30/03/2024,Resources,Housing General Fund,134A,Critiqom LTD,06/03/2024,RS157336,30.83,0.00,Services Feb 24 Benefit Notifications,Postage
Wyre Council,http://opendatacommunities.org/doc/district-council/wyre,30/03/2024,People and Places,Corporate and Democratic Core,131A,Critiqom LTD,05/03/2024,PE157258,10650.00,0.00,"60k - 24pp A5 inserts - 10,650 Wyre Voice 2024",Printing
Wyre Council,http://opendatacommunities.org/doc/district-council/wyre,30/03/2024,Finance,Housing General Fund,134A,,07/03/2024,WPST00135320,9400.00,0.00,06/03/24 HB Pay Ukraine Thank you Paymen,Private Contractors
Wyre Council,http://opendatacommunities.org/doc/district-council/wyre,30/03/2024,People and Places,Environmental Services,132B,Andrew Signs LTD,20/03/2024,PE157875,365.60,0.00,*** Confirmation Order ***Your quotation QU-0403Please provide 6 no water measure rulers (as per sample)2 no. Flood signs and 750mm frames,Private Contractors
Wyre Council,http://opendatacommunities.org/doc/district-council/wyre,30/03/2024,People and Places,Parking Services,133F,DANFO (UK) LTD,26/03/2024,PE158040,13450.00,0.00,"Completion of sluice room at Central car park, Fleetwood - as quotation 7 FebruaryWorks to include  - Elsan waste disposal unit  - Wash hand basin  - Hot and cold water for hand washing  - Led lighting including emergency via microwave sensor",Private Contractors
Wyre Council,http://opendatacommunities.org/doc/district-council/wyre,30/03/2024,Resources,Housing General Fund,134A,Fylde Coast YMCA,05/03/2024,RS157231,3510.00,0.00,Homes for Ukraine Memberships,Private Contractors
Wyre Council,http://opendatacommunities.org/doc/district-council/wyre,30/03/2024,People and Places,Parking Services,133F,NSL Services Group,08/03/2024,PE157349,4827.61,0.00,Provide enforcement officer for Wyre Council car parks - 1 April 2023 - 31 March 2024,Private Contractors
Wyre Council,http://opendatacommunities.org/doc/district-council/wyre,30/03/2024,People and Places,Environmental Services,132B,AMBER CONSULTANCY (MARPLE) LTD,05/03/2024,PE157269,715.00,0.00,"for  100 D rated food safety and hygiene inspections to include allergen management , completion of inspection documentation , letters for 0,1 and 2 rather premises where necessary , to input visit on the council data base system and communication of any",Private Contractors
Wyre Council,http://opendatacommunities.org/doc/district-council/wyre,30/03/2024,People and Places,Parking Services,133F,CHIPSIDE LTD,07/03/2024,PE157373,47.69,0.00,Wyre Council bank transaction fees 1 April 2023 - 31 March 2024,Private Contractors
Wyre Council,http://opendatacommunities.org/doc/district-council/wyre,30/03/2024,People and Places,Parking Services,133F,CHIPSIDE LTD,27/03/2024,PE158011,695.74,0.00,provision of notice processing services 1 April 2023 - 31 March 2024; including postage,Private Contractors
Wyre Council,http://opendatacommunities.org/doc/district-council/wyre,30/03/2024,Resources,Housing General Fund,134A,Ascend Estates Limited,19/03/2024,RS157731,777.50,0.00,Bond and RIA,Private Contractors
Wyre Council,http://opendatacommunities.org/doc/district-council/wyre,30/03/2024,People and Places,Support Services,135B,PETER HEARN ELECTRICAL LTD,26/03/2024,PE158091,428.00,0.00,WORKS AS YOUR QUOTATION SQ-3235TO INSTALL 4 NON CORROSIVE IP RATED LED BATONS TOCONTAINERSINCL NEW CIRCUITS/SWITCHES ETC428.00,Private Contractors
Wyre Council,http://opendatacommunities.org/doc/district-council/wyre,30/03/2024,People and Places,Support Services,135B,PETER HEARN ELECTRICAL LTD,26/03/2024,PE158091,250.00,0.00,"LABOUR   250.00CONTAINERS LOCATED AT COPSE ROAD DEPOT, FLEETWOOD",Private Contractors
Wyre Council,http://opendatacommunities.org/doc/district-council/wyre,30/03/2024,People and Places,Planning and Development Servs,132C,North Euston LTD,22/03/2024,PE157926,1035.83,0.00,"Hire of Vantini Room and supply of Buffet Lunch on Weds 20 March 2024 between the hours of 11am and 4.30pm for a `Meet the Funder` event from 12-4pm for 60 people  Buffet Lunch to include Assorted Sandwiches, Sausage Rolls, Vegetable Samosas, Mediterranea",Project Costs
Wyre Council,http://opendatacommunities.org/doc/district-council/wyre,30/03/2024,People and Places,Planning and Development Servs,132C,Lancashire County Council,19/03/2024,PE157737,60.50,0.00,Inv No: 1530177WBC-CON-324 Garstang Town Centre Public Realm Improvements: Public Consultation Room Hire (UKSPF  E01: Improvements To Town Centres & High Streets),Project Costs
Wyre Council,http://opendatacommunities.org/doc/district-council/wyre,30/03/2024,People and Places,Planning and Development Servs,132C,Preston City Council,20/03/2024,PE157793,381.98,0.00,Garstang Town Centre Public Realm Improvements: Consultation Pull-up Banners(UKSPF E01: Improvements To Town Centres & High Streets),Project Costs
Wyre Council,http://opendatacommunities.org/doc/district-council/wyre,30/03/2024,Resources,Planning and Development Servs,132C,Preston City Council,20/03/2024,RS157792,38.00,0.00,"Garstang Town Centre Public Consultation � Comment Pads: (UKSPF E01: Improvements To Town Centres & High Streets) 500 x A4 1pp, glued into 5 pads of 100 sheets each",Project Costs
Wyre Council,http://opendatacommunities.org/doc/district-council/wyre,30/03/2024,Resources,Planning and Development Servs,132C,Preston City Council,20/03/2024,RS157792,58.75,0.00,Community Matters carers group 1000 x A5 1pp,Project Costs
Wyre Council,http://opendatacommunities.org/doc/district-council/wyre,30/03/2024,Resources,Planning and Development Servs,132C,Cleveleys Town Centre Group Ltd,12/03/2024,RS157571,3000.00,0.00,"Cleveleys Multiple Arts, March 24",Project Costs
Wyre Council,http://opendatacommunities.org/doc/district-council/wyre,30/03/2024,People and Places,Planning and Development Servs,132C,STANTEC UK LTD,21/03/2024,PE157897,1200.00,0.00,Garstang Town Centre Studies: Parking Study � Additional Work (UKSPF E01: Improvements To Town Centres & High Streets),Project Costs
Wyre Council,http://opendatacommunities.org/doc/district-council/wyre,30/03/2024,Resources,Planning and Development Servs,132C,Fleetwood Civic Society,22/03/2024,RS157952,2599.99,0.00,Blue Plaque Heritage Project,Project Costs
Wyre Council,http://opendatacommunities.org/doc/district-council/wyre,30/03/2024,Resources,Planning and Development Servs,132C,Fleetwood Civic Society,22/03/2024,RS157952,1100.01,0.00,Blue Plaque heritage project,Project Costs
Wyre Council,http://opendatacommunities.org/doc/district-council/wyre,30/03/2024,Resources,Planning and Development Servs,132C,The Charity Strategist,18/03/2024,RS157461,1510.00,0.00,"To provide `Bid Writing` Training on 2 dates, Thursday 1 Feb at The Lofthouse Building Fleetwood and Wednesday 7 Feb at Garstang Library for TWMAD - Breakdown of costs is 360 for preparation, 150 for Resources and a cost of 500 for each workshop for de",Project Costs
Wyre Council,http://opendatacommunities.org/doc/district-council/wyre,30/03/2024,Resources,Planning and Development Servs,132C,Garstang Community Sports Club,07/03/2024,RS157374,15000.00,0.00,Garstang Community Sports Club Feasibility Study,Project Costs
Wyre Council,http://opendatacommunities.org/doc/district-council/wyre,30/03/2024,People and Places,Planning and Development Servs,132C,RPS Design Group Ltd,20/03/2024,PE157885,5000.00,0.00,"Works on Cottam Hall Master Plan - Pavilion design Breakdown Site Visits and development of brief 1,000Creation of Scheme to achieve key design objectives 2,000Visuals and Presentation 1,0003D model 1,000Total 5,000Please liaise",Project Costs
Wyre Council,http://opendatacommunities.org/doc/district-council/wyre,30/03/2024,People and Places,Planning and Development Servs,132C,Christian Fenn,22/03/2024,PE157958,10000.00,0.00,Developing a Tourism Product - UKSPF Cleveleys Bus Station Mural - SPF17,Project Costs
Wyre Council,http://opendatacommunities.org/doc/district-council/wyre,30/03/2024,People and Places,Support Services,135B,Preston City Council,20/03/2024,PE156994,21.25,0.00,Wyred Up event print - 200 A5 and 20 A3,Promotions - General
Wyre Council,http://opendatacommunities.org/doc/district-council/wyre,30/03/2024,People and Places,Cultural and Related Services,132A,Focus Magazines Moulton Printing,27/03/2024,PE157874,220.00,0.00,12 months ad bookings for Carol Southern,Promotions - General
Wyre Council,http://opendatacommunities.org/doc/district-council/wyre,30/03/2024,Resources,Cultural and Related Services,132A,Visual Print and Design Ltd,06/03/2024,RS157370,395.00,0.00,HAF Easter 2024 - A5 12ppx 1300 copies,Promotions - General
Wyre Council,http://opendatacommunities.org/doc/district-council/wyre,30/03/2024,People and Places,Environmental Services,132B,Key Engineering & Hygiene Supplies LTD,27/03/2024,PE158095,136.92,0.00,"Supply the following as quotation 22842 - I have increased the items on this quote  Coveralls x 13 @ 8.98 each  Nitrile gloves x 6 @ 3.08 per box  Overshoes @ 1.70 per 100   Delivery to Wyre Council, FAO Corinne Mason/ Tracy Waistle  Civic Centre, Brec",Protective Clothing
